Workbook

Sheet Control
C30: Numerical value
C31: Suggested formula
C32: Probabilistic parameters
C33: Data specified elsewhere
C34: Suggested formula edited

Sheet Existing Phases
A1: SOURCE CONCENTRATIONS: Existing Phases
A3: Source Data Options | B3: Source Type
A11: Target Standard
A13: Select which Quality Standard (defined on the Contaminants sheet) to apply
A14: Not Specified
A17: Source Geometry
A19: Existing_Phases_Source_length | B19: 275 | C19: m
A20: Existing_Phases_Source_width | B20: 423 | C20: m
A21: Existing_Phases_Source_area | B21: 73162 | C21: m2
A22: Existing_Phases_Source_thickness | B22: =15-Hydrogeology!C5 -> 14 | C22: m
A23: Existing_Phases_Source_volume | B23: 482000 | C23: m3
A26: General Source Properties
A28: Existing_Phases_Source_field_capacity | B28: [-] | C28: 0.25
A29: Distribution | C29: constant
A30: Existing_Phases_Source_field_capacity_param1
A31: Existing_Phases_Source_field_capacity_param2
A32: Existing_Phases_Source_field_capacity_param3
A35: Existing_Phases_Source_porosity_total | B35: [-]
A36: Distribution | C36: constant
A37: Existing_Phases_Source_porosity_total_param1
A38: Existing_Phases_Source_porosity_total_param2
A39: Existing_Phases_Source_porosity_total_param3
A42: Existing_Phases_Source_porosity_water_filled | B42: [-]
A43: Distribution | C43: constant
A44: Existing_Phases_Source_porosity_water_filled_param1
A45: Existing_Phases_Source_porosity_water_filled_param2
A46: Existing_Phases_Source_porosity_water_filled_param3
A49: Existing_Phases_Source_porosity_air_filled | B49: [-] | C49: =Existing_Phases_Source_porosity_total - Existing_Phases_Source_porosity_water_filled -> 0
A50: Distribution | C50: constant
A51: Existing_Phases_Source_porosity_air_filled_param1
A52: Existing_Phases_Source_porosity_air_filled_param2
A53: Existing_Phases_Source_porosity_air_filled_param3
A56: Existing_Phases_Source_dry_bulk_density | B56: kg/m3
A57: Distribution | C57: constant
A58: Existing_Phases_Source_dry_bulk_density_param1
A59: Existing_Phases_Source_dry_bulk_density_param2
A60: Existing_Phases_Source_dry_bulk_density_param3
A63: Existing_Phases_Source_fraction_organic_carbon | B63: [-]
A64: Distribution | C64: constant
A65: Existing_Phases_Source_fraction_organic_carbon_param1
A66: Existing_Phases_Source_fraction_organic_carbon_param2
A67: Existing_Phases_Source_fraction_organic_carbon_param3
A71: Source Contaminant Information
A73: Source determinand names | C73: =IF( ISTEXT( (Contaminants_Source_determinand_names Contaminants_Species1)), (Contaminants_Source_determinand_names Contaminants_Species1), "Undefined" ) -> Lead | D73: =IF( ISTEXT( (Contaminants_Source_determinand_names Contaminants_Species2)), (Contaminants_Source_determinand_names Contaminants_Species2), "Undefined" ) -> AmmN | E73: =IF( ISTEXT( (Contaminants_Source_determinand_names Contaminants_Species3)), (Contaminants_Source_determinand_names Contaminants_Species3), "Undefined" ) -> Nickel | F73: =IF( ISTEXT( (Contaminants_Source_determinand_names Contaminants_Species4)), (Contaminants_Source_determinand_names Contaminants_Species4), "Undefined" ) -> Chloride | G73: =IF( ISTEXT( (Contaminants_Source_determinand_names Contaminants_Species5)), (Contaminants_Source_determinand_names Contaminants_Species5), "Undefined" ) -> Toluene | H73: =IF( ISTEXT( (Contaminants_Source_determinand_names Contaminants_Species6)), (Contaminants_Source_determinand_names Contaminants_Species6), "Undefined" ) -> Cadmium | I73: =IF( ISTEXT( (Contaminants_Source_determinand_names Contaminants_Species7)), (Contaminants_Source_determinand_names Contaminants_Species7), "Undefined" ) -> Undefined | J73: =IF( ISTEXT( (Contaminants_Source_determinand_names Contaminants_Species8)), (Contaminants_Source_determinand_names Contaminants_Species8), "Undefined" ) -> Undefined
A75: Existing_Phases_Pore_water_concentration | B75: mg/L | C75: 0.01285 | D75: 0.8872 | E75: 0.0112 | F75: 55.46 | G75: 0.002 | H75: 0.000565
A76: Distribution | C76: constant | D76: constant | E76: constant | F76: constant | G76: constant | H76: constant | I76: constant | J76: constant
A77: Existing_Phases_Pore_water_concentration_param1
A78: Existing_Phases_Pore_water_concentration_param2
A79: Existing_Phases_Pore_water_concentration_param3
A82: Existing_Phases_Leaching_test_concentration | B82: mg/L
A83: Distribution | C83: constant | D83: constant | E83: constant | F83: constant | G83: constant | H83: constant | I83: constant | J83: constant
A84: Existing_Phases_Leaching_test_concentration_param1
A85: Existing_Phases_Leaching_test_concentration_param2
A86: Existing_Phases_Leaching_test_concentration_param3
A89: Existing_Phases_Soil_contaminant_concentration | B89: mg/kg
A90: Distribution | C90: constant | D90: constant | E90: constant | F90: constant | G90: constant | H90: constant | I90: constant | J90: constant
A91: Existing_Phases_Soil_contaminant_concentration_param1
A92: Existing_Phases_Soil_contaminant_concentration_param2
A93: Existing_Phases_Soil_contaminant_concentration_param3
A96: Existing_Phases_Source_solid_water_partitioning_coefficient_Kd | B96: L/kg | C96: =(Contaminants_Organic_Carbon_Water_Partition_Coefficient_Koc Contaminants_Species1) * ( Existing_Phases_Source_fraction_organic_carbon) -> 0 | D96: =(Contaminants_Organic_Carbon_Water_Partition_Coefficient_Koc Contaminants_Species2) * ( Existing_Phases_Source_fraction_organic_carbon) -> 0 | E96: =(Contaminants_Organic_Carbon_Water_Partition_Coefficient_Koc Contaminants_Species3) * ( Existing_Phases_Source_fraction_organic_carbon) -> 0 | F96: =(Contaminants_Organic_Carbon_Water_Partition_Coefficient_Koc Contaminants_Species4) * ( Existing_Phases_Source_fraction_organic_carbon) -> 0 | G96: =(Contaminants_Organic_Carbon_Water_Partition_Coefficient_Koc Contaminants_Species5) * ( Existing_Phases_Source_fraction_organic_carbon) -> 0 | H96: =(Contaminants_Organic_Carbon_Water_Partition_Coefficient_Koc Contaminants_Species6) * ( Existing_Phases_Source_fraction_organic_carbon) -> 0 | I96: =(Contaminants_Organic_Carbon_Water_Partition_Coefficient_Koc Contaminants_Species7) * ( Existing_Phases_Source_fraction_organic_carbon) -> 0 | J96: =(Contaminants_Organic_Carbon_Water_Partition_Coefficient_Koc Contaminants_Species8) * ( Existing_Phases_Source_fraction_organic_carbon) -> 0
A97: Distribution | C97: constant | D97: constant | E97: constant | F97: constant | G97: constant | H97: constant | I97: constant | J97: constant
A98: Existing_Phases_Source_solid_water_partitioning_coefficient_Kd_param1
A99: Existing_Phases_Source_solid_water_partitioning_coefficient_Kd_param2
A100: Existing_Phases_Source_solid_water_partitioning_coefficient_Kd_param3
A103: Existing_Phases_Initial_inventory | B103: kg | C103: =0.001 * (Existing_Phases_Pore_water_concentration) * (Existing_Phases_Source_field_capacity) * (Existing_Phases_Source_volume) -> 1.548425 | D103: 106.9076 | E103: 1.3496 | F103: 6682.93 | G103: 0.241 | H103: 0.0680825 | I103: 0 | J103: 0
A104: Distribution | C104: constant | D104: constant | E104: constant | F104: constant | G104: constant | H104: constant | I104: constant | J104: constant
A105: Existing_Phases_Initial_inventory_param1
A106: Existing_Phases_Initial_inventory_param2
A107: Existing_Phases_Initial_inventory_param3
A110: Existing_Phases_Kappa_slope_value_m | B110: kg/L
A111: Distribution | C111: constant | D111: constant | E111: constant | F111: constant | G111: constant | H111: constant | I111: constant | J111: constant
A112: Existing_Phases_Kappa_slope_value_m_param1
A113: Existing_Phases_Kappa_slope_value_m_param2
A114: Existing_Phases_Kappa_slope_value_m_param3
A117: Existing_Phases_Kappa_intercept_value_c | B117: kg/L
A118: Distribution | C118: constant | D118: constant | E118: constant | F118: constant | G118: constant | H118: constant | I118: constant | J118: constant
A119: Existing_Phases_Kappa_intercept_value_c_param1
A120: Existing_Phases_Kappa_intercept_value_c_param2
A121: Existing_Phases_Kappa_intercept_value_c_param3
A124: Existing_Phases_Kappa_Value | B124: kg/L | C124: =IF(AND(ISNUMBER(Existing_Phases_Kappa_slope_value_m),ISNUMBER(Existing_Phases_Kappa_intercept_value_c),ISNUMBER(Existing_Phases_Input_concentration)), IF(Existing_Phases_Input_concentration>0,MAX(0,Existing_Phases_Kappa_slope_value_m * LN(1000 * Existing_Phases_Input_concentration) + Existing_Phases_Kappa_intercept_value_c),""),"Not-used") -> Not-used | D124: Not-used | E124: Not-used | F124: Not-used | G124: Not-used | H124: Not-used | I124: Not-used | J124: Not-used
A125: Distribution | C125: constant | D125: constant | E125: constant | F125: constant | G125: constant | H125: constant | I125: constant | J125: constant
A126: Existing_Phases_Kappa_Value_param1
A127: Existing_Phases_Kappa_Value_param2
A128: Existing_Phases_Kappa_Value_param3
A131: Existing_Phases_Input_concentration | B131: mg/L | C131: =(Existing_Phases_Pore_water_concentration) -> 0.01285 | D131: 0.8872 | E131: 0.0112 | F131: 55.46 | G131: 0.002 | H131: 0.000565 | I131: 0 | J131: 0

Sheet New Phases
A1: SOURCE CONCENTRATIONS: New Phases
A3: Source Data Options | B3: Source Type
A11: Target Standard
A13: Select which Quality Standard (defined on the Contaminants sheet) to apply
A14: Not Specified
A17: Source Geometry
A19: New_Phases_Source_length | B19: 1015 | C19: m
A20: New_Phases_Source_width | B20: 640 | C20: m
A21: New_Phases_Source_area | B21: 253100 | C21: m2
A22: New_Phases_Source_thickness | B22: =15-Hydrogeology!C5 -> 14 | C22: m
A23: New_Phases_Source_volume | B23: 2014000 | C23: m3
A26: General Source Properties
A28: New_Phases_Source_field_capacity | B28: [-] | C28: 0.25
A29: Distribution | C29: constant
A30: New_Phases_Source_field_capacity_param1
A31: New_Phases_Source_field_capacity_param2
A32: New_Phases_Source_field_capacity_param3
A35: New_Phases_Source_porosity_total | B35: [-]
A36: Distribution | C36: constant
A37: New_Phases_Source_porosity_total_param1
A38: New_Phases_Source_porosity_total_param2
A39: New_Phases_Source_porosity_total_param3
A42: New_Phases_Source_porosity_water_filled | B42: [-]
A43: Distribution | C43: constant
A44: New_Phases_Source_porosity_water_filled_param1
A45: New_Phases_Source_porosity_water_filled_param2
A46: New_Phases_Source_porosity_water_filled_param3
A49: New_Phases_Source_porosity_air_filled | B49: [-] | C49: =New_Phases_Source_porosity_total - New_Phases_Source_porosity_water_filled -> 0
A50: Distribution | C50: constant
A51: New_Phases_Source_porosity_air_filled_param1
A52: New_Phases_Source_porosity_air_filled_param2
A53: New_Phases_Source_porosity_air_filled_param3
A56: New_Phases_Source_dry_bulk_density | B56: kg/m3
A57: Distribution | C57: constant
A58: New_Phases_Source_dry_bulk_density_param1
A59: New_Phases_Source_dry_bulk_density_param2
A60: New_Phases_Source_dry_bulk_density_param3
A63: New_Phases_Source_fraction_organic_carbon | B63: [-]
A64: Distribution | C64: constant
A65: New_Phases_Source_fraction_organic_carbon_param1
A66: New_Phases_Source_fraction_organic_carbon_param2
A67: New_Phases_Source_fraction_organic_carbon_param3
A71: Source Contaminant Information
A73: Source determinand names | C73: =IF( ISTEXT( (Contaminants_Source_determinand_names Contaminants_Species1)), (Contaminants_Source_determinand_names Contaminants_Species1), "Undefined" ) -> Lead | D73: =IF( ISTEXT( (Contaminants_Source_determinand_names Contaminants_Species2)), (Contaminants_Source_determinand_names Contaminants_Species2), "Undefined" ) -> AmmN | E73: =IF( ISTEXT( (Contaminants_Source_determinand_names Contaminants_Species3)), (Contaminants_Source_determinand_names Contaminants_Species3), "Undefined" ) -> Nickel | F73: =IF( ISTEXT( (Contaminants_Source_determinand_names Contaminants_Species4)), (Contaminants_Source_determinand_names Contaminants_Species4), "Undefined" ) -> Chloride | G73: =IF( ISTEXT( (Contaminants_Source_determinand_names Contaminants_Species5)), (Contaminants_Source_determinand_names Contaminants_Species5), "Undefined" ) -> Toluene | H73: =IF( ISTEXT( (Contaminants_Source_determinand_names Contaminants_Species6)), (Contaminants_Source_determinand_names Contaminants_Species6), "Undefined" ) -> Cadmium | I73: =IF( ISTEXT( (Contaminants_Source_determinand_names Contaminants_Species7)), (Contaminants_Source_determinand_names Contaminants_Species7), "Undefined" ) -> Undefined | J73: =IF( ISTEXT( (Contaminants_Source_determinand_names Contaminants_Species8)), (Contaminants_Source_determinand_names Contaminants_Species8), "Undefined" ) -> Undefined
A75: New_Phases_Pore_water_concentration | B75: mg/L | C75: 0.01285 | D75: 0.8872 | E75: 0.0112 | F75: 55.46 | G75: 0.002 | H75: 0.000565
A76: Distribution | C76: constant | D76: constant | E76: constant | F76: constant | G76: constant | H76: constant | I76: constant | J76: constant
A77: New_Phases_Pore_water_concentration_param1
A78: New_Phases_Pore_water_concentration_param2
A79: New_Phases_Pore_water_concentration_param3
A82: New_Phases_Leaching_test_concentration | B82: mg/L
A83: Distribution | C83: constant | D83: constant | E83: constant | F83: constant | G83: constant | H83: constant | I83: constant | J83: constant
A84: New_Phases_Leaching_test_concentration_param1
A85: New_Phases_Leaching_test_concentration_param2
A86: New_Phases_Leaching_test_concentration_param3
A89: New_Phases_Soil_contaminant_concentration | B89: mg/kg
A90: Distribution | C90: constant | D90: constant | E90: constant | F90: constant | G90: constant | H90: constant | I90: constant | J90: constant
A91: New_Phases_Soil_contaminant_concentration_param1
A92: New_Phases_Soil_contaminant_concentration_param2
A93: New_Phases_Soil_contaminant_concentration_param3
A96: New_Phases_Source_solid_water_partitioning_coefficient_Kd | B96: L/kg | C96: =(Contaminants_Organic_Carbon_Water_Partition_Coefficient_Koc Contaminants_Species1) * ( New_Phases_Source_fraction_organic_carbon) -> 0 | D96: =(Contaminants_Organic_Carbon_Water_Partition_Coefficient_Koc Contaminants_Species2) * ( New_Phases_Source_fraction_organic_carbon) -> 0 | E96: =(Contaminants_Organic_Carbon_Water_Partition_Coefficient_Koc Contaminants_Species3) * ( New_Phases_Source_fraction_organic_carbon) -> 0 | F96: =(Contaminants_Organic_Carbon_Water_Partition_Coefficient_Koc Contaminants_Species4) * ( New_Phases_Source_fraction_organic_carbon) -> 0 | G96: =(Contaminants_Organic_Carbon_Water_Partition_Coefficient_Koc Contaminants_Species5) * ( New_Phases_Source_fraction_organic_carbon) -> 0 | H96: =(Contaminants_Organic_Carbon_Water_Partition_Coefficient_Koc Contaminants_Species6) * ( New_Phases_Source_fraction_organic_carbon) -> 0 | I96: =(Contaminants_Organic_Carbon_Water_Partition_Coefficient_Koc Contaminants_Species7) * ( New_Phases_Source_fraction_organic_carbon) -> 0 | J96: =(Contaminants_Organic_Carbon_Water_Partition_Coefficient_Koc Contaminants_Species8) * ( New_Phases_Source_fraction_organic_carbon) -> 0
A97: Distribution | C97: constant | D97: constant | E97: constant | F97: constant | G97: constant | H97: constant | I97: constant | J97: constant
A98: New_Phases_Source_solid_water_partitioning_coefficient_Kd_param1
A99: New_Phases_Source_solid_water_partitioning_coefficient_Kd_param2
A100: New_Phases_Source_solid_water_partitioning_coefficient_Kd_param3
A103: New_Phases_Initial_inventory | B103: kg | C103: =0.001 * (New_Phases_Pore_water_concentration) * (New_Phases_Source_field_capacity) * (New_Phases_Source_volume) -> 6.469975 | D103: 446.7052 | E103: 5.6392 | F103: 27924.11 | G103: 1.007 | H103: 0.2844775 | I103: 0 | J103: 0
A104: Distribution | C104: constant | D104: constant | E104: constant | F104: constant | G104: constant | H104: constant | I104: constant | J104: constant
A105: New_Phases_Initial_inventory_param1
A106: New_Phases_Initial_inventory_param2
A107: New_Phases_Initial_inventory_param3
A110: New_Phases_Kappa_slope_value_m | B110: kg/L
A111: Distribution | C111: constant | D111: constant | E111: constant | F111: constant | G111: constant | H111: constant | I111: constant | J111: constant
A112: New_Phases_Kappa_slope_value_m_param1
A113: New_Phases_Kappa_slope_value_m_param2
A114: New_Phases_Kappa_slope_value_m_param3
A117: New_Phases_Kappa_intercept_value_c | B117: kg/L
A118: Distribution | C118: constant | D118: constant | E118: constant | F118: constant | G118: constant | H118: constant | I118: constant | J118: constant
A119: New_Phases_Kappa_intercept_value_c_param1
A120: New_Phases_Kappa_intercept_value_c_param2
A121: New_Phases_Kappa_intercept_value_c_param3
A124: New_Phases_Kappa_Value | B124: kg/L | C124: =IF(AND(ISNUMBER(New_Phases_Kappa_slope_value_m),ISNUMBER(New_Phases_Kappa_intercept_value_c),ISNUMBER(New_Phases_Input_concentration)), IF(New_Phases_Input_concentration>0,MAX(0,New_Phases_Kappa_slope_value_m * LN(1000 * New_Phases_Input_concentration) + New_Phases_Kappa_intercept_value_c),""),"Not-used") -> Not-used | D124: Not-used | E124: Not-used | F124: Not-used | G124: Not-used | H124: Not-used | I124: Not-used | J124: Not-used
A125: Distribution | C125: constant | D125: constant | E125: constant | F125: constant | G125: constant | H125: constant | I125: constant | J125: constant
A126: New_Phases_Kappa_Value_param1
A127: New_Phases_Kappa_Value_param2
A128: New_Phases_Kappa_Value_param3
A131: New_Phases_Input_concentration | B131: mg/L | C131: =(New_Phases_Pore_water_concentration) -> 0.01285 | D131: 0.8872 | E131: 0.0112 | F131: 55.46 | G131: 0.002 | H131: 0.000565 | I131: 0 | J131: 0

Sheet AGB (hidden)
A1: SOURCE CONCENTRATIONS: AGB
A3: Source Data Options | B3: Source Type
A11: Target Standard
A13: Select which Quality Standard (defined on the Contaminants sheet) to apply
A14: Not Specified
A17: Source Geometry
A19: AGB_Source_length | C19: m
A20: AGB_Source_width | C20: m
A21: AGB_Source_area | B21: 253100 | C21: m2
A22: AGB_Source_thickness | C22: m
A23: AGB_Source_volume | B23: 279000 | C23: m3
A26: General Source Properties
A28: AGB_Source_field_capacity | B28: [-] | C28: 0.25
A29: Distribution | C29: constant
A30: AGB_Source_field_capacity_param1
A31: AGB_Source_field_capacity_param2
A32: AGB_Source_field_capacity_param3
A35: AGB_Source_porosity_total | B35: [-]
A36: Distribution | C36: constant
A37: AGB_Source_porosity_total_param1
A38: AGB_Source_porosity_total_param2
A39: AGB_Source_porosity_total_param3
A42: AGB_Source_porosity_water_filled | B42: [-]
A43: Distribution | C43: constant
A44: AGB_Source_porosity_water_filled_param1
A45: AGB_Source_porosity_water_filled_param2
A46: AGB_Source_porosity_water_filled_param3
A49: AGB_Source_porosity_air_filled | B49: [-] | C49: =AGB_Source_porosity_total - AGB_Source_porosity_water_filled -> 0
A50: Distribution | C50: constant
A51: AGB_Source_porosity_air_filled_param1
A52: AGB_Source_porosity_air_filled_param2
A53: AGB_Source_porosity_air_filled_param3
A56: AGB_Source_dry_bulk_density | B56: kg/m3
A57: Distribution | C57: constant
A58: AGB_Source_dry_bulk_density_param1
A59: AGB_Source_dry_bulk_density_param2
A60: AGB_Source_dry_bulk_density_param3
A63: AGB_Source_fraction_organic_carbon | B63: [-]
A64: Distribution | C64: constant
A65: AGB_Source_fraction_organic_carbon_param1
A66: AGB_Source_fraction_organic_carbon_param2
A67: AGB_Source_fraction_organic_carbon_param3
A71: Source Contaminant Information
A73: Source determinand names | C73: =IF( ISTEXT( (Contaminants_Source_determinand_names Contaminants_Species1)), (Contaminants_Source_determinand_names Contaminants_Species1), "Undefined" ) -> Lead | D73: =IF( ISTEXT( (Contaminants_Source_determinand_names Contaminants_Species2)), (Contaminants_Source_determinand_names Contaminants_Species2), "Undefined" ) -> AmmN | E73: =IF( ISTEXT( (Contaminants_Source_determinand_names Contaminants_Species3)), (Contaminants_Source_determinand_names Contaminants_Species3), "Undefined" ) -> Nickel | F73: =IF( ISTEXT( (Contaminants_Source_determinand_names Contaminants_Species4)), (Contaminants_Source_determinand_names Contaminants_Species4), "Undefined" ) -> Chloride | G73: =IF( ISTEXT( (Contaminants_Source_determinand_names Contaminants_Species5)), (Contaminants_Source_determinand_names Contaminants_Species5), "Undefined" ) -> Toluene | H73: =IF( ISTEXT( (Contaminants_Source_determinand_names Contaminants_Species6)), (Contaminants_Source_determinand_names Contaminants_Species6), "Undefined" ) -> Cadmium | I73: =IF( ISTEXT( (Contaminants_Source_determinand_names Contaminants_Species7)), (Contaminants_Source_determinand_names Contaminants_Species7), "Undefined" ) -> Undefined | J73: =IF( ISTEXT( (Contaminants_Source_determinand_names Contaminants_Species8)), (Contaminants_Source_determinand_names Contaminants_Species8), "Undefined" ) -> Undefined
A75: AGB_Pore_water_concentration | B75: mg/L | C75: 1 | D75: 1 | E75: 1 | F75: 1 | G75: 1 | H75: 1
A76: Distribution | C76: constant | D76: constant | E76: constant | F76: constant | G76: constant | H76: constant | I76: constant | J76: constant
A77: AGB_Pore_water_concentration_param1
A78: AGB_Pore_water_concentration_param2
A79: AGB_Pore_water_concentration_param3
A82: AGB_Leaching_test_concentration | B82: mg/L
A83: Distribution | C83: constant | D83: constant | E83: constant | F83: constant | G83: constant | H83: constant | I83: constant | J83: constant
A84: AGB_Leaching_test_concentration_param1
A85: AGB_Leaching_test_concentration_param2
A86: AGB_Leaching_test_concentration_param3
A89: AGB_Soil_contaminant_concentration | B89: mg/kg
A90: Distribution | C90: constant | D90: constant | E90: constant | F90: constant | G90: constant | H90: constant | I90: constant | J90: constant
A91: AGB_Soil_contaminant_concentration_param1
A92: AGB_Soil_contaminant_concentration_param2
A93: AGB_Soil_contaminant_concentration_param3
A96: AGB_Source_solid_water_partitioning_coefficient_Kd | B96: L/kg | C96: =(Contaminants_Organic_Carbon_Water_Partition_Coefficient_Koc Contaminants_Species1) * ( AGB_Source_fraction_organic_carbon) -> 0 | D96: =(Contaminants_Organic_Carbon_Water_Partition_Coefficient_Koc Contaminants_Species2) * ( AGB_Source_fraction_organic_carbon) -> 0 | E96: =(Contaminants_Organic_Carbon_Water_Partition_Coefficient_Koc Contaminants_Species3) * ( AGB_Source_fraction_organic_carbon) -> 0 | F96: =(Contaminants_Organic_Carbon_Water_Partition_Coefficient_Koc Contaminants_Species4) * ( AGB_Source_fraction_organic_carbon) -> 0 | G96: =(Contaminants_Organic_Carbon_Water_Partition_Coefficient_Koc Contaminants_Species5) * ( AGB_Source_fraction_organic_carbon) -> 0 | H96: =(Contaminants_Organic_Carbon_Water_Partition_Coefficient_Koc Contaminants_Species6) * ( AGB_Source_fraction_organic_carbon) -> 0 | I96: =(Contaminants_Organic_Carbon_Water_Partition_Coefficient_Koc Contaminants_Species7) * ( AGB_Source_fraction_organic_carbon) -> 0 | J96: =(Contaminants_Organic_Carbon_Water_Partition_Coefficient_Koc Contaminants_Species8) * ( AGB_Source_fraction_organic_carbon) -> 0
A97: Distribution | C97: constant | D97: constant | E97: constant | F97: constant | G97: constant | H97: constant | I97: constant | J97: constant
A98: AGB_Source_solid_water_partitioning_coefficient_Kd_param1
A99: AGB_Source_solid_water_partitioning_coefficient_Kd_param2
A100: AGB_Source_solid_water_partitioning_coefficient_Kd_param3
A103: AGB_Initial_inventory | B103: kg | C103: =0.001 * (AGB_Pore_water_concentration) * (AGB_Source_field_capacity) * (AGB_Source_volume) -> 69.75 | D103: 69.75 | E103: 69.75 | F103: 69.75 | G103: 69.75 | H103: 69.75 | I103: 0 | J103: 0
A104: Distribution | C104: constant | D104: constant | E104: constant | F104: constant | G104: constant | H104: constant | I104: constant | J104: constant
A105: AGB_Initial_inventory_param1
A106: AGB_Initial_inventory_param2
A107: AGB_Initial_inventory_param3
A110: AGB_Kappa_slope_value_m | B110: kg/L
A111: Distribution | C111: constant | D111: constant | E111: constant | F111: constant | G111: constant | H111: constant | I111: constant | J111: constant
A112: AGB_Kappa_slope_value_m_param1
A113: AGB_Kappa_slope_value_m_param2
A114: AGB_Kappa_slope_value_m_param3
A117: AGB_Kappa_intercept_value_c | B117: kg/L
A118: Distribution | C118: constant | D118: constant | E118: constant | F118: constant | G118: constant | H118: constant | I118: constant | J118: constant
A119: AGB_Kappa_intercept_value_c_param1
A120: AGB_Kappa_intercept_value_c_param2
A121: AGB_Kappa_intercept_value_c_param3
A124: AGB_Kappa_Value | B124: kg/L | C124: =IF(AND(ISNUMBER(AGB_Kappa_slope_value_m),ISNUMBER(AGB_Kappa_intercept_value_c),ISNUMBER(AGB_Input_concentration)), IF(AGB_Input_concentration>0,MAX(0,AGB_Kappa_slope_value_m * LN(1000 * AGB_Input_concentration) + AGB_Kappa_intercept_value_c),""),"Not-used") -> Not-used | D124: Not-used | E124: Not-used | F124: Not-used | G124: Not-used | H124: Not-used | I124: Not-used | J124: Not-used
A125: Distribution | C125: constant | D125: constant | E125: constant | F125: constant | G125: constant | H125: constant | I125: constant | J125: constant
A126: AGB_Kappa_Value_param1
A127: AGB_Kappa_Value_param2
A128: AGB_Kappa_Value_param3
A131: AGB_Input_concentration | B131: mg/L | C131: =(AGB_Pore_water_concentration) -> 1 | D131: 1 | E131: 1 | F131: 1 | G131: 1 | H131: 1 | I131: 0 | J131: 0

Sheet Contaminants
A1: CONTAMINANT INFORMATION
D3: Species1 | E3: Species2 | F3: Species3 | G3: Species4 | H3: Species5 | I3: Species6 | J3: Species7 | K3: Species8
A4: Source determinand names | C4: 6 | D4: Lead | E4: AmmN | F4: Nickel | G4: Chloride | H4: Toluene | I4: Cadmium
A7: Receptor Target Concentrations
B8: Name | D8: Values in mg/L
A9: Quality Standard 1 | B9: CompLimit | D9: 0.1 | E9: 0.5 | F9: 0.05 | G9: 250 | H9: 0.004 | I9: 0.0001
A10: Quality Standard 2
A11: Quality Standard 3
A12: Quality Standard 4
B13: Not Specified
A15: Generic Contaminant Properties
A17: Contaminants_Solubility | B17: mg/L
A18: Distribution | D18: constant | E18: constant | F18: constant | G18: constant | H18: constant | I18: constant | J18: constant | K18: constant
A19: Contaminants_Solubility_param1
A20: Contaminants_Solubility_param2
A21: Contaminants_Solubility_param3
A24: Contaminants_Henrys_Law_Constant | B24: [-]
A25: Distribution | D25: constant | E25: constant | F25: constant | G25: constant | H25: constant | I25: constant | J25: constant | K25: constant
A26: Contaminants_Henrys_Law_Constant_param1
A27: Contaminants_Henrys_Law_Constant_param2
A28: Contaminants_Henrys_Law_Constant_param3
A31: Contaminants_Organic_Carbon_Water_Partition_Coefficient_Koc | B31: L/kg | H31: 190
A32: Distribution | D32: constant | E32: constant | F32: constant | G32: constant | H32: constant | I32: constant | J32: constant | K32: constant
A33: Contaminants_Organic_Carbon_Water_Partition_Coefficient_Koc_param1
A34: Contaminants_Organic_Carbon_Water_Partition_Coefficient_Koc_param2
A35: Contaminants_Organic_Carbon_Water_Partition_Coefficient_Koc_param3
A38: Contaminants_Free_Water_Diffusion_Coefficient | B38: m2/s | D38: 4.46e-10 | E38: 2e-09 | F38: 1e-09 | G38: 3.23e-10 | H38: 3.6e-10 | I38: 7.17e-10
A39: Distribution | D39: constant | E39: constant | F39: constant | G39: constant | H39: constant | I39: constant | J39: constant | K39: constant
A40: Contaminants_Free_Water_Diffusion_Coefficient_param1
A41: Contaminants_Free_Water_Diffusion_Coefficient_param2
A42: Contaminants_Free_Water_Diffusion_Coefficient_param3

Sheet Hydrogeology
A1: HYDROGEOLOGICAL UNITS
A3: Hydrogeological Units | C3: AGB | D3: Lower Calc Grit
A5: Hydrogeology_Unit_Thickness | B5: m | C5: 1 | D5: 5.5
A6: Distribution | C6: constant | D6: constant | E6: constant | F6: constant | G6: constant | H6: constant | I6: constant | J6: constant | K6: constant | L6: constant | M6: constant | N6: constant | O6: constant | P6: constant | Q6: constant | R6: constant
A7: Hydrogeology_Unit_Thickness_param1
A8: Hydrogeology_Unit_Thickness_param2
A9: Hydrogeology_Unit_Thickness_param3
A12: Hydrogeology_Log_Hydraulic_Conductivity | B12: log(m/s)
A13: Distribution | C13: constant | D13: constant | E13: constant | F13: constant | G13: constant | H13: constant | I13: constant | J13: constant | K13: constant | L13: constant | M13: constant | N13: constant | O13: constant | P13: constant | Q13: constant | R13: constant
A14: Hydrogeology_Log_Hydraulic_Conductivity_param1
A15: Hydrogeology_Log_Hydraulic_Conductivity_param2
A16: Hydrogeology_Log_Hydraulic_Conductivity_param3
A19: Hydrogeology_Hydraulic_Conductivity | B19: m/s | C19: 1e-07 | D19: 1.6e-06 | E19: =POWER(10, (Hydrogeology_Log_Hydraulic_Conductivity)) -> 1 | F19: 1 | G19: 1 | H19: 1 | I19: 1 | J19: 1 | K19: 1 | L19: 1 | M19: 1 | N19: 1 | O19: 1 | P19: 1 | Q19: 1 | R19: 1
A20: Distribution | C20: constant | D20: constant | E20: constant | F20: constant | G20: constant | H20: constant | I20: constant | J20: constant | K20: constant | L20: constant | M20: constant | N20: constant | O20: constant | P20: constant | Q20: constant | R20: constant
A21: Hydrogeology_Hydraulic_Conductivity_param1
A22: Hydrogeology_Hydraulic_Conductivity_param2
A23: Hydrogeology_Hydraulic_Conductivity_param3
A26: Hydrogeology_Head | B26: m
A27: Distribution | C27: constant | D27: constant | E27: constant | F27: constant | G27: constant | H27: constant | I27: constant | J27: constant | K27: constant | L27: constant | M27: constant | N27: constant | O27: constant | P27: constant | Q27: constant | R27: constant
A28: Hydrogeology_Head_param1
A29: Hydrogeology_Head_param2
A30: Hydrogeology_Head_param3
A33: Hydrogeology_Hydraulic_Gradient | B33: [-] | C33: 1 | D33: 0.0044
A34: Distribution | C34: constant | D34: constant | E34: constant | F34: constant | G34: constant | H34: constant | I34: constant | J34: constant | K34: constant | L34: constant | M34: constant | N34: constant | O34: constant | P34: constant | Q34: constant | R34: constant
A35: Hydrogeology_Hydraulic_Gradient_param1
A36: Hydrogeology_Hydraulic_Gradient_param2
A37: Hydrogeology_Hydraulic_Gradient_param3
A40: Hydrogeology_Porosity | B40: [-] | C40: 0.4 | D40: 0.24
A41: Distribution | C41: constant | D41: constant | E41: constant | F41: constant | G41: constant | H41: constant | I41: constant | J41: constant | K41: constant | L41: constant | M41: constant | N41: constant | O41: constant | P41: constant | Q41: constant | R41: constant
A42: Hydrogeology_Porosity_param1
A43: Hydrogeology_Porosity_param2
A44: Hydrogeology_Porosity_param3
A47: Hydrogeology_Velocity | B47: m/s | C47: =(Hydrogeology_Hydraulic_Conductivity) * (Hydrogeology_Hydraulic_Gradient) / (Hydrogeology_Porosity) -> 2.5e-07 | D47: 2.933333333e-08
A48: Distribution | C48: constant | D48: constant | E48: constant | F48: constant | G48: constant | H48: constant | I48: constant | J48: constant | K48: constant | L48: constant | M48: constant | N48: constant | O48: constant | P48: constant | Q48: constant | R48: constant
A49: Hydrogeology_Velocity_param1
A50: Hydrogeology_Velocity_param2
A51: Hydrogeology_Velocity_param3
A54: Hydrogeology_Tortuosity | B54: [-] | C54: 5 | D54: 5
A55: Distribution | C55: constant | D55: constant | E55: constant | F55: constant | G55: constant | H55: constant | I55: constant | J55: constant | K55: constant | L55: constant | M55: constant | N55: constant | O55: constant | P55: constant | Q55: constant | R55: constant
A56: Hydrogeology_Tortuosity_param1
A57: Hydrogeology_Tortuosity_param2
A58: Hydrogeology_Tortuosity_param3

Sheet Attenuation
A1: ATTENUATION PARAMETERS
A3: Hydrogeological Units | C3: AGB | D3: Lower Calc Grit
A5: General properties
A7: Attenuation_Dry_bulk_density | B7: kg/m3 | C7: 1850 | D7: 2000
A8: Distribution | C8: constant | D8: constant | E8: constant | F8: constant | G8: constant | H8: constant | I8: constant | J8: constant | K8: constant | L8: constant | M8: constant | N8: constant | O8: constant | P8: constant | Q8: constant | R8: constant
A9: Attenuation_Dry_bulk_density_param1
A10: Attenuation_Dry_bulk_density_param2
A11: Attenuation_Dry_bulk_density_param3
A14: Attenuation_Fraction_organic_carbon | B14: [-] | C14: 0.05 | D14: 0.0004
A15: Distribution | C15: constant | D15: constant | E15: constant | F15: constant | G15: constant | H15: constant | I15: constant | J15: constant | K15: constant | L15: constant | M15: constant | N15: constant | O15: constant | P15: constant | Q15: constant | R15: constant
A16: Attenuation_Fraction_organic_carbon_param1
A17: Attenuation_Fraction_organic_carbon_param2
A18: Attenuation_Fraction_organic_carbon_param3
A22: Contaminant specific parameters
A24: =IF((Contaminants_Source_determinand_names Contaminants_Species1)=0,"Undefined",(Contaminants_Source_determinand_names Contaminants_Species1)) -> Lead
A26: Attenuation_Partition_Coefficient_Kd_Species_1 | B26: L/kg | C26: 2000 | D26: 2000 | E26: =(Attenuation_Fraction_organic_carbon) * (Contaminants_Organic_Carbon_Water_Partition_Coefficient_Koc Contaminants_Species1) -> 0 | F26: =(Attenuation_Fraction_organic_carbon) * (Contaminants_Organic_Carbon_Water_Partition_Coefficient_Koc Contaminants_Species1) -> 0 | G26: =(Attenuation_Fraction_organic_carbon) * (Contaminants_Organic_Carbon_Water_Partition_Coefficient_Koc Contaminants_Species1) -> 0 | H26: =(Attenuation_Fraction_organic_carbon) * (Contaminants_Organic_Carbon_Water_Partition_Coefficient_Koc Contaminants_Species1) -> 0 | I26: =(Attenuation_Fraction_organic_carbon) * (Contaminants_Organic_Carbon_Water_Partition_Coefficient_Koc Contaminants_Species1) -> 0 | J26: =(Attenuation_Fraction_organic_carbon) * (Contaminants_Organic_Carbon_Water_Partition_Coefficient_Koc Contaminants_Species1) -> 0 | K26: =(Attenuation_Fraction_organic_carbon) * (Contaminants_Organic_Carbon_Water_Partition_Coefficient_Koc Contaminants_Species1) -> 0 | L26: =(Attenuation_Fraction_organic_carbon) * (Contaminants_Organic_Carbon_Water_Partition_Coefficient_Koc Contaminants_Species1) -> 0 | M26: =(Attenuation_Fraction_organic_carbon) * (Contaminants_Organic_Carbon_Water_Partition_Coefficient_Koc Contaminants_Species1) -> 0 | N26: =(Attenuation_Fraction_organic_carbon) * (Contaminants_Organic_Carbon_Water_Partition_Coefficient_Koc Contaminants_Species1) -> 0 | O26: =(Attenuation_Fraction_organic_carbon) * (Contaminants_Organic_Carbon_Water_Partition_Coefficient_Koc Contaminants_Species1) -> 0 | P26: =(Attenuation_Fraction_organic_carbon) * (Contaminants_Organic_Carbon_Water_Partition_Coefficient_Koc Contaminants_Species1) -> 0 | Q26: =(Attenuation_Fraction_organic_carbon) * (Contaminants_Organic_Carbon_Water_Partition_Coefficient_Koc Contaminants_Species1) -> 0 | R26: =(Attenuation_Fraction_organic_carbon) * (Contaminants_Organic_Carbon_Water_Partition_Coefficient_Koc Contaminants_Species1) -> 0
A27: Distribution | C27: constant | D27: constant | E27: constant | F27: constant | G27: constant | H27: constant | I27: constant | J27: constant | K27: constant | L27: constant | M27: constant | N27: constant | O27: constant | P27: constant | Q27: constant | R27: constant
A28: Attenuation_Partition_Coefficient_Kd_Species_1_param1
A29: Attenuation_Partition_Coefficient_Kd_Species_1_param2
A30: Attenuation_Partition_Coefficient_Kd_Species_1_param3
A33: Attenuation_Retardation_Species_1 | B33: [-] | C33: =1 + 0.001 * (Attenuation_Partition_Coefficient_Kd_Species_1) * (Attenuation_Dry_bulk_density) / (Hydrogeology_Porosity Hydrogeology!$C:$C) -> 9251 | D33: =1 + 0.001 * (Attenuation_Partition_Coefficient_Kd_Species_1) * (Attenuation_Dry_bulk_density) / (Hydrogeology_Porosity Hydrogeology!$D:$D) -> 16667.66667 | E33: =1 + 0.001 * (Attenuation_Partition_Coefficient_Kd_Species_1) * (Attenuation_Dry_bulk_density) / (Hydrogeology_Porosity Hydrogeology!$E:$E) ->  | F33: =1 + 0.001 * (Attenuation_Partition_Coefficient_Kd_Species_1) * (Attenuation_Dry_bulk_density) / (Hydrogeology_Porosity Hydrogeology!$F:$F) ->  | G33: =1 + 0.001 * (Attenuation_Partition_Coefficient_Kd_Species_1) * (Attenuation_Dry_bulk_density) / (Hydrogeology_Porosity Hydrogeology!$G:$G) ->  | H33: =1 + 0.001 * (Attenuation_Partition_Coefficient_Kd_Species_1) * (Attenuation_Dry_bulk_density) / (Hydrogeology_Porosity Hydrogeology!$H:$H) ->  | I33: =1 + 0.001 * (Attenuation_Partition_Coefficient_Kd_Species_1) * (Attenuation_Dry_bulk_density) / (Hydrogeology_Porosity Hydrogeology!$I:$I) ->  | J33: =1 + 0.001 * (Attenuation_Partition_Coefficient_Kd_Species_1) * (Attenuation_Dry_bulk_density) / (Hydrogeology_Porosity Hydrogeology!$J:$J) ->  | K33: =1 + 0.001 * (Attenuation_Partition_Coefficient_Kd_Species_1) * (Attenuation_Dry_bulk_density) / (Hydrogeology_Porosity Hydrogeology!$K:$K) ->  | L33: =1 + 0.001 * (Attenuation_Partition_Coefficient_Kd_Species_1) * (Attenuation_Dry_bulk_density) / (Hydrogeology_Porosity Hydrogeology!$L:$L) ->  | M33: =1 + 0.001 * (Attenuation_Partition_Coefficient_Kd_Species_1) * (Attenuation_Dry_bulk_density) / (Hydrogeology_Porosity Hydrogeology!$M:$M) ->  | N33: =1 + 0.001 * (Attenuation_Partition_Coefficient_Kd_Species_1) * (Attenuation_Dry_bulk_density) / (Hydrogeology_Porosity Hydrogeology!$N:$N) ->  | O33: =1 + 0.001 * (Attenuation_Partition_Coefficient_Kd_Species_1) * (Attenuation_Dry_bulk_density) / (Hydrogeology_Porosity Hydrogeology!$O:$O) ->  | P33: =1 + 0.001 * (Attenuation_Partition_Coefficient_Kd_Species_1) * (Attenuation_Dry_bulk_density) / (Hydrogeology_Porosity Hydrogeology!$P:$P) ->  | Q33: =1 + 0.001 * (Attenuation_Partition_Coefficient_Kd_Species_1) * (Attenuation_Dry_bulk_density) / (Hydrogeology_Porosity Hydrogeology!$Q:$Q) ->  | R33: =1 + 0.001 * (Attenuation_Partition_Coefficient_Kd_Species_1) * (Attenuation_Dry_bulk_density) / (Hydrogeology_Porosity Hydrogeology!$R:$R) -> 
A34: Distribution | C34: constant | D34: constant | E34: constant | F34: constant | G34: constant | H34: constant | I34: constant | J34: constant | K34: constant | L34: constant | M34: constant | N34: constant | O34: constant | P34: constant | Q34: constant | R34: constant
A35: Attenuation_Retardation_Species_1_param1
A36: Attenuation_Retardation_Species_1_param2
A37: Attenuation_Retardation_Species_1_param3
A40: Attenuation_Half_Life_Species_1 | B40: days | C40: No Decay | D40: No Decay | E40: No Decay | F40: No Decay | G40: No Decay | H40: No Decay | I40: No Decay | J40: No Decay | K40: No Decay | L40: No Decay | M40: No Decay | N40: No Decay | O40: No Decay | P40: No Decay | Q40: No Decay | R40: No Decay
A41: Distribution | C41: constant | D41: constant | E41: constant | F41: constant | G41: constant | H41: constant | I41: constant | J41: constant | K41: constant | L41: constant | M41: constant | N41: constant | O41: constant | P41: constant | Q41: constant | R41: constant
A42: Attenuation_Half_Life_Species_1_param1
A43: Attenuation_Half_Life_Species_1_param2
A44: Attenuation_Half_Life_Species_1_param3
A47: Attenuation_Decay_Coefficient_Species_1 | B47: 1/s | C47: =IF((Attenuation_Half_Life_Species_1)<>"No Decay", LN(2) / ((Attenuation_Half_Life_Species_1) * s_per_day),0) -> 0 | D47: 0 | E47: 0 | F47: 0 | G47: 0 | H47: 0 | I47: 0 | J47: 0 | K47: 0 | L47: 0 | M47: 0 | N47: 0 | O47: 0 | P47: 0 | Q47: 0 | R47: 0
A48: Distribution | C48: constant | D48: constant | E48: constant | F48: constant | G48: constant | H48: constant | I48: constant | J48: constant | K48: constant | L48: constant | M48: constant | N48: constant | O48: constant | P48: constant | Q48: constant | R48: constant
A49: Attenuation_Decay_Coefficient_Species_1_param1
A50: Attenuation_Decay_Coefficient_Species_1_param2
A51: Attenuation_Decay_Coefficient_Species_1_param3
A54: =IF((Contaminants_Source_determinand_names Contaminants_Species2)=0,"Undefined",(Contaminants_Source_determinand_names Contaminants_Species2)) -> AmmN
A56: Attenuation_Partition_Coefficient_Kd_Species_2 | B56: L/kg | C56: 0.5 | D56: 0.5 | E56: =(Attenuation_Fraction_organic_carbon) * (Contaminants_Organic_Carbon_Water_Partition_Coefficient_Koc Contaminants_Species2) -> 0 | F56: =(Attenuation_Fraction_organic_carbon) * (Contaminants_Organic_Carbon_Water_Partition_Coefficient_Koc Contaminants_Species2) -> 0 | G56: =(Attenuation_Fraction_organic_carbon) * (Contaminants_Organic_Carbon_Water_Partition_Coefficient_Koc Contaminants_Species2) -> 0 | H56: =(Attenuation_Fraction_organic_carbon) * (Contaminants_Organic_Carbon_Water_Partition_Coefficient_Koc Contaminants_Species2) -> 0 | I56: =(Attenuation_Fraction_organic_carbon) * (Contaminants_Organic_Carbon_Water_Partition_Coefficient_Koc Contaminants_Species2) -> 0 | J56: =(Attenuation_Fraction_organic_carbon) * (Contaminants_Organic_Carbon_Water_Partition_Coefficient_Koc Contaminants_Species2) -> 0 | K56: =(Attenuation_Fraction_organic_carbon) * (Contaminants_Organic_Carbon_Water_Partition_Coefficient_Koc Contaminants_Species2) -> 0 | L56: =(Attenuation_Fraction_organic_carbon) * (Contaminants_Organic_Carbon_Water_Partition_Coefficient_Koc Contaminants_Species2) -> 0 | M56: =(Attenuation_Fraction_organic_carbon) * (Contaminants_Organic_Carbon_Water_Partition_Coefficient_Koc Contaminants_Species2) -> 0 | N56: =(Attenuation_Fraction_organic_carbon) * (Contaminants_Organic_Carbon_Water_Partition_Coefficient_Koc Contaminants_Species2) -> 0 | O56: =(Attenuation_Fraction_organic_carbon) * (Contaminants_Organic_Carbon_Water_Partition_Coefficient_Koc Contaminants_Species2) -> 0 | P56: =(Attenuation_Fraction_organic_carbon) * (Contaminants_Organic_Carbon_Water_Partition_Coefficient_Koc Contaminants_Species2) -> 0 | Q56: =(Attenuation_Fraction_organic_carbon) * (Contaminants_Organic_Carbon_Water_Partition_Coefficient_Koc Contaminants_Species2) -> 0 | R56: =(Attenuation_Fraction_organic_carbon) * (Contaminants_Organic_Carbon_Water_Partition_Coefficient_Koc Contaminants_Species2) -> 0
A57: Distribution | C57: constant | D57: constant | E57: constant | F57: constant | G57: constant | H57: constant | I57: constant | J57: constant | K57: constant | L57: constant | M57: constant | N57: constant | O57: constant | P57: constant | Q57: constant | R57: constant
A58: Attenuation_Partition_Coefficient_Kd_Species_2_param1
A59: Attenuation_Partition_Coefficient_Kd_Species_2_param2
A60: Attenuation_Partition_Coefficient_Kd_Species_2_param3
A63: Attenuation_Retardation_Species_2 | B63: [-] | C63: =1 + 0.001 * (Attenuation_Partition_Coefficient_Kd_Species_2) * (Attenuation_Dry_bulk_density) / (Hydrogeology_Porosity Hydrogeology!$C:$C) -> 3.3125 | D63: =1 + 0.001 * (Attenuation_Partition_Coefficient_Kd_Species_2) * (Attenuation_Dry_bulk_density) / (Hydrogeology_Porosity Hydrogeology!$D:$D) -> 5.166666667 | E63: =1 + 0.001 * (Attenuation_Partition_Coefficient_Kd_Species_2) * (Attenuation_Dry_bulk_density) / (Hydrogeology_Porosity Hydrogeology!$E:$E) ->  | F63: =1 + 0.001 * (Attenuation_Partition_Coefficient_Kd_Species_2) * (Attenuation_Dry_bulk_density) / (Hydrogeology_Porosity Hydrogeology!$F:$F) ->  | G63: =1 + 0.001 * (Attenuation_Partition_Coefficient_Kd_Species_2) * (Attenuation_Dry_bulk_density) / (Hydrogeology_Porosity Hydrogeology!$G:$G) ->  | H63: =1 + 0.001 * (Attenuation_Partition_Coefficient_Kd_Species_2) * (Attenuation_Dry_bulk_density) / (Hydrogeology_Porosity Hydrogeology!$H:$H) ->  | I63: =1 + 0.001 * (Attenuation_Partition_Coefficient_Kd_Species_2) * (Attenuation_Dry_bulk_density) / (Hydrogeology_Porosity Hydrogeology!$I:$I) ->  | J63: =1 + 0.001 * (Attenuation_Partition_Coefficient_Kd_Species_2) * (Attenuation_Dry_bulk_density) / (Hydrogeology_Porosity Hydrogeology!$J:$J) ->  | K63: =1 + 0.001 * (Attenuation_Partition_Coefficient_Kd_Species_2) * (Attenuation_Dry_bulk_density) / (Hydrogeology_Porosity Hydrogeology!$K:$K) ->  | L63: =1 + 0.001 * (Attenuation_Partition_Coefficient_Kd_Species_2) * (Attenuation_Dry_bulk_density) / (Hydrogeology_Porosity Hydrogeology!$L:$L) ->  | M63: =1 + 0.001 * (Attenuation_Partition_Coefficient_Kd_Species_2) * (Attenuation_Dry_bulk_density) / (Hydrogeology_Porosity Hydrogeology!$M:$M) ->  | N63: =1 + 0.001 * (Attenuation_Partition_Coefficient_Kd_Species_2) * (Attenuation_Dry_bulk_density) / (Hydrogeology_Porosity Hydrogeology!$N:$N) ->  | O63: =1 + 0.001 * (Attenuation_Partition_Coefficient_Kd_Species_2) * (Attenuation_Dry_bulk_density) / (Hydrogeology_Porosity Hydrogeology!$O:$O) ->  | P63: =1 + 0.001 * (Attenuation_Partition_Coefficient_Kd_Species_2) * (Attenuation_Dry_bulk_density) / (Hydrogeology_Porosity Hydrogeology!$P:$P) ->  | Q63: =1 + 0.001 * (Attenuation_Partition_Coefficient_Kd_Species_2) * (Attenuation_Dry_bulk_density) / (Hydrogeology_Porosity Hydrogeology!$Q:$Q) ->  | R63: =1 + 0.001 * (Attenuation_Partition_Coefficient_Kd_Species_2) * (Attenuation_Dry_bulk_density) / (Hydrogeology_Porosity Hydrogeology!$R:$R) -> 
A64: Distribution | C64: constant | D64: constant | E64: constant | F64: constant | G64: constant | H64: constant | I64: constant | J64: constant | K64: constant | L64: constant | M64: constant | N64: constant | O64: constant | P64: constant | Q64: constant | R64: constant
A65: Attenuation_Retardation_Species_2_param1
A66: Attenuation_Retardation_Species_2_param2
A67: Attenuation_Retardation_Species_2_param3
A70: Attenuation_Half_Life_Species_2 | B70: days | C70: 2737 | D70: 2737 | E70: No Decay | F70: No Decay | G70: No Decay | H70: No Decay | I70: No Decay | J70: No Decay | K70: No Decay | L70: No Decay | M70: No Decay | N70: No Decay | O70: No Decay | P70: No Decay | Q70: No Decay | R70: No Decay
A71: Distribution | C71: constant | D71: constant | E71: constant | F71: constant | G71: constant | H71: constant | I71: constant | J71: constant | K71: constant | L71: constant | M71: constant | N71: constant | O71: constant | P71: constant | Q71: constant | R71: constant
A72: Attenuation_Half_Life_Species_2_param1
A73: Attenuation_Half_Life_Species_2_param2
A74: Attenuation_Half_Life_Species_2_param3
A77: Attenuation_Decay_Coefficient_Species_2 | B77: 1/s | C77: =IF((Attenuation_Half_Life_Species_2)<>"No Decay", LN(2) / ((Attenuation_Half_Life_Species_2) * s_per_day),0) -> 2.931142423e-09 | D77: 2.931142423e-09 | E77: 0 | F77: 0 | G77: 0 | H77: 0 | I77: 0 | J77: 0 | K77: 0 | L77: 0 | M77: 0 | N77: 0 | O77: 0 | P77: 0 | Q77: 0 | R77: 0
A78: Distribution | C78: constant | D78: constant | E78: constant | F78: constant | G78: constant | H78: constant | I78: constant | J78: constant | K78: constant | L78: constant | M78: constant | N78: constant | O78: constant | P78: constant | Q78: constant | R78: constant
A79: Attenuation_Decay_Coefficient_Species_2_param1
A80: Attenuation_Decay_Coefficient_Species_2_param2
A81: Attenuation_Decay_Coefficient_Species_2_param3
A84: =IF((Contaminants_Source_determinand_names Contaminants_Species3)=0,"Undefined",(Contaminants_Source_determinand_names Contaminants_Species3)) -> Nickel
A86: Attenuation_Partition_Coefficient_Kd_Species_3 | B86: L/kg | C86: 20 | D86: 20 | E86: =(Attenuation_Fraction_organic_carbon) * (Contaminants_Organic_Carbon_Water_Partition_Coefficient_Koc Contaminants_Species3) -> 0 | F86: =(Attenuation_Fraction_organic_carbon) * (Contaminants_Organic_Carbon_Water_Partition_Coefficient_Koc Contaminants_Species3) -> 0 | G86: =(Attenuation_Fraction_organic_carbon) * (Contaminants_Organic_Carbon_Water_Partition_Coefficient_Koc Contaminants_Species3) -> 0 | H86: =(Attenuation_Fraction_organic_carbon) * (Contaminants_Organic_Carbon_Water_Partition_Coefficient_Koc Contaminants_Species3) -> 0 | I86: =(Attenuation_Fraction_organic_carbon) * (Contaminants_Organic_Carbon_Water_Partition_Coefficient_Koc Contaminants_Species3) -> 0 | J86: =(Attenuation_Fraction_organic_carbon) * (Contaminants_Organic_Carbon_Water_Partition_Coefficient_Koc Contaminants_Species3) -> 0 | K86: =(Attenuation_Fraction_organic_carbon) * (Contaminants_Organic_Carbon_Water_Partition_Coefficient_Koc Contaminants_Species3) -> 0 | L86: =(Attenuation_Fraction_organic_carbon) * (Contaminants_Organic_Carbon_Water_Partition_Coefficient_Koc Contaminants_Species3) -> 0 | M86: =(Attenuation_Fraction_organic_carbon) * (Contaminants_Organic_Carbon_Water_Partition_Coefficient_Koc Contaminants_Species3) -> 0 | N86: =(Attenuation_Fraction_organic_carbon) * (Contaminants_Organic_Carbon_Water_Partition_Coefficient_Koc Contaminants_Species3) -> 0 | O86: =(Attenuation_Fraction_organic_carbon) * (Contaminants_Organic_Carbon_Water_Partition_Coefficient_Koc Contaminants_Species3) -> 0 | P86: =(Attenuation_Fraction_organic_carbon) * (Contaminants_Organic_Carbon_Water_Partition_Coefficient_Koc Contaminants_Species3) -> 0 | Q86: =(Attenuation_Fraction_organic_carbon) * (Contaminants_Organic_Carbon_Water_Partition_Coefficient_Koc Contaminants_Species3) -> 0 | R86: =(Attenuation_Fraction_organic_carbon) * (Contaminants_Organic_Carbon_Water_Partition_Coefficient_Koc Contaminants_Species3) -> 0
A87: Distribution | C87: constant | D87: constant | E87: constant | F87: constant | G87: constant | H87: constant | I87: constant | J87: constant | K87: constant | L87: constant | M87: constant | N87: constant | O87: constant | P87: constant | Q87: constant | R87: constant
A88: Attenuation_Partition_Coefficient_Kd_Species_3_param1
A89: Attenuation_Partition_Coefficient_Kd_Species_3_param2
A90: Attenuation_Partition_Coefficient_Kd_Species_3_param3
A93: Attenuation_Retardation_Species_3 | B93: [-] | C93: =1 + 0.001 * (Attenuation_Partition_Coefficient_Kd_Species_3) * (Attenuation_Dry_bulk_density) / (Hydrogeology_Porosity Hydrogeology!$C:$C) -> 93.5 | D93: =1 + 0.001 * (Attenuation_Partition_Coefficient_Kd_Species_3) * (Attenuation_Dry_bulk_density) / (Hydrogeology_Porosity Hydrogeology!$D:$D) -> 167.6666667 | E93: =1 + 0.001 * (Attenuation_Partition_Coefficient_Kd_Species_3) * (Attenuation_Dry_bulk_density) / (Hydrogeology_Porosity Hydrogeology!$E:$E) ->  | F93: =1 + 0.001 * (Attenuation_Partition_Coefficient_Kd_Species_3) * (Attenuation_Dry_bulk_density) / (Hydrogeology_Porosity Hydrogeology!$F:$F) ->  | G93: =1 + 0.001 * (Attenuation_Partition_Coefficient_Kd_Species_3) * (Attenuation_Dry_bulk_density) / (Hydrogeology_Porosity Hydrogeology!$G:$G) ->  | H93: =1 + 0.001 * (Attenuation_Partition_Coefficient_Kd_Species_3) * (Attenuation_Dry_bulk_density) / (Hydrogeology_Porosity Hydrogeology!$H:$H) ->  | I93: =1 + 0.001 * (Attenuation_Partition_Coefficient_Kd_Species_3) * (Attenuation_Dry_bulk_density) / (Hydrogeology_Porosity Hydrogeology!$I:$I) ->  | J93: =1 + 0.001 * (Attenuation_Partition_Coefficient_Kd_Species_3) * (Attenuation_Dry_bulk_density) / (Hydrogeology_Porosity Hydrogeology!$J:$J) ->  | K93: =1 + 0.001 * (Attenuation_Partition_Coefficient_Kd_Species_3) * (Attenuation_Dry_bulk_density) / (Hydrogeology_Porosity Hydrogeology!$K:$K) ->  | L93: =1 + 0.001 * (Attenuation_Partition_Coefficient_Kd_Species_3) * (Attenuation_Dry_bulk_density) / (Hydrogeology_Porosity Hydrogeology!$L:$L) ->  | M93: =1 + 0.001 * (Attenuation_Partition_Coefficient_Kd_Species_3) * (Attenuation_Dry_bulk_density) / (Hydrogeology_Porosity Hydrogeology!$M:$M) ->  | N93: =1 + 0.001 * (Attenuation_Partition_Coefficient_Kd_Species_3) * (Attenuation_Dry_bulk_density) / (Hydrogeology_Porosity Hydrogeology!$N:$N) ->  | O93: =1 + 0.001 * (Attenuation_Partition_Coefficient_Kd_Species_3) * (Attenuation_Dry_bulk_density) / (Hydrogeology_Porosity Hydrogeology!$O:$O) ->  | P93: =1 + 0.001 * (Attenuation_Partition_Coefficient_Kd_Species_3) * (Attenuation_Dry_bulk_density) / (Hydrogeology_Porosity Hydrogeology!$P:$P) ->  | Q93: =1 + 0.001 * (Attenuation_Partition_Coefficient_Kd_Species_3) * (Attenuation_Dry_bulk_density) / (Hydrogeology_Porosity Hydrogeology!$Q:$Q) ->  | R93: =1 + 0.001 * (Attenuation_Partition_Coefficient_Kd_Species_3) * (Attenuation_Dry_bulk_density) / (Hydrogeology_Porosity Hydrogeology!$R:$R) -> 
A94: Distribution | C94: constant | D94: constant | E94: constant | F94: constant | G94: constant | H94: constant | I94: constant | J94: constant | K94: constant | L94: constant | M94: constant | N94: constant | O94: constant | P94: constant | Q94: constant | R94: constant
A95: Attenuation_Retardation_Species_3_param1
A96: Attenuation_Retardation_Species_3_param2
A97: Attenuation_Retardation_Species_3_param3
A100: Attenuation_Half_Life_Species_3 | B100: days | C100: No Decay | D100: No Decay | E100: No Decay | F100: No Decay | G100: No Decay | H100: No Decay | I100: No Decay | J100: No Decay | K100: No Decay | L100: No Decay | M100: No Decay | N100: No Decay | O100: No Decay | P100: No Decay | Q100: No Decay | R100: No Decay
A101: Distribution | C101: constant | D101: constant | E101: constant | F101: constant | G101: constant | H101: constant | I101: constant | J101: constant | K101: constant | L101: constant | M101: constant | N101: constant | O101: constant | P101: constant | Q101: constant | R101: constant
A102: Attenuation_Half_Life_Species_3_param1
A103: Attenuation_Half_Life_Species_3_param2
A104: Attenuation_Half_Life_Species_3_param3
A107: Attenuation_Decay_Coefficient_Species_3 | B107: 1/s | C107: =IF((Attenuation_Half_Life_Species_3)<>"No Decay", LN(2) / ((Attenuation_Half_Life_Species_3) * s_per_day),0) -> 0 | D107: 0 | E107: 0 | F107: 0 | G107: 0 | H107: 0 | I107: 0 | J107: 0 | K107: 0 | L107: 0 | M107: 0 | N107: 0 | O107: 0 | P107: 0 | Q107: 0 | R107: 0
A108: Distribution | C108: constant | D108: constant | E108: constant | F108: constant | G108: constant | H108: constant | I108: constant | J108: constant | K108: constant | L108: constant | M108: constant | N108: constant | O108: constant | P108: constant | Q108: constant | R108: constant
A109: Attenuation_Decay_Coefficient_Species_3_param1
A110: Attenuation_Decay_Coefficient_Species_3_param2
A111: Attenuation_Decay_Coefficient_Species_3_param3
A114: =IF((Contaminants_Source_determinand_names Contaminants_Species4)=0,"Undefined",(Contaminants_Source_determinand_names Contaminants_Species4)) -> Chloride
A116: Attenuation_Partition_Coefficient_Kd_Species_4 | B116: L/kg | C116: =(Attenuation_Fraction_organic_carbon) * (Contaminants_Organic_Carbon_Water_Partition_Coefficient_Koc Contaminants_Species4) -> 0 | D116: =(Attenuation_Fraction_organic_carbon) * (Contaminants_Organic_Carbon_Water_Partition_Coefficient_Koc Contaminants_Species4) -> 0 | E116: =(Attenuation_Fraction_organic_carbon) * (Contaminants_Organic_Carbon_Water_Partition_Coefficient_Koc Contaminants_Species4) -> 0 | F116: =(Attenuation_Fraction_organic_carbon) * (Contaminants_Organic_Carbon_Water_Partition_Coefficient_Koc Contaminants_Species4) -> 0 | G116: =(Attenuation_Fraction_organic_carbon) * (Contaminants_Organic_Carbon_Water_Partition_Coefficient_Koc Contaminants_Species4) -> 0 | H116: =(Attenuation_Fraction_organic_carbon) * (Contaminants_Organic_Carbon_Water_Partition_Coefficient_Koc Contaminants_Species4) -> 0 | I116: =(Attenuation_Fraction_organic_carbon) * (Contaminants_Organic_Carbon_Water_Partition_Coefficient_Koc Contaminants_Species4) -> 0 | J116: =(Attenuation_Fraction_organic_carbon) * (Contaminants_Organic_Carbon_Water_Partition_Coefficient_Koc Contaminants_Species4) -> 0 | K116: =(Attenuation_Fraction_organic_carbon) * (Contaminants_Organic_Carbon_Water_Partition_Coefficient_Koc Contaminants_Species4) -> 0 | L116: =(Attenuation_Fraction_organic_carbon) * (Contaminants_Organic_Carbon_Water_Partition_Coefficient_Koc Contaminants_Species4) -> 0 | M116: =(Attenuation_Fraction_organic_carbon) * (Contaminants_Organic_Carbon_Water_Partition_Coefficient_Koc Contaminants_Species4) -> 0 | N116: =(Attenuation_Fraction_organic_carbon) * (Contaminants_Organic_Carbon_Water_Partition_Coefficient_Koc Contaminants_Species4) -> 0 | O116: =(Attenuation_Fraction_organic_carbon) * (Contaminants_Organic_Carbon_Water_Partition_Coefficient_Koc Contaminants_Species4) -> 0 | P116: =(Attenuation_Fraction_organic_carbon) * (Contaminants_Organic_Carbon_Water_Partition_Coefficient_Koc Contaminants_Species4) -> 0 | Q116: =(Attenuation_Fraction_organic_carbon) * (Contaminants_Organic_Carbon_Water_Partition_Coefficient_Koc Contaminants_Species4) -> 0 | R116: =(Attenuation_Fraction_organic_carbon) * (Contaminants_Organic_Carbon_Water_Partition_Coefficient_Koc Contaminants_Species4) -> 0
A117: Distribution | C117: constant | D117: constant | E117: constant | F117: constant | G117: constant | H117: constant | I117: constant | J117: constant | K117: constant | L117: constant | M117: constant | N117: constant | O117: constant | P117: constant | Q117: constant | R117: constant
A118: Attenuation_Partition_Coefficient_Kd_Species_4_param1
A119: Attenuation_Partition_Coefficient_Kd_Species_4_param2
A120: Attenuation_Partition_Coefficient_Kd_Species_4_param3
A123: Attenuation_Retardation_Species_4 | B123: [-] | C123: =1 + 0.001 * (Attenuation_Partition_Coefficient_Kd_Species_4) * (Attenuation_Dry_bulk_density) / (Hydrogeology_Porosity Hydrogeology!$C:$C) -> 1 | D123: =1 + 0.001 * (Attenuation_Partition_Coefficient_Kd_Species_4) * (Attenuation_Dry_bulk_density) / (Hydrogeology_Porosity Hydrogeology!$D:$D) -> 1 | E123: =1 + 0.001 * (Attenuation_Partition_Coefficient_Kd_Species_4) * (Attenuation_Dry_bulk_density) / (Hydrogeology_Porosity Hydrogeology!$E:$E) ->  | F123: =1 + 0.001 * (Attenuation_Partition_Coefficient_Kd_Species_4) * (Attenuation_Dry_bulk_density) / (Hydrogeology_Porosity Hydrogeology!$F:$F) ->  | G123: =1 + 0.001 * (Attenuation_Partition_Coefficient_Kd_Species_4) * (Attenuation_Dry_bulk_density) / (Hydrogeology_Porosity Hydrogeology!$G:$G) ->  | H123: =1 + 0.001 * (Attenuation_Partition_Coefficient_Kd_Species_4) * (Attenuation_Dry_bulk_density) / (Hydrogeology_Porosity Hydrogeology!$H:$H) ->  | I123: =1 + 0.001 * (Attenuation_Partition_Coefficient_Kd_Species_4) * (Attenuation_Dry_bulk_density) / (Hydrogeology_Porosity Hydrogeology!$I:$I) ->  | J123: =1 + 0.001 * (Attenuation_Partition_Coefficient_Kd_Species_4) * (Attenuation_Dry_bulk_density) / (Hydrogeology_Porosity Hydrogeology!$J:$J) ->  | K123: =1 + 0.001 * (Attenuation_Partition_Coefficient_Kd_Species_4) * (Attenuation_Dry_bulk_density) / (Hydrogeology_Porosity Hydrogeology!$K:$K) ->  | L123: =1 + 0.001 * (Attenuation_Partition_Coefficient_Kd_Species_4) * (Attenuation_Dry_bulk_density) / (Hydrogeology_Porosity Hydrogeology!$L:$L) ->  | M123: =1 + 0.001 * (Attenuation_Partition_Coefficient_Kd_Species_4) * (Attenuation_Dry_bulk_density) / (Hydrogeology_Porosity Hydrogeology!$M:$M) ->  | N123: =1 + 0.001 * (Attenuation_Partition_Coefficient_Kd_Species_4) * (Attenuation_Dry_bulk_density) / (Hydrogeology_Porosity Hydrogeology!$N:$N) ->  | O123: =1 + 0.001 * (Attenuation_Partition_Coefficient_Kd_Species_4) * (Attenuation_Dry_bulk_density) / (Hydrogeology_Porosity Hydrogeology!$O:$O) ->  | P123: =1 + 0.001 * (Attenuation_Partition_Coefficient_Kd_Species_4) * (Attenuation_Dry_bulk_density) / (Hydrogeology_Porosity Hydrogeology!$P:$P) ->  | Q123: =1 + 0.001 * (Attenuation_Partition_Coefficient_Kd_Species_4) * (Attenuation_Dry_bulk_density) / (Hydrogeology_Porosity Hydrogeology!$Q:$Q) ->  | R123: =1 + 0.001 * (Attenuation_Partition_Coefficient_Kd_Species_4) * (Attenuation_Dry_bulk_density) / (Hydrogeology_Porosity Hydrogeology!$R:$R) -> 
A124: Distribution | C124: constant | D124: constant | E124: constant | F124: constant | G124: constant | H124: constant | I124: constant | J124: constant | K124: constant | L124: constant | M124: constant | N124: constant | O124: constant | P124: constant | Q124: constant | R124: constant
A125: Attenuation_Retardation_Species_4_param1
A126: Attenuation_Retardation_Species_4_param2
A127: Attenuation_Retardation_Species_4_param3
A130: Attenuation_Half_Life_Species_4 | B130: days | C130: No Decay | D130: No Decay | E130: No Decay | F130: No Decay | G130: No Decay | H130: No Decay | I130: No Decay | J130: No Decay | K130: No Decay | L130: No Decay | M130: No Decay | N130: No Decay | O130: No Decay | P130: No Decay | Q130: No Decay | R130: No Decay
A131: Distribution | C131: constant | D131: constant | E131: constant | F131: constant | G131: constant | H131: constant | I131: constant | J131: constant | K131: constant | L131: constant | M131: constant | N131: constant | O131: constant | P131: constant | Q131: constant | R131: constant
A132: Attenuation_Half_Life_Species_4_param1
A133: Attenuation_Half_Life_Species_4_param2
A134: Attenuation_Half_Life_Species_4_param3
A137: Attenuation_Decay_Coefficient_Species_4 | B137: 1/s | C137: =IF((Attenuation_Half_Life_Species_4)<>"No Decay", LN(2) / ((Attenuation_Half_Life_Species_4) * s_per_day),0) -> 0 | D137: 0 | E137: 0 | F137: 0 | G137: 0 | H137: 0 | I137: 0 | J137: 0 | K137: 0 | L137: 0 | M137: 0 | N137: 0 | O137: 0 | P137: 0 | Q137: 0 | R137: 0
A138: Distribution | C138: constant | D138: constant | E138: constant | F138: constant | G138: constant | H138: constant | I138: constant | J138: constant | K138: constant | L138: constant | M138: constant | N138: constant | O138: constant | P138: constant | Q138: constant | R138: constant
A139: Attenuation_Decay_Coefficient_Species_4_param1
A140: Attenuation_Decay_Coefficient_Species_4_param2
A141: Attenuation_Decay_Coefficient_Species_4_param3
A144: =IF((Contaminants_Source_determinand_names Contaminants_Species5)=0,"Undefined",(Contaminants_Source_determinand_names Contaminants_Species5)) -> Toluene
A146: Attenuation_Partition_Coefficient_Kd_Species_5 | B146: L/kg | C146: =(Attenuation_Fraction_organic_carbon) * (Contaminants_Organic_Carbon_Water_Partition_Coefficient_Koc Contaminants_Species5) -> 9.5 | D146: =(Attenuation_Fraction_organic_carbon) * (Contaminants_Organic_Carbon_Water_Partition_Coefficient_Koc Contaminants_Species5) -> 0.076 | E146: =(Attenuation_Fraction_organic_carbon) * (Contaminants_Organic_Carbon_Water_Partition_Coefficient_Koc Contaminants_Species5) -> 0 | F146: =(Attenuation_Fraction_organic_carbon) * (Contaminants_Organic_Carbon_Water_Partition_Coefficient_Koc Contaminants_Species5) -> 0 | G146: =(Attenuation_Fraction_organic_carbon) * (Contaminants_Organic_Carbon_Water_Partition_Coefficient_Koc Contaminants_Species5) -> 0 | H146: =(Attenuation_Fraction_organic_carbon) * (Contaminants_Organic_Carbon_Water_Partition_Coefficient_Koc Contaminants_Species5) -> 0 | I146: =(Attenuation_Fraction_organic_carbon) * (Contaminants_Organic_Carbon_Water_Partition_Coefficient_Koc Contaminants_Species5) -> 0 | J146: =(Attenuation_Fraction_organic_carbon) * (Contaminants_Organic_Carbon_Water_Partition_Coefficient_Koc Contaminants_Species5) -> 0 | K146: =(Attenuation_Fraction_organic_carbon) * (Contaminants_Organic_Carbon_Water_Partition_Coefficient_Koc Contaminants_Species5) -> 0 | L146: =(Attenuation_Fraction_organic_carbon) * (Contaminants_Organic_Carbon_Water_Partition_Coefficient_Koc Contaminants_Species5) -> 0 | M146: =(Attenuation_Fraction_organic_carbon) * (Contaminants_Organic_Carbon_Water_Partition_Coefficient_Koc Contaminants_Species5) -> 0 | N146: =(Attenuation_Fraction_organic_carbon) * (Contaminants_Organic_Carbon_Water_Partition_Coefficient_Koc Contaminants_Species5) -> 0 | O146: =(Attenuation_Fraction_organic_carbon) * (Contaminants_Organic_Carbon_Water_Partition_Coefficient_Koc Contaminants_Species5) -> 0 | P146: =(Attenuation_Fraction_organic_carbon) * (Contaminants_Organic_Carbon_Water_Partition_Coefficient_Koc Contaminants_Species5) -> 0 | Q146: =(Attenuation_Fraction_organic_carbon) * (Contaminants_Organic_Carbon_Water_Partition_Coefficient_Koc Contaminants_Species5) -> 0 | R146: =(Attenuation_Fraction_organic_carbon) * (Contaminants_Organic_Carbon_Water_Partition_Coefficient_Koc Contaminants_Species5) -> 0
A147: Distribution | C147: constant | D147: constant | E147: constant | F147: constant | G147: constant | H147: constant | I147: constant | J147: constant | K147: constant | L147: constant | M147: constant | N147: constant | O147: constant | P147: constant | Q147: constant | R147: constant
A148: Attenuation_Partition_Coefficient_Kd_Species_5_param1
A149: Attenuation_Partition_Coefficient_Kd_Species_5_param2
A150: Attenuation_Partition_Coefficient_Kd_Species_5_param3
A153: Attenuation_Retardation_Species_5 | B153: [-] | C153: =1 + 0.001 * (Attenuation_Partition_Coefficient_Kd_Species_5) * (Attenuation_Dry_bulk_density) / (Hydrogeology_Porosity Hydrogeology!$C:$C) -> 44.9375 | D153: =1 + 0.001 * (Attenuation_Partition_Coefficient_Kd_Species_5) * (Attenuation_Dry_bulk_density) / (Hydrogeology_Porosity Hydrogeology!$D:$D) -> 1.633333333 | E153: =1 + 0.001 * (Attenuation_Partition_Coefficient_Kd_Species_5) * (Attenuation_Dry_bulk_density) / (Hydrogeology_Porosity Hydrogeology!$E:$E) ->  | F153: =1 + 0.001 * (Attenuation_Partition_Coefficient_Kd_Species_5) * (Attenuation_Dry_bulk_density) / (Hydrogeology_Porosity Hydrogeology!$F:$F) ->  | G153: =1 + 0.001 * (Attenuation_Partition_Coefficient_Kd_Species_5) * (Attenuation_Dry_bulk_density) / (Hydrogeology_Porosity Hydrogeology!$G:$G) ->  | H153: =1 + 0.001 * (Attenuation_Partition_Coefficient_Kd_Species_5) * (Attenuation_Dry_bulk_density) / (Hydrogeology_Porosity Hydrogeology!$H:$H) ->  | I153: =1 + 0.001 * (Attenuation_Partition_Coefficient_Kd_Species_5) * (Attenuation_Dry_bulk_density) / (Hydrogeology_Porosity Hydrogeology!$I:$I) ->  | J153: =1 + 0.001 * (Attenuation_Partition_Coefficient_Kd_Species_5) * (Attenuation_Dry_bulk_density) / (Hydrogeology_Porosity Hydrogeology!$J:$J) ->  | K153: =1 + 0.001 * (Attenuation_Partition_Coefficient_Kd_Species_5) * (Attenuation_Dry_bulk_density) / (Hydrogeology_Porosity Hydrogeology!$K:$K) ->  | L153: =1 + 0.001 * (Attenuation_Partition_Coefficient_Kd_Species_5) * (Attenuation_Dry_bulk_density) / (Hydrogeology_Porosity Hydrogeology!$L:$L) ->  | M153: =1 + 0.001 * (Attenuation_Partition_Coefficient_Kd_Species_5) * (Attenuation_Dry_bulk_density) / (Hydrogeology_Porosity Hydrogeology!$M:$M) ->  | N153: =1 + 0.001 * (Attenuation_Partition_Coefficient_Kd_Species_5) * (Attenuation_Dry_bulk_density) / (Hydrogeology_Porosity Hydrogeology!$N:$N) ->  | O153: =1 + 0.001 * (Attenuation_Partition_Coefficient_Kd_Species_5) * (Attenuation_Dry_bulk_density) / (Hydrogeology_Porosity Hydrogeology!$O:$O) ->  | P153: =1 + 0.001 * (Attenuation_Partition_Coefficient_Kd_Species_5) * (Attenuation_Dry_bulk_density) / (Hydrogeology_Porosity Hydrogeology!$P:$P) ->  | Q153: =1 + 0.001 * (Attenuation_Partition_Coefficient_Kd_Species_5) * (Attenuation_Dry_bulk_density) / (Hydrogeology_Porosity Hydrogeology!$Q:$Q) ->  | R153: =1 + 0.001 * (Attenuation_Partition_Coefficient_Kd_Species_5) * (Attenuation_Dry_bulk_density) / (Hydrogeology_Porosity Hydrogeology!$R:$R) -> 
A154: Distribution | C154: constant | D154: constant | E154: constant | F154: constant | G154: constant | H154: constant | I154: constant | J154: constant | K154: constant | L154: constant | M154: constant | N154: constant | O154: constant | P154: constant | Q154: constant | R154: constant
A155: Attenuation_Retardation_Species_5_param1
A156: Attenuation_Retardation_Species_5_param2
A157: Attenuation_Retardation_Species_5_param3
A160: Attenuation_Half_Life_Species_5 | B160: days | C160: 173 | D160: 173 | E160: No Decay | F160: No Decay | G160: No Decay | H160: No Decay | I160: No Decay | J160: No Decay | K160: No Decay | L160: No Decay | M160: No Decay | N160: No Decay | O160: No Decay | P160: No Decay | Q160: No Decay | R160: No Decay
A161: Distribution | C161: constant | D161: constant | E161: constant | F161: constant | G161: constant | H161: constant | I161: constant | J161: constant | K161: constant | L161: constant | M161: constant | N161: constant | O161: constant | P161: constant | Q161: constant | R161: constant
A162: Attenuation_Half_Life_Species_5_param1
A163: Attenuation_Half_Life_Species_5_param2
A164: Attenuation_Half_Life_Species_5_param3
A167: Attenuation_Decay_Coefficient_Species_5 | B167: 1/s | C167: =IF((Attenuation_Half_Life_Species_5)<>"No Decay", LN(2) / ((Attenuation_Half_Life_Species_5) * s_per_day),0) -> 4.637304516e-08 | D167: 4.637304516e-08 | E167: 0 | F167: 0 | G167: 0 | H167: 0 | I167: 0 | J167: 0 | K167: 0 | L167: 0 | M167: 0 | N167: 0 | O167: 0 | P167: 0 | Q167: 0 | R167: 0
A168: Distribution | C168: constant | D168: constant | E168: constant | F168: constant | G168: constant | H168: constant | I168: constant | J168: constant | K168: constant | L168: constant | M168: constant | N168: constant | O168: constant | P168: constant | Q168: constant | R168: constant
A169: Attenuation_Decay_Coefficient_Species_5_param1
A170: Attenuation_Decay_Coefficient_Species_5_param2
A171: Attenuation_Decay_Coefficient_Species_5_param3
A174: =IF((Contaminants_Source_determinand_names Contaminants_Species6)=0,"Undefined",(Contaminants_Source_determinand_names Contaminants_Species6)) -> Cadmium
A176: Attenuation_Partition_Coefficient_Kd_Species_6 | B176: L/kg | C176: 5 | D176: 5 | E176: =(Attenuation_Fraction_organic_carbon) * (Contaminants_Organic_Carbon_Water_Partition_Coefficient_Koc Contaminants_Species6) -> 0 | F176: =(Attenuation_Fraction_organic_carbon) * (Contaminants_Organic_Carbon_Water_Partition_Coefficient_Koc Contaminants_Species6) -> 0 | G176: =(Attenuation_Fraction_organic_carbon) * (Contaminants_Organic_Carbon_Water_Partition_Coefficient_Koc Contaminants_Species6) -> 0 | H176: =(Attenuation_Fraction_organic_carbon) * (Contaminants_Organic_Carbon_Water_Partition_Coefficient_Koc Contaminants_Species6) -> 0 | I176: =(Attenuation_Fraction_organic_carbon) * (Contaminants_Organic_Carbon_Water_Partition_Coefficient_Koc Contaminants_Species6) -> 0 | J176: =(Attenuation_Fraction_organic_carbon) * (Contaminants_Organic_Carbon_Water_Partition_Coefficient_Koc Contaminants_Species6) -> 0 | K176: =(Attenuation_Fraction_organic_carbon) * (Contaminants_Organic_Carbon_Water_Partition_Coefficient_Koc Contaminants_Species6) -> 0 | L176: =(Attenuation_Fraction_organic_carbon) * (Contaminants_Organic_Carbon_Water_Partition_Coefficient_Koc Contaminants_Species6) -> 0 | M176: =(Attenuation_Fraction_organic_carbon) * (Contaminants_Organic_Carbon_Water_Partition_Coefficient_Koc Contaminants_Species6) -> 0 | N176: =(Attenuation_Fraction_organic_carbon) * (Contaminants_Organic_Carbon_Water_Partition_Coefficient_Koc Contaminants_Species6) -> 0 | O176: =(Attenuation_Fraction_organic_carbon) * (Contaminants_Organic_Carbon_Water_Partition_Coefficient_Koc Contaminants_Species6) -> 0 | P176: =(Attenuation_Fraction_organic_carbon) * (Contaminants_Organic_Carbon_Water_Partition_Coefficient_Koc Contaminants_Species6) -> 0 | Q176: =(Attenuation_Fraction_organic_carbon) * (Contaminants_Organic_Carbon_Water_Partition_Coefficient_Koc Contaminants_Species6) -> 0 | R176: =(Attenuation_Fraction_organic_carbon) * (Contaminants_Organic_Carbon_Water_Partition_Coefficient_Koc Contaminants_Species6) -> 0
A177: Distribution | C177: constant | D177: constant | E177: constant | F177: constant | G177: constant | H177: constant | I177: constant | J177: constant | K177: constant | L177: constant | M177: constant | N177: constant | O177: constant | P177: constant | Q177: constant | R177: constant
A178: Attenuation_Partition_Coefficient_Kd_Species_6_param1
A179: Attenuation_Partition_Coefficient_Kd_Species_6_param2
A180: Attenuation_Partition_Coefficient_Kd_Species_6_param3
A183: Attenuation_Retardation_Species_6 | B183: [-] | C183: =1 + 0.001 * (Attenuation_Partition_Coefficient_Kd_Species_6) * (Attenuation_Dry_bulk_density) / (Hydrogeology_Porosity Hydrogeology!$C:$C) -> 24.125 | D183: =1 + 0.001 * (Attenuation_Partition_Coefficient_Kd_Species_6) * (Attenuation_Dry_bulk_density) / (Hydrogeology_Porosity Hydrogeology!$D:$D) -> 42.66666667 | E183: =1 + 0.001 * (Attenuation_Partition_Coefficient_Kd_Species_6) * (Attenuation_Dry_bulk_density) / (Hydrogeology_Porosity Hydrogeology!$E:$E) ->  | F183: =1 + 0.001 * (Attenuation_Partition_Coefficient_Kd_Species_6) * (Attenuation_Dry_bulk_density) / (Hydrogeology_Porosity Hydrogeology!$F:$F) ->  | G183: =1 + 0.001 * (Attenuation_Partition_Coefficient_Kd_Species_6) * (Attenuation_Dry_bulk_density) / (Hydrogeology_Porosity Hydrogeology!$G:$G) ->  | H183: =1 + 0.001 * (Attenuation_Partition_Coefficient_Kd_Species_6) * (Attenuation_Dry_bulk_density) / (Hydrogeology_Porosity Hydrogeology!$H:$H) ->  | I183: =1 + 0.001 * (Attenuation_Partition_Coefficient_Kd_Species_6) * (Attenuation_Dry_bulk_density) / (Hydrogeology_Porosity Hydrogeology!$I:$I) ->  | J183: =1 + 0.001 * (Attenuation_Partition_Coefficient_Kd_Species_6) * (Attenuation_Dry_bulk_density) / (Hydrogeology_Porosity Hydrogeology!$J:$J) ->  | K183: =1 + 0.001 * (Attenuation_Partition_Coefficient_Kd_Species_6) * (Attenuation_Dry_bulk_density) / (Hydrogeology_Porosity Hydrogeology!$K:$K) ->  | L183: =1 + 0.001 * (Attenuation_Partition_Coefficient_Kd_Species_6) * (Attenuation_Dry_bulk_density) / (Hydrogeology_Porosity Hydrogeology!$L:$L) ->  | M183: =1 + 0.001 * (Attenuation_Partition_Coefficient_Kd_Species_6) * (Attenuation_Dry_bulk_density) / (Hydrogeology_Porosity Hydrogeology!$M:$M) ->  | N183: =1 + 0.001 * (Attenuation_Partition_Coefficient_Kd_Species_6) * (Attenuation_Dry_bulk_density) / (Hydrogeology_Porosity Hydrogeology!$N:$N) ->  | O183: =1 + 0.001 * (Attenuation_Partition_Coefficient_Kd_Species_6) * (Attenuation_Dry_bulk_density) / (Hydrogeology_Porosity Hydrogeology!$O:$O) ->  | P183: =1 + 0.001 * (Attenuation_Partition_Coefficient_Kd_Species_6) * (Attenuation_Dry_bulk_density) / (Hydrogeology_Porosity Hydrogeology!$P:$P) ->  | Q183: =1 + 0.001 * (Attenuation_Partition_Coefficient_Kd_Species_6) * (Attenuation_Dry_bulk_density) / (Hydrogeology_Porosity Hydrogeology!$Q:$Q) ->  | R183: =1 + 0.001 * (Attenuation_Partition_Coefficient_Kd_Species_6) * (Attenuation_Dry_bulk_density) / (Hydrogeology_Porosity Hydrogeology!$R:$R) -> 
A184: Distribution | C184: constant | D184: constant | E184: constant | F184: constant | G184: constant | H184: constant | I184: constant | J184: constant | K184: constant | L184: constant | M184: constant | N184: constant | O184: constant | P184: constant | Q184: constant | R184: constant
A185: Attenuation_Retardation_Species_6_param1
A186: Attenuation_Retardation_Species_6_param2
A187: Attenuation_Retardation_Species_6_param3
A190: Attenuation_Half_Life_Species_6 | B190: days | C190: No Decay | D190: No Decay | E190: No Decay | F190: No Decay | G190: No Decay | H190: No Decay | I190: No Decay | J190: No Decay | K190: No Decay | L190: No Decay | M190: No Decay | N190: No Decay | O190: No Decay | P190: No Decay | Q190: No Decay | R190: No Decay
A191: Distribution | C191: constant | D191: constant | E191: constant | F191: constant | G191: constant | H191: constant | I191: constant | J191: constant | K191: constant | L191: constant | M191: constant | N191: constant | O191: constant | P191: constant | Q191: constant | R191: constant
A192: Attenuation_Half_Life_Species_6_param1
A193: Attenuation_Half_Life_Species_6_param2
A194: Attenuation_Half_Life_Species_6_param3
A197: Attenuation_Decay_Coefficient_Species_6 | B197: 1/s | C197: =IF((Attenuation_Half_Life_Species_6)<>"No Decay", LN(2) / ((Attenuation_Half_Life_Species_6) * s_per_day),0) -> 0 | D197: 0 | E197: 0 | F197: 0 | G197: 0 | H197: 0 | I197: 0 | J197: 0 | K197: 0 | L197: 0 | M197: 0 | N197: 0 | O197: 0 | P197: 0 | Q197: 0 | R197: 0
A198: Distribution | C198: constant | D198: constant | E198: constant | F198: constant | G198: constant | H198: constant | I198: constant | J198: constant | K198: constant | L198: constant | M198: constant | N198: constant | O198: constant | P198: constant | Q198: constant | R198: constant
A199: Attenuation_Decay_Coefficient_Species_6_param1
A200: Attenuation_Decay_Coefficient_Species_6_param2
A201: Attenuation_Decay_Coefficient_Species_6_param3
A204: =IF((Contaminants_Source_determinand_names Contaminants_Species7)=0,"Undefined",(Contaminants_Source_determinand_names Contaminants_Species7)) -> Undefined
A206: Attenuation_Partition_Coefficient_Kd_Species_7 | B206: L/kg | C206: =(Attenuation_Fraction_organic_carbon) * (Contaminants_Organic_Carbon_Water_Partition_Coefficient_Koc Contaminants_Species7) -> 0 | D206: =(Attenuation_Fraction_organic_carbon) * (Contaminants_Organic_Carbon_Water_Partition_Coefficient_Koc Contaminants_Species7) -> 0 | E206: =(Attenuation_Fraction_organic_carbon) * (Contaminants_Organic_Carbon_Water_Partition_Coefficient_Koc Contaminants_Species7) -> 0 | F206: =(Attenuation_Fraction_organic_carbon) * (Contaminants_Organic_Carbon_Water_Partition_Coefficient_Koc Contaminants_Species7) -> 0 | G206: =(Attenuation_Fraction_organic_carbon) * (Contaminants_Organic_Carbon_Water_Partition_Coefficient_Koc Contaminants_Species7) -> 0 | H206: =(Attenuation_Fraction_organic_carbon) * (Contaminants_Organic_Carbon_Water_Partition_Coefficient_Koc Contaminants_Species7) -> 0 | I206: =(Attenuation_Fraction_organic_carbon) * (Contaminants_Organic_Carbon_Water_Partition_Coefficient_Koc Contaminants_Species7) -> 0 | J206: =(Attenuation_Fraction_organic_carbon) * (Contaminants_Organic_Carbon_Water_Partition_Coefficient_Koc Contaminants_Species7) -> 0 | K206: =(Attenuation_Fraction_organic_carbon) * (Contaminants_Organic_Carbon_Water_Partition_Coefficient_Koc Contaminants_Species7) -> 0 | L206: =(Attenuation_Fraction_organic_carbon) * (Contaminants_Organic_Carbon_Water_Partition_Coefficient_Koc Contaminants_Species7) -> 0 | M206: =(Attenuation_Fraction_organic_carbon) * (Contaminants_Organic_Carbon_Water_Partition_Coefficient_Koc Contaminants_Species7) -> 0 | N206: =(Attenuation_Fraction_organic_carbon) * (Contaminants_Organic_Carbon_Water_Partition_Coefficient_Koc Contaminants_Species7) -> 0 | O206: =(Attenuation_Fraction_organic_carbon) * (Contaminants_Organic_Carbon_Water_Partition_Coefficient_Koc Contaminants_Species7) -> 0 | P206: =(Attenuation_Fraction_organic_carbon) * (Contaminants_Organic_Carbon_Water_Partition_Coefficient_Koc Contaminants_Species7) -> 0 | Q206: =(Attenuation_Fraction_organic_carbon) * (Contaminants_Organic_Carbon_Water_Partition_Coefficient_Koc Contaminants_Species7) -> 0 | R206: =(Attenuation_Fraction_organic_carbon) * (Contaminants_Organic_Carbon_Water_Partition_Coefficient_Koc Contaminants_Species7) -> 0
A207: Distribution | C207: constant | D207: constant | E207: constant | F207: constant | G207: constant | H207: constant | I207: constant | J207: constant | K207: constant | L207: constant | M207: constant | N207: constant | O207: constant | P207: constant | Q207: constant | R207: constant
A208: Attenuation_Partition_Coefficient_Kd_Species_7_param1
A209: Attenuation_Partition_Coefficient_Kd_Species_7_param2
A210: Attenuation_Partition_Coefficient_Kd_Species_7_param3
A213: Attenuation_Retardation_Species_7 | B213: [-] | C213: =1 + 0.001 * (Attenuation_Partition_Coefficient_Kd_Species_7) * (Attenuation_Dry_bulk_density) / (Hydrogeology_Porosity Hydrogeology!$C:$C) -> 1 | D213: =1 + 0.001 * (Attenuation_Partition_Coefficient_Kd_Species_7) * (Attenuation_Dry_bulk_density) / (Hydrogeology_Porosity Hydrogeology!$D:$D) -> 1 | E213: =1 + 0.001 * (Attenuation_Partition_Coefficient_Kd_Species_7) * (Attenuation_Dry_bulk_density) / (Hydrogeology_Porosity Hydrogeology!$E:$E) ->  | F213: =1 + 0.001 * (Attenuation_Partition_Coefficient_Kd_Species_7) * (Attenuation_Dry_bulk_density) / (Hydrogeology_Porosity Hydrogeology!$F:$F) ->  | G213: =1 + 0.001 * (Attenuation_Partition_Coefficient_Kd_Species_7) * (Attenuation_Dry_bulk_density) / (Hydrogeology_Porosity Hydrogeology!$G:$G) ->  | H213: =1 + 0.001 * (Attenuation_Partition_Coefficient_Kd_Species_7) * (Attenuation_Dry_bulk_density) / (Hydrogeology_Porosity Hydrogeology!$H:$H) ->  | I213: =1 + 0.001 * (Attenuation_Partition_Coefficient_Kd_Species_7) * (Attenuation_Dry_bulk_density) / (Hydrogeology_Porosity Hydrogeology!$I:$I) ->  | J213: =1 + 0.001 * (Attenuation_Partition_Coefficient_Kd_Species_7) * (Attenuation_Dry_bulk_density) / (Hydrogeology_Porosity Hydrogeology!$J:$J) ->  | K213: =1 + 0.001 * (Attenuation_Partition_Coefficient_Kd_Species_7) * (Attenuation_Dry_bulk_density) / (Hydrogeology_Porosity Hydrogeology!$K:$K) ->  | L213: =1 + 0.001 * (Attenuation_Partition_Coefficient_Kd_Species_7) * (Attenuation_Dry_bulk_density) / (Hydrogeology_Porosity Hydrogeology!$L:$L) ->  | M213: =1 + 0.001 * (Attenuation_Partition_Coefficient_Kd_Species_7) * (Attenuation_Dry_bulk_density) / (Hydrogeology_Porosity Hydrogeology!$M:$M) ->  | N213: =1 + 0.001 * (Attenuation_Partition_Coefficient_Kd_Species_7) * (Attenuation_Dry_bulk_density) / (Hydrogeology_Porosity Hydrogeology!$N:$N) ->  | O213: =1 + 0.001 * (Attenuation_Partition_Coefficient_Kd_Species_7) * (Attenuation_Dry_bulk_density) / (Hydrogeology_Porosity Hydrogeology!$O:$O) ->  | P213: =1 + 0.001 * (Attenuation_Partition_Coefficient_Kd_Species_7) * (Attenuation_Dry_bulk_density) / (Hydrogeology_Porosity Hydrogeology!$P:$P) ->  | Q213: =1 + 0.001 * (Attenuation_Partition_Coefficient_Kd_Species_7) * (Attenuation_Dry_bulk_density) / (Hydrogeology_Porosity Hydrogeology!$Q:$Q) ->  | R213: =1 + 0.001 * (Attenuation_Partition_Coefficient_Kd_Species_7) * (Attenuation_Dry_bulk_density) / (Hydrogeology_Porosity Hydrogeology!$R:$R) -> 
A214: Distribution | C214: constant | D214: constant | E214: constant | F214: constant | G214: constant | H214: constant | I214: constant | J214: constant | K214: constant | L214: constant | M214: constant | N214: constant | O214: constant | P214: constant | Q214: constant | R214: constant
A215: Attenuation_Retardation_Species_7_param1
A216: Attenuation_Retardation_Species_7_param2
A217: Attenuation_Retardation_Species_7_param3
A220: Attenuation_Half_Life_Species_7 | B220: days | C220: No Decay | D220: No Decay | E220: No Decay | F220: No Decay | G220: No Decay | H220: No Decay | I220: No Decay | J220: No Decay | K220: No Decay | L220: No Decay | M220: No Decay | N220: No Decay | O220: No Decay | P220: No Decay | Q220: No Decay | R220: No Decay
A221: Distribution | C221: constant | D221: constant | E221: constant | F221: constant | G221: constant | H221: constant | I221: constant | J221: constant | K221: constant | L221: constant | M221: constant | N221: constant | O221: constant | P221: constant | Q221: constant | R221: constant
A222: Attenuation_Half_Life_Species_7_param1
A223: Attenuation_Half_Life_Species_7_param2
A224: Attenuation_Half_Life_Species_7_param3
A227: Attenuation_Decay_Coefficient_Species_7 | B227: 1/s | C227: =IF((Attenuation_Half_Life_Species_7)<>"No Decay", LN(2) / ((Attenuation_Half_Life_Species_7) * s_per_day),0) -> 0 | D227: 0 | E227: 0 | F227: 0 | G227: 0 | H227: 0 | I227: 0 | J227: 0 | K227: 0 | L227: 0 | M227: 0 | N227: 0 | O227: 0 | P227: 0 | Q227: 0 | R227: 0
A228: Distribution | C228: constant | D228: constant | E228: constant | F228: constant | G228: constant | H228: constant | I228: constant | J228: constant | K228: constant | L228: constant | M228: constant | N228: constant | O228: constant | P228: constant | Q228: constant | R228: constant
A229: Attenuation_Decay_Coefficient_Species_7_param1
A230: Attenuation_Decay_Coefficient_Species_7_param2
A231: Attenuation_Decay_Coefficient_Species_7_param3
A234: =IF((Contaminants_Source_determinand_names Contaminants_Species8)=0,"Undefined",(Contaminants_Source_determinand_names Contaminants_Species8)) -> Undefined
A236: Attenuation_Partition_Coefficient_Kd_Species_8 | B236: L/kg | C236: =(Attenuation_Fraction_organic_carbon) * (Contaminants_Organic_Carbon_Water_Partition_Coefficient_Koc Contaminants_Species8) -> 0 | D236: =(Attenuation_Fraction_organic_carbon) * (Contaminants_Organic_Carbon_Water_Partition_Coefficient_Koc Contaminants_Species8) -> 0 | E236: =(Attenuation_Fraction_organic_carbon) * (Contaminants_Organic_Carbon_Water_Partition_Coefficient_Koc Contaminants_Species8) -> 0 | F236: =(Attenuation_Fraction_organic_carbon) * (Contaminants_Organic_Carbon_Water_Partition_Coefficient_Koc Contaminants_Species8) -> 0 | G236: =(Attenuation_Fraction_organic_carbon) * (Contaminants_Organic_Carbon_Water_Partition_Coefficient_Koc Contaminants_Species8) -> 0 | H236: =(Attenuation_Fraction_organic_carbon) * (Contaminants_Organic_Carbon_Water_Partition_Coefficient_Koc Contaminants_Species8) -> 0 | I236: =(Attenuation_Fraction_organic_carbon) * (Contaminants_Organic_Carbon_Water_Partition_Coefficient_Koc Contaminants_Species8) -> 0 | J236: =(Attenuation_Fraction_organic_carbon) * (Contaminants_Organic_Carbon_Water_Partition_Coefficient_Koc Contaminants_Species8) -> 0 | K236: =(Attenuation_Fraction_organic_carbon) * (Contaminants_Organic_Carbon_Water_Partition_Coefficient_Koc Contaminants_Species8) -> 0 | L236: =(Attenuation_Fraction_organic_carbon) * (Contaminants_Organic_Carbon_Water_Partition_Coefficient_Koc Contaminants_Species8) -> 0 | M236: =(Attenuation_Fraction_organic_carbon) * (Contaminants_Organic_Carbon_Water_Partition_Coefficient_Koc Contaminants_Species8) -> 0 | N236: =(Attenuation_Fraction_organic_carbon) * (Contaminants_Organic_Carbon_Water_Partition_Coefficient_Koc Contaminants_Species8) -> 0 | O236: =(Attenuation_Fraction_organic_carbon) * (Contaminants_Organic_Carbon_Water_Partition_Coefficient_Koc Contaminants_Species8) -> 0 | P236: =(Attenuation_Fraction_organic_carbon) * (Contaminants_Organic_Carbon_Water_Partition_Coefficient_Koc Contaminants_Species8) -> 0 | Q236: =(Attenuation_Fraction_organic_carbon) * (Contaminants_Organic_Carbon_Water_Partition_Coefficient_Koc Contaminants_Species8) -> 0 | R236: =(Attenuation_Fraction_organic_carbon) * (Contaminants_Organic_Carbon_Water_Partition_Coefficient_Koc Contaminants_Species8) -> 0
A237: Distribution | C237: constant | D237: constant | E237: constant | F237: constant | G237: constant | H237: constant | I237: constant | J237: constant | K237: constant | L237: constant | M237: constant | N237: constant | O237: constant | P237: constant | Q237: constant | R237: constant
A238: Attenuation_Partition_Coefficient_Kd_Species_8_param1
A239: Attenuation_Partition_Coefficient_Kd_Species_8_param2
A240: Attenuation_Partition_Coefficient_Kd_Species_8_param3
A243: Attenuation_Retardation_Species_8 | B243: [-] | C243: =1 + 0.001 * (Attenuation_Partition_Coefficient_Kd_Species_8) * (Attenuation_Dry_bulk_density) / (Hydrogeology_Porosity Hydrogeology!$C:$C) -> 1 | D243: =1 + 0.001 * (Attenuation_Partition_Coefficient_Kd_Species_8) * (Attenuation_Dry_bulk_density) / (Hydrogeology_Porosity Hydrogeology!$D:$D) -> 1 | E243: =1 + 0.001 * (Attenuation_Partition_Coefficient_Kd_Species_8) * (Attenuation_Dry_bulk_density) / (Hydrogeology_Porosity Hydrogeology!$E:$E) ->  | F243: =1 + 0.001 * (Attenuation_Partition_Coefficient_Kd_Species_8) * (Attenuation_Dry_bulk_density) / (Hydrogeology_Porosity Hydrogeology!$F:$F) ->  | G243: =1 + 0.001 * (Attenuation_Partition_Coefficient_Kd_Species_8) * (Attenuation_Dry_bulk_density) / (Hydrogeology_Porosity Hydrogeology!$G:$G) ->  | H243: =1 + 0.001 * (Attenuation_Partition_Coefficient_Kd_Species_8) * (Attenuation_Dry_bulk_density) / (Hydrogeology_Porosity Hydrogeology!$H:$H) ->  | I243: =1 + 0.001 * (Attenuation_Partition_Coefficient_Kd_Species_8) * (Attenuation_Dry_bulk_density) / (Hydrogeology_Porosity Hydrogeology!$I:$I) ->  | J243: =1 + 0.001 * (Attenuation_Partition_Coefficient_Kd_Species_8) * (Attenuation_Dry_bulk_density) / (Hydrogeology_Porosity Hydrogeology!$J:$J) ->  | K243: =1 + 0.001 * (Attenuation_Partition_Coefficient_Kd_Species_8) * (Attenuation_Dry_bulk_density) / (Hydrogeology_Porosity Hydrogeology!$K:$K) ->  | L243: =1 + 0.001 * (Attenuation_Partition_Coefficient_Kd_Species_8) * (Attenuation_Dry_bulk_density) / (Hydrogeology_Porosity Hydrogeology!$L:$L) ->  | M243: =1 + 0.001 * (Attenuation_Partition_Coefficient_Kd_Species_8) * (Attenuation_Dry_bulk_density) / (Hydrogeology_Porosity Hydrogeology!$M:$M) ->  | N243: =1 + 0.001 * (Attenuation_Partition_Coefficient_Kd_Species_8) * (Attenuation_Dry_bulk_density) / (Hydrogeology_Porosity Hydrogeology!$N:$N) ->  | O243: =1 + 0.001 * (Attenuation_Partition_Coefficient_Kd_Species_8) * (Attenuation_Dry_bulk_density) / (Hydrogeology_Porosity Hydrogeology!$O:$O) ->  | P243: =1 + 0.001 * (Attenuation_Partition_Coefficient_Kd_Species_8) * (Attenuation_Dry_bulk_density) / (Hydrogeology_Porosity Hydrogeology!$P:$P) ->  | Q243: =1 + 0.001 * (Attenuation_Partition_Coefficient_Kd_Species_8) * (Attenuation_Dry_bulk_density) / (Hydrogeology_Porosity Hydrogeology!$Q:$Q) ->  | R243: =1 + 0.001 * (Attenuation_Partition_Coefficient_Kd_Species_8) * (Attenuation_Dry_bulk_density) / (Hydrogeology_Porosity Hydrogeology!$R:$R) -> 
A244: Distribution | C244: constant | D244: constant | E244: constant | F244: constant | G244: constant | H244: constant | I244: constant | J244: constant | K244: constant | L244: constant | M244: constant | N244: constant | O244: constant | P244: constant | Q244: constant | R244: constant
A245: Attenuation_Retardation_Species_8_param1
A246: Attenuation_Retardation_Species_8_param2
A247: Attenuation_Retardation_Species_8_param3
A250: Attenuation_Half_Life_Species_8 | B250: days | C250: No Decay | D250: No Decay | E250: No Decay | F250: No Decay | G250: No Decay | H250: No Decay | I250: No Decay | J250: No Decay | K250: No Decay | L250: No Decay | M250: No Decay | N250: No Decay | O250: No Decay | P250: No Decay | Q250: No Decay | R250: No Decay
A251: Distribution | C251: constant | D251: constant | E251: constant | F251: constant | G251: constant | H251: constant | I251: constant | J251: constant | K251: constant | L251: constant | M251: constant | N251: constant | O251: constant | P251: constant | Q251: constant | R251: constant
A252: Attenuation_Half_Life_Species_8_param1
A253: Attenuation_Half_Life_Species_8_param2
A254: Attenuation_Half_Life_Species_8_param3
A257: Attenuation_Decay_Coefficient_Species_8 | B257: 1/s | C257: =IF((Attenuation_Half_Life_Species_8)<>"No Decay", LN(2) / ((Attenuation_Half_Life_Species_8) * s_per_day),0) -> 0 | D257: 0 | E257: 0 | F257: 0 | G257: 0 | H257: 0 | I257: 0 | J257: 0 | K257: 0 | L257: 0 | M257: 0 | N257: 0 | O257: 0 | P257: 0 | Q257: 0 | R257: 0
A258: Distribution | C258: constant | D258: constant | E258: constant | F258: constant | G258: constant | H258: constant | I258: constant | J258: constant | K258: constant | L258: constant | M258: constant | N258: constant | O258: constant | P258: constant | Q258: constant | R258: constant
A259: Attenuation_Decay_Coefficient_Species_8_param1
A260: Attenuation_Decay_Coefficient_Species_8_param2
A261: Attenuation_Decay_Coefficient_Species_8_param3

Sheet WaterBalance
A1: WATER BALANCE
A4: Above Water Table
A5: Vertical path
A6: Average yearly rainfall (1994 to 2022) (mm/yr) | B6: 607 | C6: GWP HRA Section 2.2
A7: Average daily evaporation (2007 to 2017) (mm/yr) | B7: 438 - 499 - 600 | C7: min, mean, max GWP HRA Section 2.2
A8: Effective rainfall (mm/yr) | B8: 108 | C8: GWP HRA Section 2.2
A9: Infiltration to covered waste (mm/yr) | B9: 46 | C9: GWP HRA Section 2.2
A10: Infiltration to covered waste (m/s) | B10: =(WasteInfil/1000)/s_per_year -> 1.457652039e-09
A12: Q_Path New (m3/s) | B12: =New_Phases_Source_area*WaterBalance!B10 -> 0.0003689317312
A13: Q_Path Existing | B13: =B10*Existing_Phases_Source_area -> 0.0001066447385 | O13: 0.1 | Q13: 0.01
O14: 0.5 | Q14: 0.05
O15: 1 | Q15: 0.75
O16: 2 | Q16: 0.1
O17: 3 | Q17: 0.5
O18: 5 | Q18: 1
O19: 10 | Q19: 2
O20: 50 | Q20: 5
O21: 75 | Q21: 10
O22: 100 | Q22: 50
O23: 110 | Q23: 100
O24: 120 | Q24: 120
O25: 130 | Q25: 130
O26: 140 | Q26: 140
O27: 150 | Q27: 150
O28: 160 | Q28: 160
O29: 170 | Q29: 170
O30: 180 | Q30: 180
O31: 190 | Q31: 190
O32: 200 | Q32: 200
O33: 300 | Q33: 300
O34: 400 | Q34: 400
O35: 500 | Q35: 500
O36: 1000 | Q36: 1000
O37: 2000 | Q37: 2000

Sheet Pathways
A1: PATHWAY SUMMARY
A3: Path 1 | C3: Section 1 | E3: Section 2 | G3: Section 3 | I3: Section 4
A4: Path 1 Type | C4: Source | E4: Unit | G4: Unit | I4: Receptor
A5: Path 1 Name | C5: New Phases | E5: AGB: Node 1 | G5: Lower Calc Grit: Node 1 | I5: NonHaz Compliance
A6: Path 1 Process | C6: Declining source | E6: ADRD (1D) + Dilution | G6: ADRD (1D) + Dilution | I6: Monitoring Borehole
A7: Path 1 Standards | H7: Target Standard | I7: CompLimit
A8: Path 1 Parameter1 | B8: Q_managed [m3/s] | C8: 0 | D8: Velocity [m/s] | E8: =(AGB Hydrogeology_Velocity) -> 2.5e-07 | F8: Velocity [m/s] | G8: =(Lower_Calc_Grit Hydrogeology_Velocity) -> 2.933333333e-08
A9: Path 1 Parameter2 | B9: Managed time [years] | C9: 0 | D9: Dispersivity [m] | E9: =E10/10 -> 0.1 | F9: Dispersivity [m] | G9: =G10/10 -> 17
A10: Path 1 Parameter3 | B10: Q_path [m3/s] | C10: =WaterBalance!$B$12 -> 0.0003689317312 | D10: Travel Distance [m] | E10: =Hydrogeology!$C$5 -> 1 | F10: Travel Distance [m] | G10: 170
A11: Path 1 Parameter4 | B11: Q_decline [m3/s] | C11: =WaterBalance!$B$12 -> 0.0003689317312 | D11: Mixing Depth [m] | F11: Mixing Depth [m] | G11: =Hydrogeology!$D$5 -> 5.5
A12: Path 1 Parameter5 | D12: Mixing Width [m] | F12: Mixing Width [m] | G12: =New_Phases_Source_width -> 640
A13: Path 1 Parameter6 | D13: Q_Dilute [m3/s] | E13: =Path1_Param5*Path1_Param4*(AGB Hydrogeology_Hydraulic_Conductivity)*(AGB Hydrogeology_Hydraulic_Gradient) -> 0 | F13: Q_Dilute [m3/s] | G13: =Path1_Param5*Path1_Param4*(Lower_Calc_Grit Hydrogeology_Hydraulic_Conductivity)*(Lower_Calc_Grit Hydrogeology_Hydraulic_Gradient) -> 2.47808e-05 | H13: Q_dilute [m3/s] | I13: =0 -> 0
A16: Path 2 | C16: Section 1 | E16: Section 2 | G16: Section 3
A17: Path 2 Type | C17: Source | E17: Unit | G17: Receptor
A18: Path 2 Name | C18: New Phases | E18: AGB: Node 2 | G18: Haz Compliance
A19: Path 2 Process | C19: Declining source | E19: ADRD (1D) + Dilution | G19: Monitoring Borehole
A20: Path 2 Standards | F20: Target Standard | G20: CompLimit
A21: Path 2 Parameter1 | B21: Q_managed [m3/s] | C21: 0 | D21: Velocity [m/s] | E21: =(AGB Hydrogeology_Velocity) -> 2.5e-07
A22: Path 2 Parameter2 | B22: Managed time [years] | C22: 0 | D22: Dispersivity [m] | E22: =E23/10 -> 0.1
A23: Path 2 Parameter3 | B23: Q_path [m3/s] | C23: =WaterBalance!$B$12 -> 0.0003689317312 | D23: Travel Distance [m] | E23: =Hydrogeology!$C$5 -> 1
A24: Path 2 Parameter4 | B24: Q_decline [m3/s] | C24: =WaterBalance!$B$12 -> 0.0003689317312 | D24: Mixing Depth [m]
A25: Path 2 Parameter5 | D25: Mixing Width [m]
A26: Path 2 Parameter6 | D26: Q_Dilute [m3/s] | E26: =Path2_Param5*Path2_Param4*(AGB Hydrogeology_Hydraulic_Conductivity)*(AGB Hydrogeology_Hydraulic_Gradient) -> 0 | F26: Q_dilute [m3/s] | G26: 0
A29: Path 3 | C29: Section 1 | E29: Section 2 | G29: Section 3 | I29: Section 4
A30: Path 3 Type | C30: Source | E30: Unit | G30: Unit | I30: Receptor
A31: Path 3 Name | C31: Existing Phases | E31: AGB: Node 3 | G31: Lower Calc Grit: Node 2 | I31: NonHaz Compliance
A32: Path 3 Process | C32: Declining source | E32: ADRD (1D) + Dilution | G32: ADRD (1D) + Dilution | I32: Monitoring Borehole
A33: Path 3 Standards | H33: Target Standard | I33: CompLimit
A34: Path 3 Parameter1 | B34: Q_managed [m3/s] | C34: 0 | D34: Velocity [m/s] | E34: =(AGB Hydrogeology_Velocity) -> 2.5e-07 | F34: Velocity [m/s] | G34: =(Lower_Calc_Grit Hydrogeology_Velocity) -> 2.933333333e-08
A35: Path 3 Parameter2 | B35: Managed time [years] | C35: 0 | D35: Dispersivity [m] | E35: =E36/10 -> 0.1 | F35: Dispersivity [m] | G35: =G36/10 -> 95.6
A36: Path 3 Parameter3 | B36: Q_path [m3/s] | C36: =WaterBalance!$B$13 -> 0.0001066447385 | D36: Travel Distance [m] | E36: =Hydrogeology!$C$5 -> 1 | F36: Travel Distance [m] | G36: 956
A37: Path 3 Parameter4 | B37: Q_decline [m3/s] | C37: =WaterBalance!$B$13 -> 0.0001066447385 | D37: Mixing Depth [m] | F37: Mixing Depth [m] | G37: =Hydrogeology!$D$5 -> 5.5
A38: Path 3 Parameter5 | D38: Mixing Width [m] | F38: Mixing Width [m] | G38: =Existing_Phases_Source_width -> 423
A39: Path 3 Parameter6 | D39: Q_Dilute [m3/s] | E39: =Path3_Param5*Path3_Param4*(AGB Hydrogeology_Hydraulic_Conductivity)*(AGB Hydrogeology_Hydraulic_Gradient) -> 0 | F39: Q_Dilute [m3/s] | G39: =Path3_Param5*Path3_Param4*(Lower_Calc_Grit Hydrogeology_Hydraulic_Conductivity)*(Lower_Calc_Grit Hydrogeology_Hydraulic_Gradient) -> 1.637856e-05 | H39: Q_dilute [m3/s] | I39: =0 -> 0
A42: Path 4 | C42: Section 1 | E42: Section 2 | G42: Section 3
A43: Path 4 Type | C43: Source | E43: Unit | G43: Receptor
A44: Path 4 Name | C44: Existing Phases | E44: AGB: Node 4 | G44: Haz Compliance
A45: Path 4 Process | C45: Declining source | E45: ADRD (1D) + Dilution | G45: Monitoring Borehole
A46: Path 4 Standards | F46: Target Standard | G46: CompLimit
A47: Path 4 Parameter1 | B47: Q_managed [m3/s] | C47: 0 | D47: Velocity [m/s] | E47: =(AGB Hydrogeology_Velocity) -> 2.5e-07
A48: Path 4 Parameter2 | B48: Managed time [years] | C48: 0 | D48: Dispersivity [m] | E48: =E49/10 -> 0.1
A49: Path 4 Parameter3 | B49: Q_path [m3/s] | C49: =WaterBalance!$B$13 -> 0.0001066447385 | D49: Travel Distance [m] | E49: =Hydrogeology!$C$5 -> 1
A50: Path 4 Parameter4 | B50: Q_decline [m3/s] | C50: =WaterBalance!$B$13 -> 0.0001066447385 | D50: Mixing Depth [m]
A51: Path 4 Parameter5 | D51: Mixing Width [m]
A52: Path 4 Parameter6 | D52: Q_Dilute [m3/s] | E52: =Path4_Param5*Path4_Param4*(AGB Hydrogeology_Hydraulic_Conductivity)*(AGB Hydrogeology_Hydraulic_Gradient) -> 0 | F52: Q_dilute [m3/s] | G52: 0
A55: Path 5 | C55: Section 1 | E55: Section 2
A56: Path 5 Type | C56: Source | E56: Receptor
A57: Path 5 Name | C57: AGB | E57: Haz Compliance
A58: Path 5 Process | C58: Declining source | E58: Monitoring Borehole
A59: Path 5 Standards | D59: Target Standard | E59: CompLimit
A60: Path 5 Parameter1 | B60: Q_managed [m3/s] | C60: 0
A61: Path 5 Parameter2 | B61: Managed time [years] | C61: 0
A62: Path 5 Parameter3 | B62: Q_path [m3/s] | C62: =WaterBalance!B12 -> 0.0003689317312
A63: Path 5 Parameter4 | B63: Q_decline [m3/s] | C63: =WaterBalance!B12 -> 0.0003689317312
A64: Path 5 Parameter5
A65: Path 5 Parameter6 | D65: Q_dilute [m3/s] | E65: 0
A68: Path 6 | C68: Section 1 | E68: Section 2 | G68: Section 3
A69: Path 6 Type | C69: Source | E69: Unit | G69: Receptor
A70: Path 6 Name | C70: AGB | E70: Lower Calc Grit: Node 4 | G70: NonHaz Compliance
A71: Path 6 Process | C71: Declining source | E71: ADRD (1D) + Dilution | G71: Monitoring Borehole
A72: Path 6 Standards | F72: Target Standard | G72: CompLimit
A73: Path 6 Parameter1 | B73: Q_managed [m3/s] | C73: 0 | D73: Velocity [m/s] | E73: =(Lower_Calc_Grit Hydrogeology_Velocity) -> 2.933333333e-08
A74: Path 6 Parameter2 | B74: Managed time [years] | C74: 0 | D74: Dispersivity [m] | E74: =E75/10 -> 17
A75: Path 6 Parameter3 | B75: Q_path [m3/s] | C75: =WaterBalance!B12 -> 0.0003689317312 | D75: Travel Distance [m] | E75: 170
A76: Path 6 Parameter4 | B76: Q_decline [m3/s] | C76: =WaterBalance!B12 -> 0.0003689317312 | D76: Mixing Depth [m] | E76: 12.5
A77: Path 6 Parameter5 | D77: Mixing Width [m] | E77: =New_Phases_Source_width -> 640
A78: Path 6 Parameter6 | D78: Q_Dilute [m3/s] | E78: =Path6_Param5*Path6_Param4*(Lower_Calc_Grit Hydrogeology_Hydraulic_Conductivity)*(Lower_Calc_Grit Hydrogeology_Hydraulic_Gradient) -> 5.632e-05 | F78: Q_dilute [m3/s] | G78: 0

Sheet Simulation
A1: SIMULATION PARAMETERS
B3: Monte Carlo Analysis with Crystal Ball | J3: Named Constants
C5: Reported Percentile | F5: 95 | K5: s_per_year | L5: =365.25*60*60*24 -> 31557600
C6: Number of simulations | F6: 10000 | K6: s_per_day | L6: =60*60*24 -> 86400
J9: Laplace Transform Solution Parameters
C11: Minimise while running: | K11: sigma | L11: 0
K12: nu | L12: 1
K13: nsum | L13: 16
K14: omega | L14: 11
B17: Reporting Options
C22: Number of timeslices for breakthrough curves | G22: 25
B24: The timeslices specified on the results sheets are saved below.
C25: Path1 timeslices in years
C26: TS_Path1_Spec1 | E26: TS_Path1_Spec2 | G26: TS_Path1_Spec3 | I26: TS_Path1_Spec4 | K26: TS_Path1_Spec5 | M26: TS_Path1_Spec6
C27: 0.1 | E27: 0.1 | G27: 0.1 | I27: 0.1 | K27: 0.01 | M27: 0.1
C28: 0.5 | E28: 0.5 | G28: 0.5 | I28: 0.5 | K28: 0.05 | M28: 0.5
C29: 1 | E29: 1 | G29: 1 | I29: 1 | K29: 0.75 | M29: 1
C30: 2 | E30: 2 | G30: 2 | I30: 2 | K30: 0.1 | M30: 2
C31: 3 | E31: 3 | G31: 3 | I31: 3 | K31: 0.5 | M31: 3
C32: 5 | E32: 5 | G32: 5 | I32: 5 | K32: 1 | M32: 5
C33: 10 | E33: 10 | G33: 10 | I33: 10 | K33: 2 | M33: 10
C34: 50 | E34: 50 | G34: 50 | I34: 50 | K34: 5 | M34: 50
C35: 75 | E35: 75 | G35: 75 | I35: 75 | K35: 10 | M35: 75
C36: 100 | E36: 100 | G36: 100 | I36: 100 | K36: 50 | M36: 100
C37: 110 | E37: 110 | G37: 110 | I37: 110 | K37: 100 | M37: 110
C38: 120 | E38: 120 | G38: 120 | I38: 120 | K38: 120 | M38: 120
C39: 130 | E39: 130 | G39: 130 | I39: 130 | K39: 130 | M39: 130
C40: 140 | E40: 140 | G40: 140 | I40: 140 | K40: 140 | M40: 140
C41: 150 | E41: 150 | G41: 150 | I41: 150 | K41: 150 | M41: 150
C42: 160 | E42: 160 | G42: 160 | I42: 160 | K42: 160 | M42: 160
C43: 170 | E43: 170 | G43: 170 | I43: 170 | K43: 170 | M43: 170
C44: 180 | E44: 180 | G44: 180 | I44: 180 | K44: 180 | M44: 180
C45: 190 | E45: 190 | G45: 190 | I45: 190 | K45: 190 | M45: 190
C46: 200 | E46: 200 | G46: 200 | I46: 200 | K46: 200 | M46: 200
C47: 300 | E47: 300 | G47: 300 | I47: 300 | K47: 300 | M47: 300
C48: 400 | E48: 400 | G48: 400 | I48: 400 | K48: 400 | M48: 400
C49: 500 | E49: 500 | G49: 500 | I49: 500 | K49: 500 | M49: 500
C50: 1000 | E50: 1000 | G50: 1000 | I50: 1000 | K50: 1000 | M50: 1000
C51: 2000 | E51: 2000 | G51: 2000 | I51: 2000 | K51: 2000 | M51: 2000
C52: Path2 timeslices in years
C53: TS_Path2_Spec1 | E53: TS_Path2_Spec2 | G53: TS_Path2_Spec3 | I53: TS_Path2_Spec4 | K53: TS_Path2_Spec5 | M53: TS_Path2_Spec6
C54: 0.1 | E54: 0.1 | G54: 0.1 | I54: 0.1 | K54: 0.01 | M54: 0.1
C55: 0.5 | E55: 0.5 | G55: 0.5 | I55: 0.5 | K55: 0.05 | M55: 0.5
C56: 1 | E56: 1 | G56: 1 | I56: 1 | K56: 0.75 | M56: 1
C57: 2 | E57: 2 | G57: 2 | I57: 2 | K57: 0.1 | M57: 2
C58: 3 | E58: 3 | G58: 3 | I58: 3 | K58: 0.5 | M58: 3
C59: 5 | E59: 5 | G59: 5 | I59: 5 | K59: 1 | M59: 5
C60: 10 | E60: 10 | G60: 10 | I60: 10 | K60: 2 | M60: 10
C61: 50 | E61: 50 | G61: 50 | I61: 50 | K61: 5 | M61: 50
C62: 75 | E62: 75 | G62: 75 | I62: 75 | K62: 10 | M62: 75
C63: 100 | E63: 100 | G63: 100 | I63: 100 | K63: 50 | M63: 100
C64: 110 | E64: 110 | G64: 110 | I64: 110 | K64: 100 | M64: 110
C65: 120 | E65: 120 | G65: 120 | I65: 120 | K65: 120 | M65: 120
C66: 130 | E66: 130 | G66: 130 | I66: 130 | K66: 130 | M66: 130
C67: 140 | E67: 140 | G67: 140 | I67: 140 | K67: 140 | M67: 140
C68: 150 | E68: 150 | G68: 150 | I68: 150 | K68: 150 | M68: 150
C69: 160 | E69: 160 | G69: 160 | I69: 160 | K69: 160 | M69: 160
C70: 170 | E70: 170 | G70: 170 | I70: 170 | K70: 170 | M70: 170
C71: 180 | E71: 180 | G71: 180 | I71: 180 | K71: 180 | M71: 180
C72: 190 | E72: 190 | G72: 190 | I72: 190 | K72: 190 | M72: 190
C73: 200 | E73: 200 | G73: 200 | I73: 200 | K73: 200 | M73: 200
C74: 300 | E74: 300 | G74: 300 | I74: 300 | K74: 300 | M74: 300
C75: 400 | E75: 400 | G75: 400 | I75: 400 | K75: 400 | M75: 400
C76: 500 | E76: 500 | G76: 500 | I76: 500 | K76: 500 | M76: 500
C77: 1000 | E77: 1000 | G77: 1000 | I77: 1000 | K77: 1000 | M77: 1000
C78: 2000 | E78: 2000 | G78: 2000 | I78: 2000 | K78: 2000 | M78: 2000
C79: Path3 timeslices in years
C80: TS_Path3_Spec1 | E80: TS_Path3_Spec2 | G80: TS_Path3_Spec3 | I80: TS_Path3_Spec4 | K80: TS_Path3_Spec5 | M80: TS_Path3_Spec6
C81: 0.1 | E81: 0.1 | G81: 0.1 | I81: 0.1 | K81: 0.01 | M81: 0.1
C82: 0.5 | E82: 0.5 | G82: 0.5 | I82: 0.5 | K82: 0.05 | M82: 0.5
C83: 1 | E83: 1 | G83: 1 | I83: 1 | K83: 0.75 | M83: 1
C84: 2 | E84: 2 | G84: 2 | I84: 2 | K84: 0.1 | M84: 2
C85: 3 | E85: 3 | G85: 3 | I85: 3 | K85: 0.5 | M85: 3
C86: 5 | E86: 5 | G86: 5 | I86: 5 | K86: 1 | M86: 5
C87: 10 | E87: 10 | G87: 10 | I87: 10 | K87: 2 | M87: 10
C88: 50 | E88: 50 | G88: 50 | I88: 50 | K88: 5 | M88: 50
C89: 75 | E89: 75 | G89: 75 | I89: 75 | K89: 10 | M89: 75
C90: 100 | E90: 100 | G90: 100 | I90: 100 | K90: 50 | M90: 100
C91: 110 | E91: 110 | G91: 110 | I91: 110 | K91: 100 | M91: 110
C92: 120 | E92: 120 | G92: 120 | I92: 120 | K92: 120 | M92: 120
C93: 130 | E93: 130 | G93: 130 | I93: 130 | K93: 130 | M93: 130
C94: 140 | E94: 140 | G94: 140 | I94: 140 | K94: 140 | M94: 140
C95: 150 | E95: 150 | G95: 150 | I95: 150 | K95: 150 | M95: 150
C96: 160 | E96: 160 | G96: 160 | I96: 160 | K96: 160 | M96: 160
C97: 170 | E97: 170 | G97: 170 | I97: 170 | K97: 170 | M97: 170
C98: 180 | E98: 180 | G98: 180 | I98: 180 | K98: 180 | M98: 180
C99: 190 | E99: 190 | G99: 190 | I99: 190 | K99: 190 | M99: 190
C100: 200 | E100: 200 | G100: 200 | I100: 200 | K100: 200 | M100: 200
C101: 300 | E101: 300 | G101: 300 | I101: 300 | K101: 300 | M101: 300
C102: 400 | E102: 400 | G102: 400 | I102: 400 | K102: 400 | M102: 400
C103: 500 | E103: 500 | G103: 500 | I103: 500 | K103: 500 | M103: 500
C104: 1000 | E104: 1000 | G104: 1000 | I104: 1000 | K104: 1000 | M104: 1000
C105: 2000 | E105: 2000 | G105: 2000 | I105: 2000 | K105: 2000 | M105: 2000
C106: Path4 timeslices in years
C107: TS_Path4_Spec1 | E107: TS_Path4_Spec2 | G107: TS_Path4_Spec3 | I107: TS_Path4_Spec4 | K107: TS_Path4_Spec5 | M107: TS_Path4_Spec6
C108: 0.1 | E108: 0.1 | G108: 0.1 | I108: 0.1 | K108: 0.01 | M108: 0.1
C109: 0.5 | E109: 0.5 | G109: 0.5 | I109: 0.5 | K109: 0.05 | M109: 0.5
C110: 1 | E110: 1 | G110: 1 | I110: 1 | K110: 0.75 | M110: 1
C111: 2 | E111: 2 | G111: 2 | I111: 2 | K111: 0.1 | M111: 2
C112: 3 | E112: 3 | G112: 3 | I112: 3 | K112: 0.5 | M112: 3
C113: 5 | E113: 5 | G113: 5 | I113: 5 | K113: 1 | M113: 5
C114: 10 | E114: 10 | G114: 10 | I114: 10 | K114: 2 | M114: 10
C115: 50 | E115: 50 | G115: 50 | I115: 50 | K115: 5 | M115: 50
C116: 75 | E116: 75 | G116: 75 | I116: 75 | K116: 10 | M116: 75
C117: 100 | E117: 100 | G117: 100 | I117: 100 | K117: 50 | M117: 100
C118: 110 | E118: 110 | G118: 110 | I118: 110 | K118: 100 | M118: 110
C119: 120 | E119: 120 | G119: 120 | I119: 120 | K119: 120 | M119: 120
C120: 130 | E120: 130 | G120: 130 | I120: 130 | K120: 130 | M120: 130
C121: 140 | E121: 140 | G121: 140 | I121: 140 | K121: 140 | M121: 140
C122: 150 | E122: 150 | G122: 150 | I122: 150 | K122: 150 | M122: 150
C123: 160 | E123: 160 | G123: 160 | I123: 160 | K123: 160 | M123: 160
C124: 170 | E124: 170 | G124: 170 | I124: 170 | K124: 170 | M124: 170
C125: 180 | E125: 180 | G125: 180 | I125: 180 | K125: 180 | M125: 180
C126: 190 | E126: 190 | G126: 190 | I126: 190 | K126: 190 | M126: 190
C127: 200 | E127: 200 | G127: 200 | I127: 200 | K127: 200 | M127: 200
C128: 300 | E128: 300 | G128: 300 | I128: 300 | K128: 300 | M128: 300
C129: 400 | E129: 400 | G129: 400 | I129: 400 | K129: 400 | M129: 400
C130: 500 | E130: 500 | G130: 500 | I130: 500 | K130: 500 | M130: 500
C131: 1000 | E131: 1000 | G131: 1000 | I131: 1000 | K131: 1000 | M131: 1000
C132: 2000 | E132: 2000 | G132: 2000 | I132: 2000 | K132: 2000 | M132: 2000
C133: Path5 timeslices in years
C134: TS_Path5_Spec1 | E134: TS_Path5_Spec2 | G134: TS_Path5_Spec3 | I134: TS_Path5_Spec4 | K134: TS_Path5_Spec5 | M134: TS_Path5_Spec6
C135: 0.1 | E135: 0.1 | G135: 0.1 | I135: 0.1 | K135: 0.01 | M135: 0.1
C136: 0.5 | E136: 0.5 | G136: 0.5 | I136: 0.5 | K136: 0.05 | M136: 0.5
C137: 1 | E137: 1 | G137: 1 | I137: 1 | K137: 0.75 | M137: 1
C138: 2 | E138: 2 | G138: 2 | I138: 2 | K138: 0.1 | M138: 2
C139: 3 | E139: 3 | G139: 3 | I139: 3 | K139: 0.5 | M139: 3
C140: 5 | E140: 5 | G140: 5 | I140: 5 | K140: 1 | M140: 5
C141: 10 | E141: 10 | G141: 10 | I141: 10 | K141: 2 | M141: 10
C142: 50 | E142: 50 | G142: 50 | I142: 50 | K142: 5 | M142: 50
C143: 75 | E143: 75 | G143: 75 | I143: 75 | K143: 10 | M143: 75
C144: 100 | E144: 100 | G144: 100 | I144: 100 | K144: 50 | M144: 100
C145: 110 | E145: 110 | G145: 110 | I145: 110 | K145: 100 | M145: 110
C146: 120 | E146: 120 | G146: 120 | I146: 120 | K146: 120 | M146: 120
C147: 130 | E147: 130 | G147: 130 | I147: 130 | K147: 130 | M147: 130
C148: 140 | E148: 140 | G148: 140 | I148: 140 | K148: 140 | M148: 140
C149: 150 | E149: 150 | G149: 150 | I149: 150 | K149: 150 | M149: 150
C150: 160 | E150: 160 | G150: 160 | I150: 160 | K150: 160 | M150: 160
C151: 170 | E151: 170 | G151: 170 | I151: 170 | K151: 170 | M151: 170
C152: 180 | E152: 180 | G152: 180 | I152: 180 | K152: 180 | M152: 180
C153: 190 | E153: 190 | G153: 190 | I153: 190 | K153: 190 | M153: 190
C154: 200 | E154: 200 | G154: 200 | I154: 200 | K154: 200 | M154: 200
C155: 300 | E155: 300 | G155: 300 | I155: 300 | K155: 300 | M155: 300
C156: 400 | E156: 400 | G156: 400 | I156: 400 | K156: 400 | M156: 400
C157: 500 | E157: 500 | G157: 500 | I157: 500 | K157: 500 | M157: 500
C158: 1000 | E158: 1000 | G158: 1000 | I158: 1000 | K158: 1000 | M158: 1000
C159: 2000 | E159: 2000 | G159: 2000 | I159: 2000 | K159: 2000 | M159: 2000
C160: Path6 timeslices in years
C161: TS_Path6_Spec1 | E161: TS_Path6_Spec2 | G161: TS_Path6_Spec3 | I161: TS_Path6_Spec4 | K161: TS_Path6_Spec5 | M161: TS_Path6_Spec6
C162: 0.1 | E162: 0.1 | G162: 0.1 | I162: 0.1 | K162: 0.01 | M162: 0.1
C163: 0.5 | E163: 0.5 | G163: 0.5 | I163: 0.5 | K163: 0.05 | M163: 0.5
C164: 1 | E164: 1 | G164: 1 | I164: 1 | K164: 0.75 | M164: 1
C165: 2 | E165: 2 | G165: 2 | I165: 2 | K165: 0.1 | M165: 2
C166: 3 | E166: 3 | G166: 3 | I166: 3 | K166: 0.5 | M166: 3
C167: 5 | E167: 5 | G167: 5 | I167: 5 | K167: 1 | M167: 5
C168: 10 | E168: 10 | G168: 10 | I168: 10 | K168: 2 | M168: 10
C169: 50 | E169: 50 | G169: 50 | I169: 50 | K169: 5 | M169: 50
C170: 75 | E170: 75 | G170: 75 | I170: 75 | K170: 10 | M170: 75
C171: 100 | E171: 100 | G171: 100 | I171: 100 | K171: 50 | M171: 100
C172: 110 | E172: 110 | G172: 110 | I172: 110 | K172: 100 | M172: 110
C173: 120 | E173: 120 | G173: 120 | I173: 120 | K173: 120 | M173: 120
C174: 130 | E174: 130 | G174: 130 | I174: 130 | K174: 130 | M174: 130
C175: 140 | E175: 140 | G175: 140 | I175: 140 | K175: 140 | M175: 140
C176: 150 | E176: 150 | G176: 150 | I176: 150 | K176: 150 | M176: 150
C177: 160 | E177: 160 | G177: 160 | I177: 160 | K177: 160 | M177: 160
C178: 170 | E178: 170 | G178: 170 | I178: 170 | K178: 170 | M178: 170
C179: 180 | E179: 180 | G179: 180 | I179: 180 | K179: 180 | M179: 180
C180: 190 | E180: 190 | G180: 190 | I180: 190 | K180: 190 | M180: 190
C181: 200 | E181: 200 | G181: 200 | I181: 200 | K181: 200 | M181: 200
C182: 300 | E182: 300 | G182: 300 | I182: 300 | K182: 300 | M182: 300
C183: 400 | E183: 400 | G183: 400 | I183: 400 | K183: 400 | M183: 400
C184: 500 | E184: 500 | G184: 500 | I184: 500 | K184: 500 | M184: 500
C185: 1000 | E185: 1000 | G185: 1000 | I185: 1000 | K185: 1000 | M185: 1000
C186: 2000 | E186: 2000 | G186: 2000 | I186: 2000 | K186: 2000 | M186: 2000

Sheet Audit
A1: AUDIT TRAIL SHEET
A3: Author | B3: Date | C3: Time | E3: Cell Address | G3: New Value | H3: Old Value | I3: Cell Name
A6: Saved 09/05/2025: 10:33:24 Level Number: 5
A8: BREAKTHROUGH RESULTS
A10: Advanced
A11: Pollutant Linkage: New Phases, AGB, Lower Calc Grit, NonHaz Compliance | O11: Pollutant Linkage: New Phases, AGB, Haz Compliance | AC11: Pollutant Linkage: Existing Phases, AGB, Lower Calc Grit, NonHaz Compliance | AQ11: Pollutant Linkage: Existing Phases, AGB, Haz Compliance
A12: Concentrations in mg/L in NonHaz Compliance | O12: Concentrations in mg/L in Haz Compliance | AC12: Concentrations in mg/L in NonHaz Compliance | AQ12: Concentrations in mg/L in Haz Compliance
A14: Compared with CompLimit target concentration in mg/L | O14: Compared with CompLimit target concentration in mg/L | AC14: Compared with CompLimit target concentration in mg/L | AQ14: Compared with CompLimit target concentration in mg/L
B15: 0.1 | D15: 0.5 | F15: 0.05 | H15: 250 | J15: 0.004 | L15: 0.0001 | P15: 0.1 | R15: 0.5 | T15: 0.05 | V15: 250 | X15: 0.004 | Z15: 0.0001 | AD15: 0.1 | AF15: 0.5 | AH15: 0.05 | AJ15: 250 | AL15: 0.004 | AN15: 0.0001 | AR15: 0.1 | AT15: 0.5 | AV15: 0.05 | AX15: 250 | AZ15: 0.004 | BB15: 0.0001
B17: Species1 | D17: Species2 | F17: Species3 | H17: Species4 | J17: Species5 | L17: Species6 | P17: Species1 | R17: Species2 | T17: Species3 | V17: Species4 | X17: Species5 | Z17: Species6 | AD17: Species1 | AF17: Species2 | AH17: Species3 | AJ17: Species4 | AL17: Species5 | AN17: Species6 | AR17: Species1 | AT17: Species2 | AV17: Species3 | AX17: Species4 | AZ17: Species5 | BB17: Species6
A18: Time(years) | B18: Lead | C18: Time(years) | D18: AmmN | E18: Time(years) | F18: Nickel | G18: Time(years) | H18: Chloride | I18: Time(years) | J18: Toluene | K18: Time(years) | L18: Cadmium | O18: Time(years) | P18: Lead | Q18: Time(years) | R18: AmmN | S18: Time(years) | T18: Nickel | U18: Time(years) | V18: Chloride | W18: Time(years) | X18: Toluene | Y18: Time(years) | Z18: Cadmium | AC18: Time(years) | AD18: Lead | AE18: Time(years) | AF18: AmmN | AG18: Time(years) | AH18: Nickel | AI18: Time(years) | AJ18: Chloride | AK18: Time(years) | AL18: Toluene | AM18: Time(years) | AN18: Cadmium | AQ18: Time(years) | AR18: Lead | AS18: Time(years) | AT18: AmmN | AU18: Time(years) | AV18: Nickel | AW18: Time(years) | AX18: Chloride | AY18: Time(years) | AZ18: Toluene | BA18: Time(years) | BB18: Cadmium
A19: 0.1 | B19: 0 | C19: 0.1 | D19: 0 | E19: 0.1 | F19: 0 | G19: 0.1 | H19: 0 | I19: 0.1 | J19: 0 | K19: 0.1 | L19: 0 | O19: 0.1 | P19: 0 | Q19: 0.1 | R19: 3.794914195e-05 | S19: 0.1 | T19: 9.90489998e-40 | U19: 0.1 | V19: 0.2187127068 | W19: 0.1 | X19: 0.003402266837 | Y19: 0.1 | Z19: 5.57363985e-12 | AC19: 0.1 | AD19: 0 | AE19: 0.1 | AF19: 0 | AG19: 0.1 | AH19: 0 | AI19: 0.1 | AJ19: 0 | AK19: 0.1 | AL19: 0 | AM19: 0.1 | AN19: 0 | AQ19: 0.1 | AR19: 0 | AS19: 0.1 | AT19: 2.351069765e-05 | AU19: 0.1 | AV19: 1.532696407e-40 | AW19: 0.1 | AX19: 0.1177791581 | AY19: 0.1 | AZ19: 9.240166266e-07 | BA19: 0.1 | BB19: 3.150292148e-12
A20: 0.5 | B20: 0 | C20: 0.5 | D20: 0 | E20: 0.5 | F20: 0 | G20: 0.5 | H20: 0 | I20: 0.5 | J20: 0 | K20: 0.5 | L20: 0 | O20: 0.5 | P20: 0 | Q20: 0.5 | R20: 0.000151836664 | S20: 0.5 | T20: 2.40850781e-22 | U20: 0.5 | V20: 9.431353578e-05 | W20: 0.5 | X20: 0.0002648193195 | Y20: 0.5 | Z20: 1.568518898e-06 | AC20: 0.5 | AD20: 0 | AE20: 0.5 | AF20: 0 | AG20: 0.5 | AH20: 0 | AI20: 0.5 | AJ20: 0 | AK20: 0.5 | AL20: 0 | AM20: 0.5 | AN20: 0 | AQ20: 0.5 | AR20: 0 | AS20: 0.5 | AT20: 9.478625754e-05 | AU20: 0.5 | AV20: 3.273598348e-23 | AW20: 0.5 | AX20: 5.089596376e-05 | AY20: 0.5 | AZ20: 7.185267681e-08 | BA20: 0.5 | BB20: 9.037609082e-07
A21: 1 | B21: 0 | C21: 1 | D21: 0 | E21: 1 | F21: 0 | G21: 1 | H21: 0 | I21: 1 | J21: 0 | K21: 1 | L21: 0 | O21: 1 | P21: 0 | Q21: 1 | R21: 3.201626997e-06 | S21: 1 | T21: 1.554686618e-12 | U21: 1 | V21: 2.640504476e-09 | W21: 1 | X21: 5.695352383e-05 | Y21: 1 | Z21: 9.014060627e-07 | AC21: 1 | AD21: 0 | AE21: 1 | AF21: 0 | AG21: 1 | AH21: 0 | AI21: 1 | AJ21: 0 | AK21: 1 | AL21: 0 | AM21: 1 | AN21: 0 | AQ21: 1 | AR21: 0 | AS21: 1 | AT21: 1.998891279e-06 | AU21: 1 | AV21: 2.366553587e-13 | AW21: 1 | AX21: 1.424903052e-09 | AY21: 1 | AZ21: 1.545062825e-08 | BA21: 1 | BB21: 5.196437316e-07
A22: 2 | B22: 0 | C22: 2 | D22: 0 | E22: 2 | F22: 0 | G22: 2 | H22: 0 | I22: 2 | J22: 5.252918726e-40 | K22: 2 | L22: 0 | O22: 2 | P22: 0 | Q22: 2 | R22: 1.144686992e-09 | S22: 2 | T22: 1.968773662e-08 | U22: 2 | V22: 0 | W22: 2 | X22: 7.061081717e-06 | Y22: 2 | Z22: 4.079214646e-08 | AC22: 2 | AD22: 0 | AE22: 2 | AF22: 0 | AG22: 2 | AH22: 0 | AI22: 2 | AJ22: 0 | AK22: 2 | AL22: 0 | AM22: 2 | AN22: 0 | AQ22: 2 | AR22: 0 | AS22: 2 | AT22: 7.146592785e-10 | AU22: 2 | AV22: 3.001998564e-09 | AW22: 2 | AX22: 0 | AY22: 2 | AZ22: 1.915409545e-09 | BA22: 2 | BB22: 2.351791936e-08
A23: 3 | B23: 0 | C23: 3 | D23: 0 | E23: 3 | F23: 0 | G23: 3 | H23: 0 | I23: 3 | J23: 0 | K23: 3 | L23: 0 | O23: 3 | P23: 0 | Q23: 3 | R23: 8.32072084e-13 | S23: 3 | T23: 2.917855747e-07 | U23: 3 | V23: 0 | W23: 3 | X23: 1.331813053e-06 | Y23: 3 | Z23: 1.450864148e-09 | AC23: 3 | AD23: 0 | AE23: 3 | AF23: 0 | AG23: 3 | AH23: 0 | AI23: 3 | AJ23: 0 | AK23: 3 | AL23: 0 | AM23: 3 | AN23: 0 | AQ23: 3 | AR23: 0 | AS23: 3 | AT23: 5.20008076e-13 | AU23: 3 | AV23: 4.45052455e-08 | AW23: 3 | AX23: 0 | AY23: 3 | AZ23: 3.612615761e-10 | BA23: 3 | BB23: 8.364703551e-10
A24: 5 | B24: 0 | C24: 5 | D24: 0 | E24: 5 | F24: 0 | G24: 5 | H24: 0 | I24: 5 | J24: 8.851748963e-29 | K24: 5 | L24: 0 | O24: 5 | P24: 0 | Q24: 5 | R24: 0 | S24: 5 | T24: 1.353039593e-06 | U24: 5 | V24: 0 | W24: 5 | X24: 7.377692653e-08 | Y24: 5 | Z24: 1.924581912e-12 | AC24: 5 | AD24: 0 | AE24: 5 | AF24: 0 | AG24: 5 | AH24: 0 | AI24: 5 | AJ24: 0 | AK24: 5 | AL24: 2.400937981e-32 | AM24: 5 | AN24: 0 | AQ24: 5 | AR24: 0 | AS24: 5 | AT24: 0 | AU24: 5 | AV24: 2.064060478e-07 | AW24: 5 | AX24: 0 | AY24: 5 | AZ24: 2.001194779e-11 | BA24: 5 | BB24: 1.109576498e-12
A25: 10 | B25: 0 | C25: 10 | D25: 0 | E25: 10 | F25: 0 | G25: 10 | H25: 0 | I25: 10 | J25: 7.173792504e-24 | K25: 10 | L25: 0 | O25: 10 | P25: 0 | Q25: 10 | R25: 0 | S25: 10 | T25: 9.880218703e-07 | U25: 10 | V25: 0 | W25: 10 | X25: 1.221221859e-10 | Y25: 10 | Z25: 0 | AC25: 10 | AD25: 0 | AE25: 10 | AF25: 0 | AG25: 10 | AH25: 0 | AI25: 10 | AJ25: 0 | AK25: 10 | AL25: 1.945068629e-27 | AM25: 10 | AN25: 0 | AQ25: 10 | AR25: 0 | AS25: 10 | AT25: 0 | AU25: 10 | AV25: 1.507309803e-07 | AW25: 10 | AX25: 0 | AY25: 10 | AZ25: 3.31227319e-14 | BA25: 10 | BB25: 0
A26: 50 | B26: 0 | C26: 50 | D26: 0 | E26: 50 | F26: 0 | G26: 50 | H26: 1.55314268e-10 | I26: 50 | J26: 7.980748129e-31 | K26: 50 | L26: 0 | O26: 50 | P26: 2.093021863e-23 | Q26: 50 | R26: 0 | S26: 50 | T26: 5.399280329e-12 | U26: 50 | V26: 9.039947565e-12 | W26: 50 | X26: 2.473652157e-13 | Y26: 50 | Z26: 0 | AC26: 50 | AD26: 0 | AE26: 50 | AF26: 0 | AG26: 50 | AH26: 0 | AI26: 50 | AJ26: 8.360965222e-11 | AK26: 50 | AL26: 2.165275332e-34 | AM26: 50 | AN26: 0 | AQ26: 50 | AR26: 5.675079155e-25 | AS26: 50 | AT26: 0 | AU26: 50 | AV26: 8.237132358e-13 | AW26: 50 | AX26: 4.858452572e-12 | AY26: 50 | AZ26: 6.691549369e-17 | BA26: 50 | BB26: 0
A27: 75 | B27: 0 | C27: 75 | D27: 0 | E27: 75 | F27: 0 | G27: 75 | H27: 7.109348206e-08 | I27: 75 | J27: 3.547790638e-31 | K27: 75 | L27: 0 | O27: 75 | P27: 3.339740646e-17 | Q27: 75 | R27: 0 | S27: 75 | T27: 3.911388399e-15 | U27: 75 | V27: 9.859462811e-12 | W27: 75 | X27: 3.28682053e-13 | Y27: 75 | Z27: 0 | AC27: 75 | AD27: 0 | AE27: 75 | AF27: 0 | AG27: 75 | AH27: 0 | AI27: 75 | AJ27: 3.827238379e-08 | AK27: 75 | AL27: 9.625804296e-35 | AM27: 75 | AN27: 0 | AQ27: 75 | AR27: 9.057289417e-19 | AS27: 75 | AT27: 0 | AU27: 75 | AV27: 5.966696094e-16 | AW27: 75 | AX27: 5.302545097e-12 | AY27: 75 | AZ27: 8.903022356e-17 | BA27: 75 | BB27: 0
A28: 100 | B28: 0 | C28: 100 | D28: 1.152296767e-28 | E28: 100 | F28: 0 | G28: 100 | H28: 1.235792555e-06 | I28: 100 | J28: 0 | K28: 100 | L28: 1.352094601e-36 | O28: 100 | P28: 2.458104646e-14 | Q28: 100 | R28: 1.070369425e-14 | S28: 100 | T28: 0 | U28: 100 | V28: 8.858303298e-12 | W28: 100 | X28: 3.176134116e-13 | Y28: 100 | Z28: 0 | AC28: 100 | AD28: 0 | AE28: 100 | AF28: 7.187759691e-29 | AG28: 100 | AH28: 0 | AI28: 100 | AJ28: 6.652807458e-07 | AK28: 100 | AL28: 0 | AM28: 100 | AN28: 7.792403799e-37 | AQ28: 100 | AR28: 6.666435223e-16 | AS28: 100 | AT28: 6.66743757e-15 | AU28: 100 | AV28: 0 | AW28: 100 | AX28: 4.766983902e-12 | AY28: 100 | AZ28: 8.610066888e-17 | BA28: 100 | BB28: 0
A29: 110 | B29: 0 | C29: 110 | D29: 0 | E29: 110 | F29: 0 | G29: 110 | H29: 2.573764116e-06 | I29: 110 | J29: 0 | K29: 110 | L29: 0 | O29: 110 | P29: 1.437074807e-13 | Q29: 110 | R29: 1.524924743e-14 | S29: 110 | T29: 0 | U29: 110 | V29: 8.438508433e-12 | W29: 110 | X29: 3.079161247e-13 | Y29: 110 | Z29: 0 | AC29: 110 | AD29: 0 | AE29: 110 | AF29: 0 | AG29: 110 | AH29: 0 | AI29: 110 | AJ29: 1.385571443e-06 | AK29: 110 | AL29: 0 | AM29: 110 | AN29: 0 | AQ29: 110 | AR29: 3.897394778e-15 | AS29: 110 | AT29: 9.496994606e-15 | AU29: 110 | AV29: 0 | AW29: 110 | AX29: 4.540144332e-12 | AY29: 110 | AZ29: 8.347163454e-17 | BA29: 110 | BB29: 0
A30: 120 | B30: 0 | C30: 120 | D30: 7.875904401e-28 | E30: 120 | F30: 0 | G30: 120 | H30: 4.641704697e-06 | I30: 120 | J30: 0 | K30: 120 | L30: 0 | O30: 120 | P30: 6.158793805e-13 | Q30: 120 | R30: 1.815853842e-14 | S30: 120 | T30: 0 | U30: 120 | V30: 8.000237467e-12 | W30: 120 | X30: 2.966091227e-13 | Y30: 120 | Z30: 0 | AC30: 120 | AD30: 0 | AE30: 120 | AF30: 4.912699447e-28 | AG30: 120 | AH30: 0 | AI30: 120 | AJ30: 2.498839112e-06 | AK30: 120 | AL30: 0 | AM30: 120 | AN30: 0 | AQ30: 120 | AR30: 1.670290442e-14 | AS30: 120 | AT30: 1.131580935e-14 | AU30: 120 | AV30: 0 | AW30: 120 | AX30: 4.306401264e-12 | AY30: 120 | AZ30: 8.041633295e-17 | BA30: 120 | BB30: 0
A31: 130 | B31: 0 | C31: 130 | D31: 5.346737425e-27 | E31: 130 | F31: 0 | G31: 130 | H31: 7.500575164e-06 | I31: 130 | J31: 0 | K31: 130 | L31: 1.099578458e-32 | O31: 130 | P31: 2.080427461e-12 | Q31: 130 | R31: 2.008496915e-14 | S31: 130 | T31: 0 | U31: 130 | V31: 7.60652082e-12 | W31: 130 | X31: 2.853869779e-13 | Y31: 130 | Z31: 0 | AC31: 130 | AD31: 0 | AE31: 130 | AF31: 3.335113451e-27 | AG31: 130 | AH31: 0 | AI31: 130 | AJ31: 4.037902444e-06 | AK31: 130 | AL31: 0 | AM31: 130 | AN31: 6.337039996e-33 | AQ31: 130 | AR31: 5.642218805e-14 | AS31: 130 | AT31: 1.252300109e-14 | AU31: 130 | AV31: 0 | AW31: 130 | AX31: 4.094007675e-12 | AY31: 130 | AZ31: 7.739542047e-17 | BA31: 130 | BB31: 0
A32: 140 | B32: 0 | C32: 140 | D32: 3.38141458e-26 | E32: 140 | F32: 0 | G32: 140 | H32: 1.112625267e-05 | I32: 140 | J32: 0 | K32: 140 | L32: 0 | O32: 140 | P32: 5.833078783e-12 | Q32: 140 | R32: 2.132474669e-14 | S32: 140 | T32: 0 | U32: 140 | V32: 7.255872238e-12 | W32: 140 | X32: 2.749730262e-13 | Y32: 140 | Z32: 0 | AC32: 140 | AD32: 0 | AE32: 140 | AF32: 2.109213161e-26 | AG32: 140 | AH32: 0 | AI32: 140 | AJ32: 5.989775439e-06 | AK32: 140 | AL32: 0 | AM32: 140 | AN32: 0 | AQ32: 140 | AR32: 1.581961795e-13 | AS32: 140 | AT32: 1.328912734e-14 | AU32: 140 | AV32: 0 | AW32: 140 | AX32: 3.904855509e-12 | AY32: 140 | AZ32: 7.45599335e-17 | BA32: 140 | BB32: 0
A33: 150 | B33: 0 | C33: 150 | D33: 1.575250296e-25 | E33: 150 | F33: 0 | G33: 150 | H33: 1.542124033e-05 | I33: 150 | J33: 1.248585973e-30 | K33: 150 | L33: 0 | O33: 150 | P33: 1.409785708e-11 | Q33: 150 | R33: 2.206917369e-14 | S33: 150 | T33: 0 | U33: 150 | V33: 6.913460514e-12 | W33: 150 | X33: 2.641564202e-13 | Y33: 150 | Z33: 0 | AC33: 150 | AD33: 0 | AE33: 150 | AF33: 9.825934278e-26 | AG33: 150 | AH33: 0 | AI33: 150 | AJ33: 8.301971189e-06 | AK33: 150 | AL33: 3.387275479e-34 | AM33: 150 | AN33: 0 | AQ33: 150 | AR33: 3.823419027e-13 | AS33: 150 | AT33: 1.375936882e-14 | AU33: 150 | AV33: 0 | AW33: 150 | AX33: 3.720544858e-12 | AY33: 150 | AZ33: 7.163420549e-17 | BA33: 150 | BB33: 0
A34: 160 | B34: 0 | C34: 160 | D34: 5.13284432e-25 | E34: 160 | F34: 0 | G34: 160 | H34: 2.023639679e-05 | I34: 160 | J34: 3.301666535e-30 | K34: 160 | L34: 3.966761762e-32 | O34: 160 | P34: 3.021374835e-11 | Q34: 160 | R34: 2.247989313e-14 | S34: 160 | T34: 0 | U34: 160 | V34: 6.591658242e-12 | W34: 160 | X34: 2.53943806e-13 | Y34: 160 | Z34: 0 | AC34: 160 | AD34: 0 | AE34: 160 | AF34: 3.201722437e-25 | AG34: 160 | AH34: 0 | AI34: 160 | AJ34: 1.089419994e-05 | AK34: 160 | AL34: 8.955900057e-34 | AM34: 160 | AN34: 2.284970724e-32 | AQ34: 160 | AR34: 8.194150323e-13 | AS34: 160 | AT34: 1.402006802e-14 | AU34: 160 | AV34: 0 | AW34: 160 | AX34: 3.547761703e-12 | AY34: 160 | AZ34: 6.885985547e-17 | BA34: 160 | BB34: 0
A35: 170 | B35: 0 | C35: 170 | D35: 1.304829512e-24 | E35: 170 | F35: 0 | G35: 170 | H35: 2.539489334e-05 | I35: 170 | J35: 5.047420096e-30 | K35: 170 | L35: 8.737925301e-30 | O35: 170 | P35: 5.867117706e-11 | Q35: 170 | R35: 2.266967817e-14 | S35: 170 | T35: 0 | U35: 170 | V35: 6.293971345e-12 | W35: 170 | X35: 2.444658534e-13 | Y35: 170 | Z35: 0 | AC35: 170 | AD35: 0 | AE35: 170 | AF35: 8.139176389e-25 | AG35: 170 | AH35: 0 | AI35: 170 | AJ35: 1.367126635e-05 | AK35: 170 | AL35: 1.368592888e-33 | AM35: 170 | AN35: 5.035816888e-30 | AQ35: 170 | AR35: 1.59119921e-12 | AS35: 170 | AT35: 1.413612837e-14 | AU35: 170 | AV35: 0 | AW35: 170 | AX35: 3.386543196e-12 | AY35: 170 | AZ35: 6.628314709e-17 | BA35: 170 | BB35: 0
A36: 180 | B36: 0 | C36: 180 | D36: 2.687002429e-24 | E36: 180 | F36: 0 | G36: 180 | H36: 3.071342496e-05 | I36: 180 | J36: 6.303146673e-30 | K36: 180 | L36: 8.742351829e-30 | O36: 180 | P36: 1.049749196e-10 | Q36: 180 | R36: 2.267064527e-14 | S36: 180 | T36: 0 | U36: 180 | V36: 6.031112629e-12 | W36: 180 | X36: 2.355829237e-13 | Y36: 180 | Z36: 0 | AC36: 180 | AD36: 0 | AE36: 180 | AF36: 1.67608371e-24 | AG36: 180 | AH36: 0 | AI36: 180 | AJ36: 1.653448845e-05 | AK36: 180 | AL36: 1.709576711e-33 | AM36: 180 | AN36: 5.038501346e-30 | AQ36: 180 | AR36: 2.846988196e-12 | AS36: 180 | AT36: 1.413909229e-14 | AU36: 180 | AV36: 0 | AW36: 180 | AX36: 3.246479583e-12 | AY36: 180 | AZ36: 6.389122212e-17 | BA36: 180 | BB36: 0
A37: 190 | B37: 0 | C37: 190 | D37: 4.6184581e-24 | E37: 190 | F37: 0 | G37: 190 | H37: 3.601838018e-05 | I37: 190 | J37: 7.059329724e-30 | K37: 190 | L37: 0 | O37: 190 | P37: 1.753532202e-10 | Q37: 190 | R37: 2.256839168e-14 | S37: 190 | T37: 0 | U37: 190 | V37: 5.794236996e-12 | W37: 190 | X37: 2.272393996e-13 | Y37: 190 | Z37: 0 | AC37: 190 | AD37: 0 | AE37: 190 | AF37: 2.880881899e-24 | AG37: 190 | AH37: 0 | AI37: 190 | AJ37: 1.939040272e-05 | AK37: 190 | AL37: 1.914446678e-33 | AM37: 190 | AN37: 0 | AQ37: 190 | AR37: 4.755696898e-12 | AS37: 190 | AT37: 1.407524004e-14 | AU37: 190 | AV37: 0 | AW37: 190 | AX37: 3.118325431e-12 | AY37: 190 | AZ37: 6.162397891e-17 | BA37: 190 | BB37: 0
A38: 200 | B38: 0 | C38: 200 | D38: 6.816095278e-24 | E38: 200 | F38: 0 | G38: 200 | H38: 4.115654542e-05 | I38: 200 | J38: 7.342299381e-30 | K38: 200 | L38: 0 | O38: 200 | P38: 2.763628463e-10 | Q38: 200 | R38: 2.239518244e-14 | S38: 200 | T38: 0 | U38: 200 | V38: 5.561912321e-12 | W38: 200 | X38: 2.192669411e-13 | Y38: 200 | Z38: 0 | AC38: 200 | AD38: 0 | AE38: 200 | AF38: 4.251721187e-24 | AG38: 200 | AH38: 0 | AI38: 200 | AJ38: 2.215652672e-05 | AK38: 200 | AL38: 1.991079817e-33 | AM38: 200 | AN38: 0 | AQ38: 200 | AR38: 7.495150164e-12 | AS38: 200 | AT38: 1.396914425e-14 | AU38: 200 | AV38: 0 | AW38: 200 | AX38: 2.993444634e-12 | AY38: 200 | AZ38: 5.944227387e-17 | BA38: 200 | BB38: 0
A39: 300 | B39: 0 | C39: 300 | D39: 2.28292794e-24 | E39: 300 | F39: 0 | G39: 300 | H39: 6.788988154e-05 | I39: 300 | J39: 0 | K39: 300 | L39: 6.496934611e-26 | O39: 300 | P39: 3.92518691e-09 | Q39: 300 | R39: 1.890300543e-14 | S39: 300 | T39: 0 | U39: 300 | V39: 3.964126811e-12 | W39: 300 | X39: 1.609204178e-13 | Y39: 300 | Z39: 6.634161302e-17 | AC39: 300 | AD39: 0 | AE39: 300 | AF39: 1.424048563e-24 | AG39: 300 | AH39: 0 | AI39: 300 | AJ39: 3.654840175e-05 | AK39: 300 | AL39: 0 | AM39: 300 | AN39: 3.744319981e-26 | AQ39: 300 | AR39: 1.064540864e-10 | AS39: 300 | AT39: 1.179113028e-14 | AU39: 300 | AV39: 0 | AW39: 300 | AX39: 2.133459409e-12 | AY39: 300 | AZ39: 4.364205387e-17 | BA39: 300 | BB39: 3.822857862e-17
A40: 400 | B40: 0 | C40: 400 | D40: 1.07106855e-26 | E40: 400 | F40: 0 | G40: 400 | H40: 5.663971429e-05 | I40: 400 | J40: 0 | K40: 400 | L40: 1.235618377e-22 | O40: 400 | P40: 1.125887369e-08 | Q40: 400 | R40: 1.568668841e-14 | S40: 400 | T40: 0 | U40: 400 | V40: 3.06682597e-12 | W40: 400 | X40: 1.26397865e-13 | Y40: 400 | Z40: 7.810300329e-17 | AC40: 400 | AD40: 0 | AE40: 400 | AF40: 6.681147488e-27 | AG40: 400 | AH40: 0 | AI40: 400 | AJ40: 3.049190622e-05 | AK40: 400 | AL40: 0 | AM40: 400 | AN40: 7.121015214e-23 | AQ40: 400 | AR40: 3.0534962e-10 | AS40: 400 | AT40: 9.783513303e-15 | AU40: 400 | AV40: 0 | AW40: 400 | AX40: 1.65050881e-12 | AY40: 400 | AZ40: 3.427829566e-17 | BA40: 400 | BB40: 4.501152333e-17
A41: 500 | B41: 0 | C41: 500 | D41: 9.377947672e-30 | E41: 500 | F41: 0 | G41: 500 | H41: 3.693392052e-05 | I41: 500 | J41: 0 | K41: 500 | L41: 1.372600643e-19 | O41: 500 | P41: 1.748167258e-08 | Q41: 500 | R41: 1.329981718e-14 | S41: 500 | T41: 0 | U41: 500 | V41: 2.50483107e-12 | W41: 500 | X41: 1.04006834e-13 | Y41: 500 | Z41: 7.648324661e-17 | AC41: 500 | AD41: 0 | AE41: 500 | AF41: 5.849815055e-30 | AG41: 500 | AH41: 0 | AI41: 500 | AJ41: 1.988332483e-05 | AK41: 500 | AL41: 0 | AM41: 500 | AN41: 7.910488001e-20 | AQ41: 500 | AR41: 4.741170953e-10 | AS41: 500 | AT41: 8.297318518e-15 | AU41: 500 | AV41: 0 | AW41: 500 | AX41: 1.348371631e-12 | AY41: 500 | AZ41: 2.820236435e-17 | BA41: 500 | BB41: 4.407915241e-17
A42: 1000 | B42: 0 | C42: 1000 | D42: 9.684438452e-34 | E42: 1000 | F42: 2.985553598e-39 | G42: 1000 | H42: 1.752588324e-06 | I42: 1000 | J42: 0 | K42: 1000 | L42: 1.030094183e-13 | O42: 1000 | P42: 1.215208583e-08 | Q42: 1000 | R42: 7.394430798e-15 | S42: 1000 | T42: 0 | U42: 1000 | V42: 1.297294077e-12 | W42: 1000 | X42: 5.481915694e-14 | Y42: 1000 | Z42: 5.246105277e-17 | AC42: 1000 | AD42: 0 | AE42: 1000 | AF42: 6.045361139e-34 | AG42: 1000 | AH42: 4.55459073e-40 | AI42: 1000 | AJ42: 9.435036581e-07 | AK42: 1000 | AL42: 0 | AM42: 1000 | AN42: 5.936604161e-14 | AQ42: 1000 | AR42: 3.295745735e-10 | AS42: 1000 | AT42: 4.613351551e-15 | AU42: 1000 | AV42: 0 | AW42: 1000 | AX42: 6.985118837e-13 | AY42: 1000 | AZ42: 1.486898946e-17 | BA42: 1000 | BB42: 3.022972073e-17
A43: 2000 | B43: 0 | C43: 2000 | D43: 3.685200485e-33 | E43: 2000 | F43: 8.49472256e-30 | G43: 2000 | H43: 2.384296507e-09 | I43: 2000 | J43: 0 | K43: 2000 | L43: 3.827039943e-11 | O43: 2000 | P43: 6.787032859e-10 | Q43: 2000 | R43: 3.883839934e-15 | S43: 2000 | T43: 0 | U43: 2000 | V43: 6.606826032e-13 | W43: 2000 | X43: 2.813765677e-14 | Y43: 2000 | Z43: 2.991143481e-17 | AC43: 2000 | AD43: 0 | AE43: 2000 | AF43: 2.299365612e-33 | AG43: 2000 | AH43: 1.295909289e-30 | AI43: 2000 | AJ43: 1.28358295e-09 | AK43: 2000 | AL43: 0 | AM43: 2000 | AN43: 2.205589336e-11 | AQ43: 2000 | AR43: 1.840699369e-11 | AS43: 2000 | AT43: 2.422882936e-15 | AU43: 2000 | AV43: 0 | AW43: 2000 | AX43: 3.557280742e-13 | AY43: 2000 | AZ43: 7.630220337e-18 | BA43: 2000 | BB43: 1.72371839e-17
A46: Pollutant Linkage: New Phases, AGB, Lower Calc Grit, NonHaz Compliance | O46: Pollutant Linkage: New Phases, AGB, Haz Compliance | AC46: Pollutant Linkage: Existing Phases, AGB, Lower Calc Grit, NonHaz Compliance | AQ46: Pollutant Linkage: Existing Phases, AGB, Haz Compliance
A47: Remedial Target Concentrations in mg/L in New Phases | O47: Remedial Target Concentrations in mg/L in New Phases | AC47: Remedial Target Concentrations in mg/L in Existing Phases | AQ47: Remedial Target Concentrations in mg/L in Existing Phases
B49: Species1 | D49: Species2 | F49: Species3 | H49: Species4 | J49: Species5 | L49: Species6 | P49: Species1 | R49: Species2 | T49: Species3 | V49: Species4 | X49: Species5 | Z49: Species6 | AD49: Species1 | AF49: Species2 | AH49: Species3 | AJ49: Species4 | AL49: Species5 | AN49: Species6 | AR49: Species1 | AT49: Species2 | AV49: Species3 | AX49: Species4 | AZ49: Species5 | BB49: Species6
A50: Time(years) | B50: Lead | C50: Time(years) | D50: AmmN | E50: Time(years) | F50: Nickel | G50: Time(years) | H50: Chloride | I50: Time(years) | J50: Toluene | K50: Time(years) | L50: Cadmium | O50: Time(years) | P50: Lead | Q50: Time(years) | R50: AmmN | S50: Time(years) | T50: Nickel | U50: Time(years) | V50: Chloride | W50: Time(years) | X50: Toluene | Y50: Time(years) | Z50: Cadmium | AC50: Time(years) | AD50: Lead | AE50: Time(years) | AF50: AmmN | AG50: Time(years) | AH50: Nickel | AI50: Time(years) | AJ50: Chloride | AK50: Time(years) | AL50: Toluene | AM50: Time(years) | AN50: Cadmium | AQ50: Time(years) | AR50: Lead | AS50: Time(years) | AT50: AmmN | AU50: Time(years) | AV50: Nickel | AW50: Time(years) | AX50: Chloride | AY50: Time(years) | AZ50: Toluene | BA50: Time(years) | BB50: Cadmium
A51: 0.1 | B51: 1e+40 | C51: 0.1 | D51: 1e+40 | E51: 0.1 | F51: 1e+40 | G51: 0.1 | H51: 1e+40 | I51: 0.1 | J51: 1e+40 | K51: 0.1 | L51: 1e+40 | O51: 0.1 | P51: 1e+40 | Q51: 0.1 | R51: 6587.764232 | S51: 0.1 | T51: 2.019202621e+36 | U51: 0.1 | V51: 91444.16111 | W51: 0.1 | X51: 5.878433691 | Y51: 0.1 | Z51: 71766.38799 | AC51: 0.1 | AD51: 1e+40 | AE51: 0.1 | AF51: 1e+40 | AG51: 0.1 | AH51: 1e+40 | AI51: 0.1 | AJ51: 1e+40 | AK51: 0.1 | AL51: 1e+40 | AM51: 0.1 | AN51: 1e+40 | AQ51: 0.1 | AR51: 1e+40 | AS51: 0.1 | AT51: 4891.390367 | AU51: 0.1 | AV51: 1.468001092e+36 | AW51: 0.1 | AX51: 67414.30428 | AY51: 0.1 | AZ51: 4.328926434 | BA51: 0.1 | BB51: 53963.24912
A52: 0.5 | B52: 1e+40 | C52: 0.5 | D52: 1e+40 | E52: 0.5 | F52: 1e+40 | G52: 0.5 | H52: 1e+40 | I52: 0.5 | J52: 1e+40 | K52: 0.5 | L52: 1e+40 | O52: 0.5 | P52: 1e+40 | Q52: 0.5 | R52: 1646.506143 | S52: 0.5 | T52: 8.303896678e+18 | U52: 0.5 | V52: 212058638.6 | W52: 0.5 | X52: 75.52319081 | Y52: 0.5 | Z52: 0.2550176479 | AC52: 0.5 | AD52: 1e+40 | AE52: 0.5 | AF52: 1e+40 | AG52: 0.5 | AH52: 1e+40 | AI52: 0.5 | AJ52: 1e+40 | AK52: 0.5 | AL52: 1e+40 | AM52: 0.5 | AN52: 1e+40 | AQ52: 0.5 | AR52: 1e+40 | AS52: 0.5 | AT52: 1213.256046 | AU52: 0.5 | AV52: 6.873170625e+18 | AW52: 0.5 | AX52: 156004512.2 | AY52: 0.5 | AZ52: 55.66946393 | BA52: 0.5 | BB52: 0.1881028472
A53: 1 | B53: 1e+40 | C53: 1 | D53: 1e+40 | E53: 1 | F53: 1e+40 | G53: 1 | H53: 1e+40 | I53: 1 | J53: 1e+40 | K53: 1 | L53: 1e+40 | O53: 1 | P53: 1e+40 | Q53: 1 | R53: 78085.29858 | S53: 1 | T53: 1286432890 | U53: 1 | V53: 7.574310204e+12 | W53: 1 | X53: 351.1635217 | Y53: 1 | Z53: 0.4437511756 | AC53: 1 | AD53: 1e+40 | AE53: 1 | AF53: 1e+40 | AG53: 1 | AH53: 1e+40 | AI53: 1 | AJ53: 1e+40 | AK53: 1 | AL53: 1e+40 | AM53: 1 | AN53: 1e+40 | AQ53: 1 | AR53: 1e+40 | AS53: 1 | AT53: 57531.89342 | AU53: 1 | AV53: 950749652.4 | AW53: 1 | AX53: 5.572308929e+12 | AY53: 1 | AZ53: 258.8891491 | BA53: 1 | BB53: 0.3271472158
A54: 2 | B54: 1e+40 | C54: 2 | D54: 1e+40 | E54: 2 | F54: 1e+40 | G54: 2 | H54: 1e+40 | I54: 2 | J54: 3.80740709e+37 | K54: 2 | L54: 1e+40 | O54: 2 | P54: 1e+40 | Q54: 2 | R54: 218400315.3 | S54: 2 | T54: 101586.0806 | U54: 2 | V54: 1e+40 | W54: 2 | X54: 2832.427212 | Y54: 2 | Z54: 9.805809077 | AC54: 2 | AD54: 1e+40 | AE54: 2 | AF54: 1e+40 | AG54: 2 | AH54: 1e+40 | AI54: 2 | AJ54: 1e+40 | AK54: 2 | AL54: 1e+40 | AM54: 2 | AN54: 1e+40 | AQ54: 2 | AR54: 1e+40 | AS54: 2 | AT54: 160915842.6 | AU54: 2 | AV54: 74950.06917 | AW54: 2 | AX54: 1e+40 | AY54: 2 | AZ54: 2088.326234 | BA54: 2 | BB54: 7.228530612
A55: 3 | B55: 1e+40 | C55: 3 | D55: 1e+40 | E55: 3 | F55: 1e+40 | G55: 3 | H55: 1e+40 | I55: 3 | J55: 1e+40 | K55: 3 | L55: 1e+40 | O55: 3 | P55: 1e+40 | Q55: 3 | R55: 3.00454738e+11 | S55: 3 | T55: 6854.348445 | U55: 3 | V55: 1e+40 | W55: 3 | X55: 15017.12268 | Y55: 3 | Z55: 275.6977629 | AC55: 3 | AD55: 1e+40 | AE55: 3 | AF55: 1e+40 | AG55: 3 | AH55: 1e+40 | AI55: 3 | AJ55: 1e+40 | AK55: 3 | AL55: 1e+40 | AM55: 3 | AN55: 1e+40 | AQ55: 3 | AR55: 1e+40 | AS55: 3 | AT55: 2.211504115e+11 | AU55: 3 | AV55: 5055.583841 | AW55: 3 | AX55: 1e+40 | AY55: 3 | AZ55: 11072.30955 | BA55: 3 | BB55: 203.2349371
A56: 5 | B56: 1e+40 | C56: 5 | D56: 1e+40 | E56: 5 | F56: 1e+40 | G56: 5 | H56: 1e+40 | I56: 5 | J56: 2.259440488e+26 | K56: 5 | L56: 1e+40 | O56: 5 | P56: 1e+40 | Q56: 5 | R56: 1e+40 | S56: 5 | T56: 1478.153345 | U56: 5 | V56: 1e+40 | W56: 5 | X56: 271087.4652 | Y56: 5 | Z56: 207837.3477 | AC56: 5 | AD56: 1e+40 | AE56: 5 | AF56: 1e+40 | AG56: 5 | AH56: 1e+40 | AI56: 5 | AJ56: 1e+40 | AK56: 5 | AL56: 1.666015545e+26 | AM56: 5 | AN56: 1e+40 | AQ56: 5 | AR56: 1e+40 | AS56: 5 | AT56: 1e+40 | AU56: 5 | AV56: 1090.084338 | AW56: 5 | AX56: 1e+40 | AY56: 5 | AZ56: 199880.5934 | BA56: 5 | BB56: 153211.6085
A57: 10 | B57: 1e+40 | C57: 10 | D57: 1e+40 | E57: 10 | F57: 1e+40 | G57: 10 | H57: 1e+40 | I57: 10 | J57: 2.787925632e+21 | K57: 10 | L57: 1e+40 | O57: 10 | P57: 1e+40 | Q57: 10 | R57: 1e+40 | S57: 10 | T57: 2024.246689 | U57: 10 | V57: 1e+40 | W57: 10 | X57: 163770406.3 | Y57: 10 | Z57: 1e+40 | AC57: 10 | AD57: 1e+40 | AE57: 10 | AF57: 1e+40 | AG57: 10 | AH57: 1e+40 | AI57: 10 | AJ57: 1e+40 | AK57: 10 | AL57: 2.056482707e+21 | AM57: 10 | AN57: 1e+40 | AQ57: 10 | AR57: 1e+40 | AS57: 10 | AT57: 1e+40 | AU57: 10 | AV57: 1492.725646 | AW57: 10 | AX57: 1e+40 | AY57: 10 | AZ57: 120762985.7 | BA57: 10 | BB57: 1e+40
A58: 50 | B58: 1e+40 | C58: 50 | D58: 1e+40 | E58: 50 | F58: 1e+40 | G58: 50 | H58: 1.2877117e+14 | I58: 50 | J58: 2.506030722e+28 | K58: 50 | L58: 1e+40 | O58: 50 | P58: 2.388890479e+20 | Q58: 50 | R58: 1e+40 | S58: 50 | T58: 370419737.1 | U58: 50 | V58: 2.212402213e+15 | W58: 50 | X58: 8.08521115e+10 | Y58: 50 | Z58: 1e+40 | AC58: 50 | AD58: 1e+40 | AE58: 50 | AF58: 1e+40 | AG58: 50 | AH58: 1e+40 | AI58: 50 | AJ58: 9.496511215e+13 | AK58: 50 | AL58: 1.847340124e+28 | AM58: 50 | AN58: 1e+40 | AQ58: 50 | AR58: 1.76208996e+20 | AS58: 50 | AT58: 1e+40 | AU58: 50 | AV58: 273153313.8 | AW58: 50 | AX58: 1.634265207e+15 | AY58: 50 | AZ58: 5.977688842e+10 | BA58: 50 | BB58: 1e+40
A59: 75 | B59: 1e+40 | C59: 75 | D59: 1e+40 | E59: 75 | F59: 1e+40 | G59: 75 | H59: 2.813197416e+11 | I59: 75 | J59: 5.637311229e+28 | K59: 75 | L59: 1e+40 | O59: 75 | P59: 1.497122241e+14 | Q59: 75 | R59: 1e+40 | S59: 75 | T59: 5.113273845e+11 | U59: 75 | V59: 2.028508082e+15 | W59: 75 | X59: 6.084907836e+10 | Y59: 75 | Z59: 1e+40 | AC59: 75 | AD59: 1e+40 | AE59: 75 | AF59: 1e+40 | AG59: 75 | AH59: 1e+40 | AI59: 75 | AJ59: 2.074602942e+11 | AK59: 75 | AL59: 4.155496909e+28 | AM59: 75 | AN59: 1e+40 | AQ59: 75 | AR59: 1.10408308e+14 | AS59: 75 | AT59: 1e+40 | AU59: 75 | AV59: 3.770931123e+11 | AW59: 75 | AX59: 1.497394148e+15 | AY59: 75 | AZ59: 4.492856291e+10 | BA59: 75 | BB59: 1e+40
A60: 100 | B60: 1e+40 | C60: 100 | D60: 2.169579982e+27 | E60: 100 | F60: 1e+40 | G60: 100 | H60: 1.618394601e+10 | I60: 100 | J60: 1e+40 | K60: 100 | L60: 2.95837288e+29 | O60: 100 | P60: 2.034087527e+11 | Q60: 100 | R60: 2.335642201e+13 | S60: 100 | T60: 1e+40 | U60: 100 | V60: 2257768708921366 | W60: 100 | X60: 6.29696331e+10 | Y60: 100 | Z60: 1e+40 | AC60: 100 | AD60: 1e+40 | AE60: 100 | AF60: 1.599942193e+27 | AG60: 100 | AH60: 1e+40 | AI60: 100 | AJ60: 1.193481105e+10 | AK60: 100 | AL60: 1e+40 | AM60: 100 | AN60: 2.18161179e+29 | AQ60: 100 | AR60: 1.500052077e+11 | AS60: 100 | AT60: 1.724800552e+13 | AU60: 100 | AV60: 1e+40 | AW60: 100 | AX60: 1665623413648190 | AY60: 100 | AZ60: 4.645724652e+10 | BA60: 100 | BB60: 1e+40
A61: 110 | B61: 1e+40 | C61: 110 | D61: 1e+40 | E61: 110 | F61: 1e+40 | G61: 110 | H61: 7770719887 | I61: 110 | J61: 1e+40 | K61: 110 | L61: 1e+40 | O61: 110 | P61: 3.479289995e+10 | Q61: 110 | R61: 1.639425166e+13 | S61: 110 | T61: 1e+40 | U61: 110 | V61: 2370087102441440 | W61: 110 | X61: 6.495275303e+10 | Y61: 110 | Z61: 1e+40 | AC61: 110 | AD61: 1e+40 | AE61: 110 | AF61: 1e+40 | AG61: 110 | AH61: 1e+40 | AI61: 110 | AJ61: 5730487620 | AK61: 110 | AL61: 1e+40 | AM61: 110 | AN61: 1e+40 | AQ61: 110 | AR61: 2.565816544e+10 | AS61: 110 | AT61: 1.210909396e+13 | AU61: 110 | AV61: 1e+40 | AW61: 110 | AX61: 1.748843081e+15 | AY61: 110 | AZ61: 4.792047049e+10 | BA61: 110 | BB61: 1e+40
A62: 120 | B62: 1e+40 | C62: 120 | D62: 3.17423863e+26 | E62: 120 | F62: 1e+40 | G62: 120 | H62: 4308761824 | I62: 120 | J62: 1e+40 | K62: 120 | L62: 1e+40 | O62: 120 | P62: 8118472802 | Q62: 120 | R62: 1.376762789e+13 | S62: 120 | T62: 1e+40 | U62: 120 | V62: 2.499925794e+15 | W62: 120 | X62: 6.742880941e+10 | Y62: 120 | Z62: 1e+40 | AC62: 120 | AD62: 1e+40 | AE62: 120 | AF62: 2.340871882e+26 | AG62: 120 | AH62: 1e+40 | AI62: 120 | AJ62: 3177475477 | AK62: 120 | AL62: 1e+40 | AM62: 120 | AN62: 1e+40 | AQ62: 120 | AR62: 5986982713 | AS62: 120 | AT62: 1.016277284e+13 | AU62: 120 | AV62: 1e+40 | AW62: 120 | AX62: 1.843766875e+15 | AY62: 120 | AZ62: 4.974113906e+10 | BA62: 120 | BB62: 1e+40
A63: 130 | B63: 1e+40 | C63: 130 | D63: 4.675748595e+25 | E63: 130 | F63: 1e+40 | G63: 130 | H63: 2666462180 | I63: 130 | J63: 1e+40 | K63: 130 | L63: 3.637757699e+25 | O63: 130 | P63: 2403352241 | Q63: 130 | R63: 1.244711894e+13 | S63: 130 | T63: 1e+40 | U63: 130 | V63: 2629322981210776 | W63: 130 | X63: 7.008028239e+10 | Y63: 130 | Z63: 1e+40 | AC63: 130 | AD63: 1e+40 | AE63: 130 | AF63: 3.448158562e+25 | AG63: 130 | AH63: 1e+40 | AI63: 130 | AJ63: 1966367467 | AK63: 130 | AL63: 1e+40 | AM63: 130 | AN63: 2.682640478e+25 | AQ63: 130 | AR63: 1772352393 | AS63: 130 | AT63: 9.183102292e+12 | AU63: 130 | AV63: 1e+40 | AW63: 130 | AX63: 1.939419911e+15 | AY63: 130 | AZ63: 5.168264448e+10 | BA63: 130 | BB63: 1e+40
A64: 140 | B64: 1e+40 | C64: 140 | D64: 7.393355476e+24 | E64: 140 | F64: 1e+40 | G64: 140 | H64: 1797550405 | I64: 140 | J64: 1e+40 | K64: 140 | L64: 1e+40 | O64: 140 | P64: 857180262 | Q64: 140 | R64: 1.172346868e+13 | S64: 140 | T64: 1e+40 | U64: 140 | V64: 2.756388115e+15 | W64: 140 | X64: 7.273440699e+10 | Y64: 140 | Z64: 1e+40 | AC64: 140 | AD64: 1e+40 | AE64: 140 | AF64: 5.452270171e+24 | AG64: 140 | AH64: 1e+40 | AI64: 140 | AJ64: 1325592266 | AK64: 140 | AL64: 1e+40 | AM64: 140 | AN64: 1e+40 | AQ64: 140 | AR64: 632126517.4 | AS64: 140 | AT64: 8.653690872e+12 | AU64: 140 | AV64: 1e+40 | AW64: 140 | AX64: 2033365890887707 | AY64: 140 | AZ64: 5.364811652e+10 | BA64: 140 | BB64: 1e+40
A65: 150 | B65: 1e+40 | C65: 150 | D65: 1.587049376e+24 | E65: 150 | F65: 1e+40 | G65: 150 | H65: 1296912542 | I65: 150 | J65: 1.601812004e+28 | K65: 150 | L65: 1e+40 | O65: 150 | P65: 354663830.9 | Q65: 150 | R65: 1.132801814e+13 | S65: 150 | T65: 1e+40 | U65: 150 | V65: 2892907243804976 | W65: 150 | X65: 7.571271591e+10 | Y65: 150 | Z65: 1e+40 | AC65: 150 | AD65: 1e+40 | AE65: 150 | AF65: 1.170372168e+24 | AG65: 150 | AH65: 1e+40 | AI65: 150 | AJ65: 956399368.2 | AK65: 150 | AL65: 1.180890077e+28 | AM65: 150 | AN65: 1e+40 | AQ65: 150 | AR65: 261546012.3 | AS65: 150 | AT65: 8.357941523e+12 | AU65: 150 | AV65: 1e+40 | AW65: 150 | AX65: 2134096027304129 | AY65: 150 | AZ65: 5.583924569e+10 | BA65: 150 | BB65: 1e+40
A66: 160 | B66: 1e+40 | C66: 160 | D66: 4.870593854e+23 | E66: 160 | F66: 1e+40 | G66: 160 | H66: 988318236.9 | I66: 160 | J66: 6.057546935e+27 | K66: 160 | L66: 1.008379187e+25 | O66: 160 | P66: 165487576.8 | Q66: 160 | R66: 1.112104931e+13 | S66: 160 | T66: 1e+40 | U66: 160 | V66: 3.034137885e+15 | W66: 160 | X66: 7.875758152e+10 | Y66: 160 | Z66: 1e+40 | AC66: 160 | AD66: 1e+40 | AE66: 160 | AF66: 3.591816663e+23 | AG66: 160 | AH66: 1e+40 | AI66: 160 | AJ66: 728828187.8 | AK66: 160 | AL66: 4.46632943e+27 | AM66: 160 | AN66: 7.439920267e+24 | AQ66: 160 | AR66: 122038278.6 | AS66: 160 | AT66: 8.202527967e+12 | AU66: 160 | AV66: 1e+40 | AW66: 160 | AX66: 2.238030811e+15 | AY66: 160 | AZ66: 5.80889979e+10 | BA66: 160 | BB66: 1e+40
A67: 170 | B67: 1e+40 | C67: 170 | D67: 1.915959117e+23 | E67: 170 | F67: 1e+40 | G67: 170 | H67: 787559913.5 | I67: 170 | J67: 3.962420329e+27 | K67: 170 | L67: 4.577745703e+22 | O67: 170 | P67: 85220720.81 | Q67: 170 | R67: 1.102794659e+13 | S67: 170 | T67: 1e+40 | U67: 170 | V67: 3.177643956e+15 | W67: 170 | X67: 8.181101664e+10 | Y67: 170 | Z67: 1e+40 | AC67: 170 | AD67: 1e+40 | AE67: 170 | AF67: 1.412919373e+23 | AG67: 170 | AH67: 1e+40 | AI67: 170 | AJ67: 580780141.3 | AK67: 170 | AL67: 2.922709913e+27 | AM67: 170 | AN67: 3.375817743e+22 | AQ67: 170 | AR67: 62845682.27 | AS67: 170 | AT67: 8.135183624e+12 | AU67: 170 | AV67: 1e+40 | AW67: 170 | AX67: 2344573667225124 | AY67: 170 | AZ67: 6.034716479e+10 | BA67: 170 | BB67: 1e+40
A68: 180 | B68: 1e+40 | C68: 180 | D68: 9.304048157e+22 | E68: 180 | F68: 1e+40 | G68: 180 | H68: 651181039.7 | I68: 180 | J68: 3.173018341e+27 | K68: 180 | L68: 4.575427846e+22 | O68: 180 | P68: 47630424.67 | Q68: 180 | R68: 1.102747615e+13 | S68: 180 | T68: 1e+40 | U68: 180 | V68: 3.316137706e+15 | W68: 180 | X68: 8.489579673e+10 | Y68: 180 | Z68: 1e+40 | AC68: 180 | AD68: 1e+40 | AE68: 180 | AF68: 6.861232485e+22 | AG68: 180 | AH68: 1e+40 | AI68: 180 | AJ68: 480208385.2 | AK68: 180 | AL68: 2.339760465e+27 | AM68: 180 | AN68: 3.374019144e+22 | AQ68: 180 | AR68: 35124838.29 | AS68: 180 | AT68: 8.133478276e+12 | AU68: 180 | AV68: 1e+40 | AW68: 180 | AX68: 2445726146285866 | AY68: 180 | AZ68: 6.260640926e+10 | BA68: 180 | BB68: 1e+40
A69: 190 | B69: 1e+40 | C69: 190 | D69: 5.413061992e+22 | E69: 190 | F69: 1e+40 | G69: 190 | H69: 555272055.5 | I69: 190 | J69: 2.833130167e+27 | K69: 190 | L69: 1e+40 | O69: 190 | P69: 28513876.13 | Q69: 190 | R69: 1.107743979e+13 | S69: 190 | T69: 1e+40 | U69: 190 | V69: 3451705550527860 | W69: 190 | X69: 8.801290637e+10 | Y69: 190 | Z69: 1e+40 | AC69: 190 | AD69: 1e+40 | AE69: 190 | AF69: 3.991833196e+22 | AG69: 190 | AH69: 1e+40 | AI69: 190 | AJ69: 409480922.9 | AK69: 190 | AL69: 2.089376553e+27 | AM69: 190 | AN69: 1e+40 | AQ69: 190 | AR69: 21027412.42 | AS69: 190 | AT69: 8.170375759e+12 | AU69: 190 | AV69: 1e+40 | AW69: 190 | AX69: 2.546238414e+15 | AY69: 190 | AZ69: 6.490979762e+10 | BA69: 190 | BB69: 1e+40
A70: 200 | B70: 1e+40 | C70: 200 | D70: 3.667789105e+22 | E70: 200 | F70: 1e+40 | G70: 200 | H70: 485949435.2 | I70: 200 | J70: 2.723942319e+27 | K70: 200 | L70: 1e+40 | O70: 200 | P70: 18092156.99 | Q70: 200 | R70: 1.116311513e+13 | S70: 200 | T70: 1e+40 | U70: 200 | V70: 3595885523867755 | W70: 200 | X70: 9.121302051e+10 | Y70: 200 | Z70: 1e+40 | AC70: 200 | AD70: 1e+40 | AE70: 200 | AF70: 2.704786954e+22 | AG70: 200 | AH70: 1e+40 | AI70: 200 | AJ70: 358359417.1 | AK70: 200 | AL70: 2.008960146e+27 | AM70: 200 | AN70: 1e+40 | AQ70: 200 | AR70: 13341960.84 | AS70: 200 | AT70: 8.232429844e+12 | AU70: 200 | AV70: 1e+40 | AW70: 200 | AX70: 2.652462621e+15 | AY70: 200 | AZ70: 6.729217676e+10 | BA70: 200 | BB70: 1e+40
A71: 300 | B71: 1e+40 | C71: 300 | D71: 1.095084937e+23 | E71: 300 | F71: 1e+40 | G71: 300 | H71: 294594710.5 | I71: 300 | J71: 1e+40 | K71: 300 | L71: 6.156749666e+18 | O71: 300 | P71: 1273824.69 | Q71: 300 | R71: 1.322541016e+13 | S71: 300 | T71: 1e+40 | U71: 300 | V71: 5045247277295395 | W71: 300 | X71: 1.242850365e+11 | Y71: 300 | Z71: 6029398168 | AC71: 300 | AD71: 1e+40 | AE71: 300 | AF71: 8.075567294e+22 | AG71: 300 | AH71: 1e+40 | AI71: 300 | AJ71: 217246161.8 | AK71: 300 | AL71: 1e+40 | AM71: 300 | AN71: 4.540210261e+18 | AQ71: 300 | AR71: 939372.1121 | AS71: 300 | AT71: 9.753093828e+12 | AU71: 300 | AV71: 1e+40 | AW71: 300 | AX71: 3721655057022172 | AY71: 300 | AZ71: 9.165471479e+10 | BA71: 300 | BB71: 4446934888
A72: 400 | B72: 1e+40 | C72: 400 | D72: 2.334117644e+25 | E72: 400 | F72: 1e+40 | G72: 400 | H72: 353109125.8 | I72: 400 | J72: 1e+40 | K72: 400 | L72: 3.237245474e+15 | O72: 400 | P72: 444094.1553 | Q72: 400 | R72: 1.593707949e+13 | S72: 400 | T72: 1e+40 | U72: 400 | V72: 6521400363977320 | W72: 400 | X72: 1.582305207e+11 | Y72: 400 | Z72: 5121441983 | AC72: 400 | AD72: 1e+40 | AE72: 400 | AF72: 1.721261209e+25 | AG72: 400 | AH72: 1e+40 | AI72: 400 | AJ72: 260396970.4 | AK72: 400 | AL72: 1e+40 | AM72: 400 | AN72: 2387300053455417 | AQ72: 400 | AR72: 327493.4483 | AS72: 400 | AT72: 1.175446861e+13 | AU72: 400 | AV72: 1e+40 | AW72: 400 | AX72: 4810637758504456 | AY72: 400 | AZ72: 1.166919161e+11 | BA72: 400 | BB72: 3776810635
A73: 500 | B73: 1e+40 | C73: 500 | D73: 2.665828481e+28 | E73: 500 | F73: 1e+40 | G73: 500 | H73: 541507636.3 | I73: 500 | J73: 1e+40 | K73: 500 | L73: 2.914176109e+12 | O73: 500 | P73: 286013.8226 | Q73: 500 | R73: 1.879725087e+13 | S73: 500 | T73: 1e+40 | U73: 500 | V73: 7984570392735503 | W73: 500 | X73: 1.922950564e+11 | Y73: 500 | Z73: 5229903511 | AC73: 500 | AD73: 1e+40 | AE73: 500 | AF73: 1.965874116e+28 | AG73: 500 | AH73: 1e+40 | AI73: 500 | AJ73: 399329592.4 | AK73: 500 | AL73: 1e+40 | AM73: 500 | AN73: 2.149045672e+12 | AQ73: 500 | AR73: 210918.3596 | AS73: 500 | AT73: 1.385989941e+13 | AU73: 500 | AV73: 1e+40 | AW73: 500 | AX73: 5888584287562187 | AY73: 500 | AZ73: 1.418320801e+11 | BA73: 500 | BB73: 3856698478
A74: 1000 | B74: 1e+40 | C74: 1000 | D74: 2.581460982e+32 | E74: 1000 | F74: 6.698925123e+35 | G74: 1000 | H74: 1.141169305e+10 | I74: 1000 | J74: 1e+40 | K74: 1000 | L74: 3883140.074 | O74: 1000 | P74: 411451.9985 | Q74: 1000 | R74: 3.380922844e+13 | S74: 1000 | T74: 1e+40 | U74: 1000 | V74: 1.541670494e+16 | W74: 1000 | X74: 3.648359646e+11 | Y74: 1000 | Z74: 7624704021 | AC74: 1000 | AD74: 1e+40 | AE74: 1000 | AF74: 1.902285031e+32 | AG74: 1000 | AH74: 4.940070653e+35 | AI74: 1000 | AJ74: 8415441670 | AK74: 1000 | AL74: 1e+40 | AM74: 1000 | AN74: 2863589.948 | AQ74: 1000 | AR74: 303421.4653 | AS74: 1000 | AT74: 2.492764722e+13 | AU74: 1000 | AV74: 1e+40 | AW74: 1000 | AX74: 1.136702207e+16 | AY74: 1000 | AZ74: 2.690162644e+11 | BA74: 1000 | BB74: 5623604714
A75: 2000 | B75: 1e+40 | C75: 2000 | D75: 6.783891434e+31 | E75: 2000 | F75: 2.354402967e+26 | G75: 2000 | H75: 8.388218471e+12 | I75: 2000 | J75: 1e+40 | K75: 2000 | L75: 10451.94213 | O75: 2000 | P75: 7366989.528 | Q75: 2000 | R75: 6.436928511e+13 | S75: 2000 | T75: 1e+40 | U75: 2000 | V75: 3.027172186e+16 | W75: 2000 | X75: 7.10791242e+11 | Y75: 2000 | Z75: 1.337281219e+10 | AC75: 2000 | AD75: 1e+40 | AE75: 2000 | AF75: 5.001379485e+31 | AG75: 2000 | AH75: 1.736232636e+26 | AI75: 2000 | AJ75: 6.185809805e+12 | AK75: 2000 | AL75: 1e+40 | AM75: 2000 | AN75: 7707.690512 | AQ75: 2000 | AR75: 5432717.677 | AS75: 2000 | AT75: 4.746411735e+13 | AU75: 2000 | AV75: 1e+40 | AW75: 2000 | AX75: 2.232041994e+16 | AY75: 2000 | AZ75: 5.242312572e+11 | BA75: 2000 | BB75: 9862399856
A77: Compared with source concentrations in mg/L | O77: Compared with source concentrations in mg/L | AC77: Compared with source concentrations in mg/L | AQ77: Compared with source concentrations in mg/L
B78: 0.05 | D78: 0.5 | F78: 0.04 | H78: 80 | J78: 5 | L78: 0.004 | P78: 0.05 | R78: 0.5 | T78: 0.04 | V78: 80 | X78: 5 | Z78: 0.004 | AD78: 0.001 | AF78: 0.23 | AH78: 0.0045 | AJ78: 31.76 | AL78: 0.001 | AN78: 0.0017 | AR78: 0.001 | AT78: 0.23 | AV78: 0.0045 | AX78: 31.76 | AZ78: 0.001 | BB78: 0.0017
A81: Pollutant Linkage: New Phases, AGB, Lower Calc Grit, NonHaz Compliance | O81: Pollutant Linkage: New Phases, AGB, Haz Compliance | AC81: Pollutant Linkage: Existing Phases, AGB, Lower Calc Grit, NonHaz Compliance | AQ81: Pollutant Linkage: Existing Phases, AGB, Haz Compliance
A82: Dilution Factor | O82: Dilution Factor | AC82: Dilution Factor | AQ82: Dilution Factor
B84: 1.000000581 | C84: for all species and timeslices | P84: 1 | Q84: for all species and timeslices | AD84: 1.000000383 | AE84: for all species and timeslices | AR84: 1 | AS84: for all species and timeslices
A87: Pollutant Linkage: New Phases, AGB, Lower Calc Grit, NonHaz Compliance | O87: Pollutant Linkage: New Phases, AGB, Haz Compliance | AC87: Pollutant Linkage: Existing Phases, AGB, Lower Calc Grit, NonHaz Compliance | AQ87: Pollutant Linkage: Existing Phases, AGB, Haz Compliance
A88: Attenuation Factor | O88: Attenuation Factor | AC88: Attenuation Factor | AQ88: Attenuation Factor
B90: Species1 | D90: Species2 | F90: Species3 | H90: Species4 | J90: Species5 | L90: Species6 | P90: Species1 | R90: Species2 | T90: Species3 | V90: Species4 | X90: Species5 | Z90: Species6 | AD90: Species1 | AF90: Species2 | AH90: Species3 | AJ90: Species4 | AL90: Species5 | AN90: Species6 | AR90: Species1 | AT90: Species2 | AV90: Species3 | AX90: Species4 | AZ90: Species5 | BB90: Species6
A91: Time(years) | B91: Lead | C91: Time(years) | D91: AmmN | E91: Time(years) | F91: Nickel | G91: Time(years) | H91: Chloride | I91: Time(years) | J91: Toluene | K91: Time(years) | L91: Cadmium | O91: Time(years) | P91: Lead | Q91: Time(years) | R91: AmmN | S91: Time(years) | T91: Nickel | U91: Time(years) | V91: Chloride | W91: Time(years) | X91: Toluene | Y91: Time(years) | Z91: Cadmium | AC91: Time(years) | AD91: Lead | AE91: Time(years) | AF91: AmmN | AG91: Time(years) | AH91: Nickel | AI91: Time(years) | AJ91: Chloride | AK91: Time(years) | AL91: Toluene | AM91: Time(years) | AN91: Cadmium | AQ91: Time(years) | AR91: Lead | AS91: Time(years) | AT91: AmmN | AU91: Time(years) | AV91: Nickel | AW91: Time(years) | AX91: Chloride | AY91: Time(years) | AZ91: Toluene | BA91: Time(years) | BB91: Cadmium
A92: 0.1 | B92: 1e+40 | C92: 0.1 | D92: 4.999997097 | E92: 0.1 | F92: 1e+40 | G92: 0.1 | H92: 799.9995356 | I92: 0.1 | J92: 1e+40 | K92: 0.1 | L92: 0.03999997678 | O92: 0.1 | P92: 1e+40 | Q92: 0.1 | R92: 5 | S92: 0.1 | T92: 1054.042277 | U92: 0.1 | V92: 800 | W92: 0.1 | X92: 5.048006552e+39 | Y92: 0.1 | Z92: 0.04 | AC92: 0.1 | AD92: 1e+40 | AE92: 0.1 | AF92: 2.29999912 | AG92: 0.1 | AH92: 1e+40 | AI92: 0.1 | AJ92: 317.5998785 | AK92: 0.1 | AL92: 1e+40 | AM92: 0.1 | AN92: 0.01699999349 | AQ92: 0.1 | AR92: 1e+40 | AS92: 0.1 | AT92: 2.3 | AU92: 0.1 | AV92: 191.4022318 | AW92: 0.1 | AX92: 317.6 | AY92: 0.1 | AZ92: 6.524449298e+36 | BA92: 0.1 | BB92: 0.017
A93: 0.5 | B93: 1e+40 | C93: 0.5 | D93: 0.9999994195 | E93: 0.5 | F93: 1e+40 | G93: 0.5 | H93: 159.9999071 | I93: 0.5 | J93: 1e+40 | K93: 0.5 | L93: 0.007999995356 | O93: 0.5 | P93: 1e+40 | Q93: 0.5 | R93: 1 | S93: 0.5 | T93: 263.4409828 | U93: 0.5 | V93: 160 | W93: 0.5 | X93: 2.075974169e+22 | Y93: 0.5 | Z93: 0.008 | AC93: 0.5 | AD93: 1e+40 | AE93: 0.5 | AF93: 0.459999824 | AG93: 0.5 | AH93: 1e+40 | AI93: 0.5 | AJ93: 63.51997569 | AK93: 0.5 | AL93: 1e+40 | AM93: 0.5 | AN93: 0.003399998699 | AQ93: 0.5 | AR93: 1e+40 | AS93: 0.5 | AT93: 0.46 | AU93: 0.5 | AV93: 47.47523657 | AW93: 0.5 | AX93: 63.52 | AY93: 0.5 | AZ93: 3.0547425e+19 | BA93: 0.5 | BB93: 0.0034
A94: 1 | B94: 1e+40 | C94: 1 | D94: 0.4999997097 | E94: 1 | F94: 1e+40 | G94: 1 | H94: 79.99995356 | I94: 1 | J94: 1e+40 | K94: 1 | L94: 0.003999997678 | O94: 1 | P94: 1e+40 | Q94: 1 | R94: 0.5 | S94: 1 | T94: 12493.64777 | U94: 1 | V94: 80 | W94: 1 | X94: 3.216082226e+12 | Y94: 1 | Z94: 0.004 | AC94: 1 | AD94: 1e+40 | AE94: 1 | AF94: 0.229999912 | AG94: 1 | AH94: 1e+40 | AI94: 1 | AJ94: 31.75998785 | AK94: 1 | AL94: 1e+40 | AM94: 1 | AN94: 0.001699999349 | AQ94: 1 | AR94: 1e+40 | AS94: 1 | AT94: 0.23 | AU94: 1 | AV94: 2251.248003 | AW94: 1 | AX94: 31.76 | AY94: 1 | AZ94: 4225554011 | BA94: 1 | BB94: 0.0017
A95: 2 | B95: 1e+40 | C95: 2 | D95: 0.2499998549 | E95: 2 | F95: 1e+40 | G95: 2 | H95: 39.99997678 | I95: 2 | J95: 1e+40 | K95: 2 | L95: 0.001999998839 | O95: 2 | P95: 1e+40 | Q95: 2 | R95: 0.25 | S95: 2 | T95: 34944050.45 | U95: 2 | V95: 40 | W95: 2 | X95: 253965201.6 | Y95: 2 | Z95: 0.002 | AC95: 2 | AD95: 1e+40 | AE95: 2 | AF95: 0.114999956 | AG95: 2 | AH95: 1e+40 | AI95: 2 | AJ95: 15.87999392 | AK95: 2 | AL95: 1e+40 | AM95: 2 | AN95: 0.0008499996747 | AQ95: 2 | AR95: 1e+40 | AS95: 2 | AT95: 0.115 | AU95: 2 | AV95: 6296706.886 | AW95: 2 | AX95: 15.88 | AY95: 2 | AZ95: 333111.4185 | BA95: 2 | BB95: 0.00085
A96: 3 | B96: 1e+40 | C96: 3 | D96: 0.1666665699 | E96: 3 | F96: 1e+40 | G96: 3 | H96: 26.66665119 | I96: 3 | J96: 1e+40 | K96: 3 | L96: 0.001333332559 | O96: 3 | P96: 1e+40 | Q96: 3 | R96: 0.1666666667 | S96: 3 | T96: 4.807275808e+10 | U96: 3 | V96: 26.66666667 | W96: 3 | X96: 17135871.11 | Y96: 3 | Z96: 0.001333333333 | AC96: 3 | AD96: 1e+40 | AE96: 3 | AF96: 0.07666663733 | AG96: 3 | AH96: 1e+40 | AI96: 3 | AJ96: 10.58666262 | AK96: 3 | AL96: 1e+40 | AM96: 3 | AN96: 0.0005666664498 | AQ96: 3 | AR96: 1e+40 | AS96: 3 | AT96: 0.07666666667 | AU96: 3 | AV96: 8653711754 | AW96: 3 | AX96: 10.58666667 | AY96: 3 | AZ96: 22469.26152 | BA96: 3 | BB96: 0.0005666666667
A97: 5 | B97: 1e+40 | C97: 5 | D97: 0.09999994195 | E97: 5 | F97: 1e+40 | G97: 5 | H97: 15.99999071 | I97: 5 | J97: 1e+40 | K97: 5 | L97: 0.0007999995356 | O97: 5 | P97: 1e+40 | Q97: 5 | R97: 0.1 | S97: 5 | T97: 1e+40 | U97: 5 | V97: 16 | W97: 5 | X97: 3695383.363 | Y97: 5 | Z97: 0.0008 | AC97: 5 | AD97: 1e+40 | AE97: 5 | AF97: 0.0459999824 | AG97: 5 | AH97: 1e+40 | AI97: 5 | AJ97: 6.351997569 | AK97: 5 | AL97: 1e+40 | AM97: 5 | AN97: 0.0003399998699 | AQ97: 5 | AR97: 1e+40 | AS97: 5 | AT97: 0.046 | AU97: 5 | AV97: 1e+40 | AW97: 5 | AX97: 6.352 | AY97: 5 | AZ97: 4844.81928 | BA97: 5 | BB97: 0.00034
A98: 10 | B98: 1e+40 | C98: 10 | D98: 0.04999997097 | E98: 10 | F98: 1e+40 | G98: 10 | H98: 7.999995356 | I98: 10 | J98: 1e+40 | K98: 10 | L98: 0.0003999997678 | O98: 10 | P98: 1e+40 | Q98: 10 | R98: 0.05 | S98: 10 | T98: 1e+40 | U98: 10 | V98: 8 | W98: 10 | X98: 5060616.723 | Y98: 10 | Z98: 0.0004 | AC98: 10 | AD98: 1e+40 | AE98: 10 | AF98: 0.0229999912 | AG98: 10 | AH98: 1e+40 | AI98: 10 | AJ98: 3.175998785 | AK98: 10 | AL98: 1e+40 | AM98: 10 | AN98: 0.0001699999349 | AQ98: 10 | AR98: 1e+40 | AS98: 10 | AT98: 0.023 | AU98: 10 | AV98: 1e+40 | AW98: 10 | AX98: 3.176 | AY98: 10 | AZ98: 6634.336205 | BA98: 10 | BB98: 0.00017
A99: 50 | B99: 1e+40 | C99: 50 | D99: 0.009999994195 | E99: 50 | F99: 1e+40 | G99: 50 | H99: 1.599999071 | I99: 50 | J99: 1e+40 | K99: 50 | L99: 7.999995356e-05 | O99: 50 | P99: 2.388890479e+21 | Q99: 50 | R99: 0.01 | S99: 50 | T99: 1e+40 | U99: 50 | V99: 1.6 | W99: 50 | X99: 9.260493428e+11 | Y99: 50 | Z99: 8e-05 | AC99: 50 | AD99: 1e+40 | AE99: 50 | AF99: 0.00459999824 | AG99: 50 | AH99: 1e+40 | AI99: 50 | AJ99: 0.6351997569 | AK99: 50 | AL99: 1e+40 | AM99: 50 | AN99: 3.399998699e-05 | AQ99: 50 | AR99: 1.76208996e+21 | AS99: 50 | AT99: 0.0046 | AU99: 50 | AV99: 1e+40 | AW99: 50 | AX99: 0.6352 | AY99: 50 | AZ99: 1214014728 | BA99: 50 | BB99: 3.4e-05
A100: 75 | B100: 1e+40 | C100: 75 | D100: 0.006666662797 | E100: 75 | F100: 1e+40 | G100: 75 | H100: 1.066666047 | I100: 75 | J100: 1e+40 | K100: 75 | L100: 5.333330237e-05 | O100: 75 | P100: 1.497122241e+15 | Q100: 75 | R100: 0.006666666667 | S100: 75 | T100: 1e+40 | U100: 75 | V100: 1.066666667 | W100: 75 | X100: 1.278318461e+15 | Y100: 75 | Z100: 5.333333333e-05 | AC100: 75 | AD100: 1e+40 | AE100: 75 | AF100: 0.003066665493 | AG100: 75 | AH100: 1e+40 | AI100: 75 | AJ100: 0.4234665046 | AK100: 75 | AL100: 1e+40 | AM100: 75 | AN100: 2.266665799e-05 | AQ100: 75 | AR100: 1104083080423421 | AS100: 75 | AT100: 0.003066666667 | AU100: 75 | AV100: 1e+40 | AW100: 75 | AX100: 0.4234666667 | AY100: 75 | AZ100: 1.675969388e+12 | BA100: 75 | BB100: 2.266666667e-05
A101: 100 | B101: 1e+40 | C101: 100 | D101: 0.004999997097 | E101: 100 | F101: 3.471325957e+26 | G101: 100 | H101: 0.7999995356 | I101: 100 | J101: 1e+40 | K101: 100 | L101: 3.999997678e-05 | O101: 100 | P101: 2.034087527e+12 | Q101: 100 | R101: 0.005 | S101: 100 | T101: 3.737027522e+12 | U101: 100 | V101: 0.8 | W101: 100 | X101: 1e+40 | Y101: 100 | Z101: 4e-05 | AC101: 100 | AD101: 1e+40 | AE101: 100 | AF101: 0.00229999912 | AG101: 100 | AH101: 6.260640967e+25 | AI101: 100 | AJ101: 0.3175998785 | AK101: 100 | AL101: 1e+40 | AM101: 100 | AN101: 1.699999349e-05 | AQ101: 100 | AR101: 1.500052077e+12 | AS101: 100 | AT101: 0.0023 | AU101: 100 | AV101: 6.74921955e+11 | AW101: 100 | AX101: 0.3176 | AY101: 100 | AZ101: 1e+40 | BA101: 100 | BB101: 1.7e-05
A102: 110 | B102: 1e+40 | C102: 110 | D102: 0.004545451907 | E102: 110 | F102: 1e+40 | G102: 110 | H102: 0.7272723051 | I102: 110 | J102: 1e+40 | K102: 110 | L102: 3.636361525e-05 | O102: 110 | P102: 3.479289995e+11 | Q102: 110 | R102: 0.004545454545 | S102: 110 | T102: 2.623080265e+12 | U102: 110 | V102: 0.7272727273 | W102: 110 | X102: 1e+40 | Y102: 110 | Z102: 3.636363636e-05 | AC102: 110 | AD102: 1e+40 | AE102: 110 | AF102: 0.002090908291 | AG102: 110 | AH102: 1e+40 | AI102: 110 | AJ102: 0.2887271622 | AK102: 110 | AL102: 1e+40 | AM102: 110 | AN102: 1.545453954e-05 | AQ102: 110 | AR102: 2.565816544e+11 | AS102: 110 | AT102: 0.002090909091 | AU102: 110 | AV102: 4.738341114e+11 | AW102: 110 | AX102: 0.2887272727 | AY102: 110 | AZ102: 1e+40 | BA102: 110 | BB102: 1.545454545e-05
A103: 120 | B103: 1e+40 | C103: 120 | D103: 0.004166664248 | E103: 120 | F103: 5.07877886e+25 | G103: 120 | H103: 0.6666662797 | I103: 120 | J103: 1e+40 | K103: 120 | L103: 3.333331398e-05 | O103: 120 | P103: 8.118472802e+10 | Q103: 120 | R103: 0.004166666667 | S103: 120 | T103: 2.202820463e+12 | U103: 120 | V103: 0.6666666667 | W103: 120 | X103: 1e+40 | Y103: 120 | Z103: 3.333333333e-05 | AC103: 120 | AD103: 1e+40 | AE103: 120 | AF103: 0.001916665933 | AG103: 120 | AH103: 9.159929946e+24 | AI103: 120 | AJ103: 0.2646665654 | AK103: 120 | AL103: 1e+40 | AM103: 120 | AN103: 1.416666125e-05 | AQ103: 120 | AR103: 5.986982713e+10 | AS103: 120 | AT103: 0.001916666667 | AU103: 120 | AV103: 3.9767372e+11 | AW103: 120 | AX103: 0.2646666667 | AY103: 120 | AZ103: 1e+40 | BA103: 120 | BB103: 1.416666667e-05
A104: 130 | B104: 1e+40 | C104: 130 | D104: 0.003846151613 | E104: 130 | F104: 7.481193408e+24 | G104: 130 | H104: 0.6153842581 | I104: 130 | J104: 1e+40 | K104: 130 | L104: 3.076921291e-05 | O104: 130 | P104: 2.403352241e+10 | Q104: 130 | R104: 0.003846153846 | S104: 130 | T104: 1.991539031e+12 | U104: 130 | V104: 0.6153846154 | W104: 130 | X104: 1e+40 | Y104: 130 | Z104: 3.076923077e-05 | AC104: 130 | AD104: 1e+40 | AE104: 130 | AF104: 0.001769230092 | AG104: 130 | AH104: 1.349278921e+24 | AI104: 130 | AJ104: 0.2443075988 | AK104: 130 | AL104: 1e+40 | AM104: 130 | AN104: 1.307691807e-05 | AQ104: 130 | AR104: 1.772352393e+10 | AS104: 130 | AT104: 0.001769230769 | AU104: 130 | AV104: 3.593387854e+11 | AW104: 130 | AX104: 0.2443076923 | AY104: 130 | AZ104: 1e+40 | BA104: 130 | BB104: 1.307692308e-05
A105: 140 | B105: 1e+40 | C105: 140 | D105: 0.003571426498 | E105: 140 | F105: 1.182936189e+24 | G105: 140 | H105: 0.5714282397 | I105: 140 | J105: 1e+40 | K105: 140 | L105: 2.857141199e-05 | O105: 140 | P105: 8571802620 | Q105: 140 | R105: 0.003571428571 | S105: 140 | T105: 1.875754989e+12 | U105: 140 | V105: 0.5714285714 | W105: 140 | X105: 1e+40 | Y105: 140 | Z105: 2.857142857e-05 | AC105: 140 | AD105: 1e+40 | AE105: 140 | AF105: 0.001642856514 | AG105: 140 | AH105: 2.133496207e+23 | AI105: 140 | AJ105: 0.226857056 | AK105: 140 | AL105: 1e+40 | AM105: 140 | AN105: 1.21428525e-05 | AQ105: 140 | AR105: 6321265174 | AS105: 140 | AT105: 0.001642857143 | AU105: 140 | AV105: 3.386226863e+11 | AW105: 140 | AX105: 0.2268571429 | AY105: 140 | AZ105: 1e+40 | BA105: 140 | BB105: 1.214285714e-05
A106: 150 | B106: 1e+40 | C106: 150 | D106: 0.003333331398 | E106: 150 | F106: 2.539277528e+23 | G106: 150 | H106: 0.5333330237 | I106: 150 | J106: 1e+40 | K106: 150 | L106: 2.666665119e-05 | O106: 150 | P106: 3546638309 | Q106: 150 | R106: 0.003333333333 | S106: 150 | T106: 1.812482903e+12 | U106: 150 | V106: 0.5333333333 | W106: 150 | X106: 1e+40 | Y106: 150 | Z106: 2.666666667e-05 | AC106: 150 | AD106: 1e+40 | AE106: 150 | AF106: 0.001533332747 | AG106: 150 | AH106: 4.579715425e+22 | AI106: 150 | AJ106: 0.2117332523 | AK106: 150 | AL106: 1e+40 | AM106: 150 | AN106: 1.1333329e-05 | AQ106: 150 | AR106: 2615460123 | AS106: 150 | AT106: 0.001533333333 | AU106: 150 | AV106: 3.270498857e+11 | AW106: 150 | AX106: 0.2117333333 | AY106: 150 | AZ106: 1e+40 | BA106: 150 | BB106: 1.133333333e-05
A107: 160 | B107: 1e+40 | C107: 160 | D107: 0.003124998186 | E107: 160 | F107: 7.792945643e+22 | G107: 160 | H107: 0.4999997097 | I107: 160 | J107: 1e+40 | K107: 160 | L107: 2.499998549e-05 | O107: 160 | P107: 1654875768 | Q107: 160 | R107: 0.003125 | S107: 160 | T107: 1.77936789e+12 | U107: 160 | V107: 0.5 | W107: 160 | X107: 1e+40 | Y107: 160 | Z107: 2.5e-05 | AC107: 160 | AD107: 1e+40 | AE107: 160 | AF107: 0.00143749945 | AG107: 160 | AH107: 1.405492939e+22 | AI107: 160 | AJ107: 0.198499924 | AK107: 160 | AL107: 1e+40 | AM107: 160 | AN107: 1.062499593e-05 | AQ107: 160 | AR107: 1220382786 | AS107: 160 | AT107: 0.0014375 | AU107: 160 | AV107: 3.209684857e+11 | AW107: 160 | AX107: 0.1985 | AY107: 160 | AZ107: 1e+40 | BA107: 160 | BB107: 1.0625e-05
A108: 170 | B108: 1e+40 | C108: 170 | D108: 0.002941174763 | E108: 170 | F108: 3.065532808e+22 | G108: 170 | H108: 0.4705879621 | I108: 170 | J108: 1e+40 | K108: 170 | L108: 2.352939811e-05 | O108: 170 | P108: 852207208.1 | Q108: 170 | R108: 0.002941176471 | S108: 170 | T108: 1.764471454e+12 | U108: 170 | V108: 0.4705882353 | W108: 170 | X108: 1e+40 | Y108: 170 | Z108: 2.352941176e-05 | AC108: 170 | AD108: 1e+40 | AE108: 170 | AF108: 0.001352940659 | AG108: 170 | AH108: 5.528812822e+21 | AI108: 170 | AJ108: 0.1868234579 | AK108: 170 | AL108: 1e+40 | AM108: 170 | AN108: 9.999996173e-06 | AQ108: 170 | AR108: 628456822.7 | AS108: 170 | AT108: 0.001352941176 | AU108: 170 | AV108: 3.183332723e+11 | AW108: 170 | AX108: 0.1868235294 | AY108: 170 | AZ108: 1e+40 | BA108: 170 | BB108: 1e-05
A109: 180 | B109: 1e+40 | C109: 180 | D109: 0.002777776165 | E109: 180 | F109: 1.488646841e+22 | G109: 180 | H109: 0.4444441864 | I109: 180 | J109: 1e+40 | K109: 180 | L109: 2.222220932e-05 | O109: 180 | P109: 476304246.7 | Q109: 180 | R109: 0.002777777778 | S109: 180 | T109: 1.764396184e+12 | U109: 180 | V109: 0.4444444444 | W109: 180 | X109: 1e+40 | Y109: 180 | Z109: 2.222222222e-05 | AC109: 180 | AD109: 1e+40 | AE109: 180 | AF109: 0.001277777289 | AG109: 180 | AH109: 2.684829075e+21 | AI109: 180 | AJ109: 0.1764443769 | AK109: 180 | AL109: 1e+40 | AM109: 180 | AN109: 9.44444083e-06 | AQ109: 180 | AR109: 351248382.9 | AS109: 180 | AT109: 0.001277777778 | AU109: 180 | AV109: 3.182665412e+11 | AW109: 180 | AX109: 0.1764444444 | AY109: 180 | AZ109: 1e+40 | BA109: 180 | BB109: 9.444444444e-06
A110: 190 | B110: 1e+40 | C110: 190 | D110: 0.00263157742 | E110: 190 | F110: 8.660894159e+21 | G110: 190 | H110: 0.4210523872 | I110: 190 | J110: 1e+40 | K110: 190 | L110: 2.105261936e-05 | O110: 190 | P110: 285138761.3 | Q110: 190 | R110: 0.002631578947 | S110: 190 | T110: 1.772390367e+12 | U110: 190 | V110: 0.4210526316 | W110: 190 | X110: 1e+40 | Y110: 190 | Z110: 2.105263158e-05 | AC110: 190 | AD110: 1e+40 | AE110: 190 | AF110: 0.001210525853 | AG110: 190 | AH110: 1.562021088e+21 | AI110: 190 | AJ110: 0.1671578308 | AK110: 190 | AL110: 1e+40 | AM110: 190 | AN110: 8.947364997e-06 | AQ110: 190 | AR110: 210274124.2 | AS110: 190 | AT110: 0.001210526316 | AU110: 190 | AV110: 3.197103558e+11 | AW110: 190 | AX110: 0.1671578947 | AY110: 190 | AZ110: 1e+40 | BA110: 190 | BB110: 8.947368421e-06
A111: 200 | B111: 1e+40 | C111: 200 | D111: 0.002499998549 | E111: 200 | F111: 5.868459162e+21 | G111: 200 | H111: 0.3999997678 | I111: 200 | J111: 1e+40 | K111: 200 | L111: 1.999998839e-05 | O111: 200 | P111: 180921569.9 | Q111: 200 | R111: 0.0025 | S111: 200 | T111: 1.786098421e+12 | U111: 200 | V111: 0.4 | W111: 200 | X111: 1e+40 | Y111: 200 | Z111: 2e-05 | AC111: 200 | AD111: 1e+40 | AE111: 200 | AF111: 0.00114999956 | AG111: 200 | AH111: 1.05839449e+21 | AI111: 200 | AJ111: 0.1587999392 | AK111: 200 | AL111: 1e+40 | AM111: 200 | AN111: 8.499996747e-06 | AQ111: 200 | AR111: 133419608.4 | AS111: 200 | AT111: 0.00115 | AU111: 200 | AV111: 3.221385591e+11 | AW111: 200 | AX111: 0.1588 | AY111: 200 | AZ111: 1e+40 | BA111: 200 | BB111: 8.5e-06
A112: 300 | B112: 1e+40 | C112: 300 | D112: 0.001666665699 | E112: 300 | F112: 1.752134883e+22 | G112: 300 | H112: 0.2666665119 | I112: 300 | J112: 1e+40 | K112: 300 | L112: 1.333332559e-05 | O112: 300 | P112: 12738246.9 | Q112: 300 | R112: 0.001666666667 | S112: 300 | T112: 2.116065625e+12 | U112: 300 | V112: 0.2666666667 | W112: 300 | X112: 1e+40 | Y112: 300 | Z112: 1.333333333e-05 | AC112: 300 | AD112: 1e+40 | AE112: 300 | AF112: 0.0007666663733 | AG112: 300 | AH112: 3.160003384e+21 | AI112: 300 | AJ112: 0.1058666262 | AK112: 300 | AL112: 1e+40 | AM112: 300 | AN112: 5.666664498e-06 | AQ112: 300 | AR112: 9393721.121 | AS112: 300 | AT112: 0.0007666666667 | AU112: 300 | AV112: 3.81642802e+11 | AW112: 300 | AX112: 0.1058666667 | AY112: 300 | AZ112: 1e+40 | BA112: 300 | BB112: 5.666666667e-06
A113: 400 | B113: 1e+40 | C113: 400 | D113: 0.001249999274 | E113: 400 | F113: 3.734586063e+24 | G113: 400 | H113: 0.1999998839 | I113: 400 | J113: 1e+40 | K113: 400 | L113: 9.999994195e-06 | O113: 400 | P113: 4440941.553 | Q113: 400 | R113: 0.00125 | S113: 400 | T113: 2.549932718e+12 | U113: 400 | V113: 0.2 | W113: 400 | X113: 1e+40 | Y113: 400 | Z113: 1e-05 | AC113: 400 | AD113: 1e+40 | AE113: 400 | AF113: 0.00057499978 | AG113: 400 | AH113: 6.735367369e+23 | AI113: 400 | AJ113: 0.07939996962 | AK113: 400 | AL113: 1e+40 | AM113: 400 | AN113: 4.249998374e-06 | AQ113: 400 | AR113: 3274934.483 | AS113: 400 | AT113: 0.000575 | AU113: 400 | AV113: 4.599574673e+11 | AW113: 400 | AX113: 0.0794 | AY113: 400 | AZ113: 1e+40 | BA113: 400 | BB113: 4.25e-06
A114: 500 | B114: 1e+40 | C114: 500 | D114: 0.0009999994195 | E114: 500 | F114: 4.265323094e+27 | G114: 500 | H114: 0.1599999071 | I114: 500 | J114: 1e+40 | K114: 500 | L114: 7.999995356e-06 | O114: 500 | P114: 2860138.226 | Q114: 500 | R114: 0.001 | S114: 500 | T114: 3.007560139e+12 | U114: 500 | V114: 0.16 | W114: 500 | X114: 1e+40 | Y114: 500 | Z114: 8e-06 | AC114: 500 | AD114: 1e+40 | AE114: 500 | AF114: 0.000459999824 | AG114: 500 | AH114: 7.692547946e+26 | AI114: 500 | AJ114: 0.06351997569 | AK114: 500 | AL114: 1e+40 | AM114: 500 | AN114: 3.399998699e-06 | AQ114: 500 | AR114: 2109183.596 | AS114: 500 | AT114: 0.00046 | AU114: 500 | AV114: 5.423438898e+11 | AW114: 500 | AX114: 0.06352 | AY114: 500 | AZ114: 1e+40 | BA114: 500 | BB114: 3.4e-06
A115: 1000 | B115: 1e+40 | C115: 1000 | D115: 0.0004999997097 | E115: 1000 | F115: 4.130335174e+31 | G115: 1000 | H115: 0.07999995356 | I115: 1000 | J115: 1.674730308e+39 | K115: 1000 | L115: 3.999997678e-06 | O115: 1000 | P115: 4114519.985 | Q115: 1000 | R115: 0.0005 | S115: 1000 | T115: 5.40947655e+12 | U115: 1000 | V115: 0.08 | W115: 1000 | X115: 1e+40 | Y115: 1000 | Z115: 4e-06 | AC115: 1000 | AD115: 1e+40 | AE115: 1000 | AF115: 0.000229999912 | AG115: 1000 | AH115: 7.443721185e+30 | AI115: 1000 | AJ115: 0.03175998785 | AK115: 1000 | AL115: 2.195586117e+36 | AM115: 1000 | AN115: 1.699999349e-06 | AQ115: 1000 | AR115: 3034214.653 | AS115: 1000 | AT115: 0.00023 | AU115: 1000 | AV115: 9.75429674e+11 | AW115: 1000 | AX115: 0.03176 | AY115: 1000 | AZ115: 1e+40 | BA115: 1000 | BB115: 1.7e-06
A116: 2000 | B116: 1e+40 | C116: 2000 | D116: 0.0002499998549 | E116: 2000 | F116: 1.085421999e+31 | G116: 2000 | H116: 0.03999997678 | I116: 2000 | J116: 5.886004001e+29 | K116: 2000 | L116: 1.999998839e-06 | O116: 2000 | P116: 73669895.28 | Q116: 2000 | R116: 0.00025 | S116: 2000 | T116: 1.029908562e+13 | U116: 2000 | V116: 0.04 | W116: 2000 | X116: 1e+40 | Y116: 2000 | Z116: 2e-06 | AC116: 2000 | AD116: 1e+40 | AE116: 2000 | AF116: 0.000114999956 | AG116: 2000 | AH116: 1.957060789e+30 | AI116: 2000 | AJ116: 0.01587999392 | AK116: 2000 | AL116: 7.71658654e+26 | AM116: 2000 | AN116: 8.499996747e-07 | AQ116: 2000 | AR116: 54327176.77 | AS116: 2000 | AT116: 0.000115 | AU116: 2000 | AV116: 1.857291548e+12 | AW116: 2000 | AX116: 0.01588 | AY116: 2000 | AZ116: 1e+40 | BA116: 2000 | BB116: 8.5e-07
A119: Saved 12/05/2025: 16:59:57 Level Number: 5
A121: BREAKTHROUGH RESULTS
A123: Advanced
A124: Pollutant Linkage: New Phases, AGB, Lower Calc Grit, NonHaz Compliance | O124: Pollutant Linkage: New Phases, AGB, Haz Compliance | AC124: Pollutant Linkage: Existing Phases, AGB, Lower Calc Grit, NonHaz Compliance | AQ124: Pollutant Linkage: Existing Phases, AGB, Haz Compliance
A125: Concentrations in mg/L in NonHaz Compliance | O125: Concentrations in mg/L in Haz Compliance | AC125: Concentrations in mg/L in NonHaz Compliance | AQ125: Concentrations in mg/L in Haz Compliance
A127: Compared with CompLimit target concentration in mg/L | O127: Compared with CompLimit target concentration in mg/L | AC127: Compared with CompLimit target concentration in mg/L | AQ127: Compared with CompLimit target concentration in mg/L
B128: 0.1 | D128: 0.5 | F128: 0.05 | H128: 250 | J128: 0.004 | L128: 0.0001 | P128: 0.1 | R128: 0.5 | T128: 0.05 | V128: 250 | X128: 0.004 | Z128: 0.0001 | AD128: 0.1 | AF128: 0.5 | AH128: 0.05 | AJ128: 250 | AL128: 0.004 | AN128: 0.0001 | AR128: 0.1 | AT128: 0.5 | AV128: 0.05 | AX128: 250 | AZ128: 0.004 | BB128: 0.0001
B130: Species1 | D130: Species2 | F130: Species3 | H130: Species4 | J130: Species5 | L130: Species6 | P130: Species1 | R130: Species2 | T130: Species3 | V130: Species4 | X130: Species5 | Z130: Species6 | AD130: Species1 | AF130: Species2 | AH130: Species3 | AJ130: Species4 | AL130: Species5 | AN130: Species6 | AR130: Species1 | AT130: Species2 | AV130: Species3 | AX130: Species4 | AZ130: Species5 | BB130: Species6
A131: Time(years) | B131: Lead | C131: Time(years) | D131: AmmN | E131: Time(years) | F131: Nickel | G131: Time(years) | H131: Chloride | I131: Time(years) | J131: Toluene | K131: Time(years) | L131: Cadmium | O131: Time(years) | P131: Lead | Q131: Time(years) | R131: AmmN | S131: Time(years) | T131: Nickel | U131: Time(years) | V131: Chloride | W131: Time(years) | X131: Toluene | Y131: Time(years) | Z131: Cadmium | AC131: Time(years) | AD131: Lead | AE131: Time(years) | AF131: AmmN | AG131: Time(years) | AH131: Nickel | AI131: Time(years) | AJ131: Chloride | AK131: Time(years) | AL131: Toluene | AM131: Time(years) | AN131: Cadmium | AQ131: Time(years) | AR131: Lead | AS131: Time(years) | AT131: AmmN | AU131: Time(years) | AV131: Nickel | AW131: Time(years) | AX131: Chloride | AY131: Time(years) | AZ131: Toluene | BA131: Time(years) | BB131: Cadmium
A132: 0.1 | B132: 0 | C132: 0.1 | D132: 0 | E132: 0.1 | F132: 0 | G132: 0.1 | H132: 0 | I132: 0.01 | J132: 0 | K132: 0.1 | L132: 0 | O132: 0.1 | P132: 0 | Q132: 0.1 | R132: 3.794914195e-05 | S132: 0.1 | T132: 9.90489998e-40 | U132: 0.1 | V132: 0.2187127068 | W132: 0.01 | X132: 0.004212352512 | Y132: 0.1 | Z132: 5.57363985e-12 | AC132: 0.1 | AD132: 0 | AE132: 0.1 | AF132: 0 | AG132: 0.1 | AH132: 0 | AI132: 0.1 | AJ132: 0 | AK132: 0.01 | AL132: 0 | AM132: 0.1 | AN132: 0 | AQ132: 0.1 | AR132: 0 | AS132: 0.1 | AT132: 2.351069765e-05 | AU132: 0.1 | AV132: 1.532696407e-40 | AW132: 0.1 | AX132: 0.1177791581 | AY132: 0.01 | AZ132: 1.112831088e-06 | BA132: 0.1 | BB132: 3.150292148e-12
A133: 0.5 | B133: 0 | C133: 0.5 | D133: 0 | E133: 0.5 | F133: 0 | G133: 0.5 | H133: 0 | I133: 0.05 | J133: 0 | K133: 0.5 | L133: 0 | O133: 0.5 | P133: 0 | Q133: 0.5 | R133: 0.000151836664 | S133: 0.5 | T133: 2.40850781e-22 | U133: 0.5 | V133: 9.431353578e-05 | W133: 0.05 | X133: 0.007072573946 | Y133: 0.5 | Z133: 1.568518898e-06 | AC133: 0.5 | AD133: 0 | AE133: 0.5 | AF133: 0 | AG133: 0.5 | AH133: 0 | AI133: 0.5 | AJ133: 0 | AK133: 0.05 | AL133: 0 | AM133: 0.5 | AN133: 0 | AQ133: 0.5 | AR133: 0 | AS133: 0.5 | AT133: 9.478625754e-05 | AU133: 0.5 | AV133: 3.273598348e-23 | AW133: 0.5 | AX133: 5.089596376e-05 | AY133: 0.05 | AZ133: 1.921713556e-06 | BA133: 0.5 | BB133: 9.037609082e-07
A134: 1 | B134: 0 | C134: 1 | D134: 0 | E134: 1 | F134: 0 | G134: 1 | H134: 0 | I134: 0.75 | J134: 0 | K134: 1 | L134: 0 | O134: 1 | P134: 0 | Q134: 1 | R134: 3.201626997e-06 | S134: 1 | T134: 1.554686618e-12 | U134: 1 | V134: 2.640504476e-09 | W134: 0.75 | X134: 0.000113100425 | Y134: 1 | Z134: 9.014060627e-07 | AC134: 1 | AD134: 0 | AE134: 1 | AF134: 0 | AG134: 1 | AH134: 0 | AI134: 1 | AJ134: 0 | AK134: 0.75 | AL134: 0 | AM134: 1 | AN134: 0 | AQ134: 1 | AR134: 0 | AS134: 1 | AT134: 1.998891279e-06 | AU134: 1 | AV134: 2.366553587e-13 | AW134: 1 | AX134: 1.424903052e-09 | AY134: 0.75 | AZ134: 3.06840538e-08 | BA134: 1 | BB134: 5.196437316e-07
A135: 2 | B135: 0 | C135: 2 | D135: 0 | E135: 2 | F135: 0 | G135: 2 | H135: 0 | I135: 0.1 | J135: 0 | K135: 2 | L135: 0 | O135: 2 | P135: 0 | Q135: 2 | R135: 1.144686992e-09 | S135: 2 | T135: 1.968773662e-08 | U135: 2 | V135: 0 | W135: 0.1 | X135: 0.003402266837 | Y135: 2 | Z135: 4.079214646e-08 | AC135: 2 | AD135: 0 | AE135: 2 | AF135: 0 | AG135: 2 | AH135: 0 | AI135: 2 | AJ135: 0 | AK135: 0.1 | AL135: 0 | AM135: 2 | AN135: 0 | AQ135: 2 | AR135: 0 | AS135: 2 | AT135: 7.146592785e-10 | AU135: 2 | AV135: 3.001998564e-09 | AW135: 2 | AX135: 0 | AY135: 0.1 | AZ135: 9.240166266e-07 | BA135: 2 | BB135: 2.351791936e-08
A136: 3 | B136: 0 | C136: 3 | D136: 0 | E136: 3 | F136: 0 | G136: 3 | H136: 0 | I136: 0.5 | J136: 0 | K136: 3 | L136: 0 | O136: 3 | P136: 0 | Q136: 3 | R136: 8.32072084e-13 | S136: 3 | T136: 2.917855747e-07 | U136: 3 | V136: 0 | W136: 0.5 | X136: 0.0002648193195 | Y136: 3 | Z136: 1.450864148e-09 | AC136: 3 | AD136: 0 | AE136: 3 | AF136: 0 | AG136: 3 | AH136: 0 | AI136: 3 | AJ136: 0 | AK136: 0.5 | AL136: 0 | AM136: 3 | AN136: 0 | AQ136: 3 | AR136: 0 | AS136: 3 | AT136: 5.20008076e-13 | AU136: 3 | AV136: 4.45052455e-08 | AW136: 3 | AX136: 0 | AY136: 0.5 | AZ136: 7.185267681e-08 | BA136: 3 | BB136: 8.364703551e-10
A137: 5 | B137: 0 | C137: 5 | D137: 0 | E137: 5 | F137: 0 | G137: 5 | H137: 0 | I137: 1 | J137: 0 | K137: 5 | L137: 0 | O137: 5 | P137: 0 | Q137: 5 | R137: 0 | S137: 5 | T137: 1.353039593e-06 | U137: 5 | V137: 0 | W137: 1 | X137: 5.695352383e-05 | Y137: 5 | Z137: 1.924581912e-12 | AC137: 5 | AD137: 0 | AE137: 5 | AF137: 0 | AG137: 5 | AH137: 0 | AI137: 5 | AJ137: 0 | AK137: 1 | AL137: 0 | AM137: 5 | AN137: 0 | AQ137: 5 | AR137: 0 | AS137: 5 | AT137: 0 | AU137: 5 | AV137: 2.064060478e-07 | AW137: 5 | AX137: 0 | AY137: 1 | AZ137: 1.545062825e-08 | BA137: 5 | BB137: 1.109576498e-12
A138: 10 | B138: 0 | C138: 10 | D138: 0 | E138: 10 | F138: 0 | G138: 10 | H138: 0 | I138: 2 | J138: 5.252918726e-40 | K138: 10 | L138: 0 | O138: 10 | P138: 0 | Q138: 10 | R138: 0 | S138: 10 | T138: 9.880218703e-07 | U138: 10 | V138: 0 | W138: 2 | X138: 7.061081717e-06 | Y138: 10 | Z138: 0 | AC138: 10 | AD138: 0 | AE138: 10 | AF138: 0 | AG138: 10 | AH138: 0 | AI138: 10 | AJ138: 0 | AK138: 2 | AL138: 0 | AM138: 10 | AN138: 0 | AQ138: 10 | AR138: 0 | AS138: 10 | AT138: 0 | AU138: 10 | AV138: 1.507309803e-07 | AW138: 10 | AX138: 0 | AY138: 2 | AZ138: 1.915409545e-09 | BA138: 10 | BB138: 0
A139: 50 | B139: 0 | C139: 50 | D139: 0 | E139: 50 | F139: 0 | G139: 50 | H139: 1.55314268e-10 | I139: 5 | J139: 8.851748963e-29 | K139: 50 | L139: 0 | O139: 50 | P139: 2.093021863e-23 | Q139: 50 | R139: 0 | S139: 50 | T139: 5.399280329e-12 | U139: 50 | V139: 9.039947565e-12 | W139: 5 | X139: 7.377692653e-08 | Y139: 50 | Z139: 0 | AC139: 50 | AD139: 0 | AE139: 50 | AF139: 0 | AG139: 50 | AH139: 0 | AI139: 50 | AJ139: 8.360965222e-11 | AK139: 5 | AL139: 2.400937981e-32 | AM139: 50 | AN139: 0 | AQ139: 50 | AR139: 5.675079155e-25 | AS139: 50 | AT139: 0 | AU139: 50 | AV139: 8.237132358e-13 | AW139: 50 | AX139: 4.858452572e-12 | AY139: 5 | AZ139: 2.001194779e-11 | BA139: 50 | BB139: 0
A140: 75 | B140: 0 | C140: 75 | D140: 0 | E140: 75 | F140: 0 | G140: 75 | H140: 7.109348206e-08 | I140: 10 | J140: 7.173792504e-24 | K140: 75 | L140: 0 | O140: 75 | P140: 3.339740646e-17 | Q140: 75 | R140: 0 | S140: 75 | T140: 3.911388399e-15 | U140: 75 | V140: 9.859462811e-12 | W140: 10 | X140: 1.221221859e-10 | Y140: 75 | Z140: 0 | AC140: 75 | AD140: 0 | AE140: 75 | AF140: 0 | AG140: 75 | AH140: 0 | AI140: 75 | AJ140: 3.827238379e-08 | AK140: 10 | AL140: 1.945068629e-27 | AM140: 75 | AN140: 0 | AQ140: 75 | AR140: 9.057289417e-19 | AS140: 75 | AT140: 0 | AU140: 75 | AV140: 5.966696094e-16 | AW140: 75 | AX140: 5.302545097e-12 | AY140: 10 | AZ140: 3.31227319e-14 | BA140: 75 | BB140: 0
A141: 100 | B141: 0 | C141: 100 | D141: 1.152296767e-28 | E141: 100 | F141: 0 | G141: 100 | H141: 1.235792555e-06 | I141: 50 | J141: 7.980748129e-31 | K141: 100 | L141: 1.352094601e-36 | O141: 100 | P141: 2.458104646e-14 | Q141: 100 | R141: 1.070369425e-14 | S141: 100 | T141: 0 | U141: 100 | V141: 8.858303298e-12 | W141: 50 | X141: 2.473652157e-13 | Y141: 100 | Z141: 0 | AC141: 100 | AD141: 0 | AE141: 100 | AF141: 7.187759691e-29 | AG141: 100 | AH141: 0 | AI141: 100 | AJ141: 6.652807458e-07 | AK141: 50 | AL141: 2.165275332e-34 | AM141: 100 | AN141: 7.792403799e-37 | AQ141: 100 | AR141: 6.666435223e-16 | AS141: 100 | AT141: 6.66743757e-15 | AU141: 100 | AV141: 0 | AW141: 100 | AX141: 4.766983902e-12 | AY141: 50 | AZ141: 6.691549369e-17 | BA141: 100 | BB141: 0
A142: 110 | B142: 0 | C142: 110 | D142: 0 | E142: 110 | F142: 0 | G142: 110 | H142: 2.573764116e-06 | I142: 100 | J142: 0 | K142: 110 | L142: 0 | O142: 110 | P142: 1.437074807e-13 | Q142: 110 | R142: 1.524924743e-14 | S142: 110 | T142: 0 | U142: 110 | V142: 8.438508433e-12 | W142: 100 | X142: 3.176134116e-13 | Y142: 110 | Z142: 0 | AC142: 110 | AD142: 0 | AE142: 110 | AF142: 0 | AG142: 110 | AH142: 0 | AI142: 110 | AJ142: 1.385571443e-06 | AK142: 100 | AL142: 0 | AM142: 110 | AN142: 0 | AQ142: 110 | AR142: 3.897394778e-15 | AS142: 110 | AT142: 9.496994606e-15 | AU142: 110 | AV142: 0 | AW142: 110 | AX142: 4.540144332e-12 | AY142: 100 | AZ142: 8.610066888e-17 | BA142: 110 | BB142: 0
A143: 120 | B143: 0 | C143: 120 | D143: 7.875904401e-28 | E143: 120 | F143: 0 | G143: 120 | H143: 4.641704697e-06 | I143: 120 | J143: 0 | K143: 120 | L143: 0 | O143: 120 | P143: 6.158793805e-13 | Q143: 120 | R143: 1.815853842e-14 | S143: 120 | T143: 0 | U143: 120 | V143: 8.000237467e-12 | W143: 120 | X143: 2.966091227e-13 | Y143: 120 | Z143: 0 | AC143: 120 | AD143: 0 | AE143: 120 | AF143: 4.912699447e-28 | AG143: 120 | AH143: 0 | AI143: 120 | AJ143: 2.498839112e-06 | AK143: 120 | AL143: 0 | AM143: 120 | AN143: 0 | AQ143: 120 | AR143: 1.670290442e-14 | AS143: 120 | AT143: 1.131580935e-14 | AU143: 120 | AV143: 0 | AW143: 120 | AX143: 4.306401264e-12 | AY143: 120 | AZ143: 8.041633295e-17 | BA143: 120 | BB143: 0
A144: 130 | B144: 0 | C144: 130 | D144: 5.346737425e-27 | E144: 130 | F144: 0 | G144: 130 | H144: 7.500575164e-06 | I144: 130 | J144: 0 | K144: 130 | L144: 1.099578458e-32 | O144: 130 | P144: 2.080427461e-12 | Q144: 130 | R144: 2.008496915e-14 | S144: 130 | T144: 0 | U144: 130 | V144: 7.60652082e-12 | W144: 130 | X144: 2.853869779e-13 | Y144: 130 | Z144: 0 | AC144: 130 | AD144: 0 | AE144: 130 | AF144: 3.335113451e-27 | AG144: 130 | AH144: 0 | AI144: 130 | AJ144: 4.037902444e-06 | AK144: 130 | AL144: 0 | AM144: 130 | AN144: 6.337039996e-33 | AQ144: 130 | AR144: 5.642218805e-14 | AS144: 130 | AT144: 1.252300109e-14 | AU144: 130 | AV144: 0 | AW144: 130 | AX144: 4.094007675e-12 | AY144: 130 | AZ144: 7.739542047e-17 | BA144: 130 | BB144: 0
A145: 140 | B145: 0 | C145: 140 | D145: 3.38141458e-26 | E145: 140 | F145: 0 | G145: 140 | H145: 1.112625267e-05 | I145: 140 | J145: 0 | K145: 140 | L145: 0 | O145: 140 | P145: 5.833078783e-12 | Q145: 140 | R145: 2.132474669e-14 | S145: 140 | T145: 0 | U145: 140 | V145: 7.255872238e-12 | W145: 140 | X145: 2.749730262e-13 | Y145: 140 | Z145: 0 | AC145: 140 | AD145: 0 | AE145: 140 | AF145: 2.109213161e-26 | AG145: 140 | AH145: 0 | AI145: 140 | AJ145: 5.989775439e-06 | AK145: 140 | AL145: 0 | AM145: 140 | AN145: 0 | AQ145: 140 | AR145: 1.581961795e-13 | AS145: 140 | AT145: 1.328912734e-14 | AU145: 140 | AV145: 0 | AW145: 140 | AX145: 3.904855509e-12 | AY145: 140 | AZ145: 7.45599335e-17 | BA145: 140 | BB145: 0
A146: 150 | B146: 0 | C146: 150 | D146: 1.575250296e-25 | E146: 150 | F146: 0 | G146: 150 | H146: 1.542124033e-05 | I146: 150 | J146: 1.248585973e-30 | K146: 150 | L146: 0 | O146: 150 | P146: 1.409785708e-11 | Q146: 150 | R146: 2.206917369e-14 | S146: 150 | T146: 0 | U146: 150 | V146: 6.913460514e-12 | W146: 150 | X146: 2.641564202e-13 | Y146: 150 | Z146: 0 | AC146: 150 | AD146: 0 | AE146: 150 | AF146: 9.825934278e-26 | AG146: 150 | AH146: 0 | AI146: 150 | AJ146: 8.301971189e-06 | AK146: 150 | AL146: 3.387275479e-34 | AM146: 150 | AN146: 0 | AQ146: 150 | AR146: 3.823419027e-13 | AS146: 150 | AT146: 1.375936882e-14 | AU146: 150 | AV146: 0 | AW146: 150 | AX146: 3.720544858e-12 | AY146: 150 | AZ146: 7.163420549e-17 | BA146: 150 | BB146: 0
A147: 160 | B147: 0 | C147: 160 | D147: 5.13284432e-25 | E147: 160 | F147: 0 | G147: 160 | H147: 2.023639679e-05 | I147: 160 | J147: 3.301666535e-30 | K147: 160 | L147: 3.966761762e-32 | O147: 160 | P147: 3.021374835e-11 | Q147: 160 | R147: 2.247989313e-14 | S147: 160 | T147: 0 | U147: 160 | V147: 6.591658242e-12 | W147: 160 | X147: 2.53943806e-13 | Y147: 160 | Z147: 0 | AC147: 160 | AD147: 0 | AE147: 160 | AF147: 3.201722437e-25 | AG147: 160 | AH147: 0 | AI147: 160 | AJ147: 1.089419994e-05 | AK147: 160 | AL147: 8.955900057e-34 | AM147: 160 | AN147: 2.284970724e-32 | AQ147: 160 | AR147: 8.194150323e-13 | AS147: 160 | AT147: 1.402006802e-14 | AU147: 160 | AV147: 0 | AW147: 160 | AX147: 3.547761703e-12 | AY147: 160 | AZ147: 6.885985547e-17 | BA147: 160 | BB147: 0
A148: 170 | B148: 0 | C148: 170 | D148: 1.304829512e-24 | E148: 170 | F148: 0 | G148: 170 | H148: 2.539489334e-05 | I148: 170 | J148: 5.047420096e-30 | K148: 170 | L148: 8.737925301e-30 | O148: 170 | P148: 5.867117706e-11 | Q148: 170 | R148: 2.266967817e-14 | S148: 170 | T148: 0 | U148: 170 | V148: 6.293971345e-12 | W148: 170 | X148: 2.444658534e-13 | Y148: 170 | Z148: 0 | AC148: 170 | AD148: 0 | AE148: 170 | AF148: 8.139176389e-25 | AG148: 170 | AH148: 0 | AI148: 170 | AJ148: 1.367126635e-05 | AK148: 170 | AL148: 1.368592888e-33 | AM148: 170 | AN148: 5.035816888e-30 | AQ148: 170 | AR148: 1.59119921e-12 | AS148: 170 | AT148: 1.413612837e-14 | AU148: 170 | AV148: 0 | AW148: 170 | AX148: 3.386543196e-12 | AY148: 170 | AZ148: 6.628314709e-17 | BA148: 170 | BB148: 0
A149: 180 | B149: 0 | C149: 180 | D149: 2.687002429e-24 | E149: 180 | F149: 0 | G149: 180 | H149: 3.071342496e-05 | I149: 180 | J149: 6.303146673e-30 | K149: 180 | L149: 8.742351829e-30 | O149: 180 | P149: 1.049749196e-10 | Q149: 180 | R149: 2.267064527e-14 | S149: 180 | T149: 0 | U149: 180 | V149: 6.031112629e-12 | W149: 180 | X149: 2.355829237e-13 | Y149: 180 | Z149: 0 | AC149: 180 | AD149: 0 | AE149: 180 | AF149: 1.67608371e-24 | AG149: 180 | AH149: 0 | AI149: 180 | AJ149: 1.653448845e-05 | AK149: 180 | AL149: 1.709576711e-33 | AM149: 180 | AN149: 5.038501346e-30 | AQ149: 180 | AR149: 2.846988196e-12 | AS149: 180 | AT149: 1.413909229e-14 | AU149: 180 | AV149: 0 | AW149: 180 | AX149: 3.246479583e-12 | AY149: 180 | AZ149: 6.389122212e-17 | BA149: 180 | BB149: 0
A150: 190 | B150: 0 | C150: 190 | D150: 4.6184581e-24 | E150: 190 | F150: 0 | G150: 190 | H150: 3.601838018e-05 | I150: 190 | J150: 7.059329724e-30 | K150: 190 | L150: 0 | O150: 190 | P150: 1.753532202e-10 | Q150: 190 | R150: 2.256839168e-14 | S150: 190 | T150: 0 | U150: 190 | V150: 5.794236996e-12 | W150: 190 | X150: 2.272393996e-13 | Y150: 190 | Z150: 0 | AC150: 190 | AD150: 0 | AE150: 190 | AF150: 2.880881899e-24 | AG150: 190 | AH150: 0 | AI150: 190 | AJ150: 1.939040272e-05 | AK150: 190 | AL150: 1.914446678e-33 | AM150: 190 | AN150: 0 | AQ150: 190 | AR150: 4.755696898e-12 | AS150: 190 | AT150: 1.407524004e-14 | AU150: 190 | AV150: 0 | AW150: 190 | AX150: 3.118325431e-12 | AY150: 190 | AZ150: 6.162397891e-17 | BA150: 190 | BB150: 0
A151: 200 | B151: 0 | C151: 200 | D151: 6.816095278e-24 | E151: 200 | F151: 0 | G151: 200 | H151: 4.115654542e-05 | I151: 200 | J151: 7.342299381e-30 | K151: 200 | L151: 0 | O151: 200 | P151: 2.763628463e-10 | Q151: 200 | R151: 2.239518244e-14 | S151: 200 | T151: 0 | U151: 200 | V151: 5.561912321e-12 | W151: 200 | X151: 2.192669411e-13 | Y151: 200 | Z151: 0 | AC151: 200 | AD151: 0 | AE151: 200 | AF151: 4.251721187e-24 | AG151: 200 | AH151: 0 | AI151: 200 | AJ151: 2.215652672e-05 | AK151: 200 | AL151: 1.991079817e-33 | AM151: 200 | AN151: 0 | AQ151: 200 | AR151: 7.495150164e-12 | AS151: 200 | AT151: 1.396914425e-14 | AU151: 200 | AV151: 0 | AW151: 200 | AX151: 2.993444634e-12 | AY151: 200 | AZ151: 5.944227387e-17 | BA151: 200 | BB151: 0
A152: 300 | B152: 0 | C152: 300 | D152: 2.28292794e-24 | E152: 300 | F152: 0 | G152: 300 | H152: 6.788988154e-05 | I152: 300 | J152: 0 | K152: 300 | L152: 6.496934611e-26 | O152: 300 | P152: 3.92518691e-09 | Q152: 300 | R152: 1.890300543e-14 | S152: 300 | T152: 0 | U152: 300 | V152: 3.964126811e-12 | W152: 300 | X152: 1.609204178e-13 | Y152: 300 | Z152: 6.634161302e-17 | AC152: 300 | AD152: 0 | AE152: 300 | AF152: 1.424048563e-24 | AG152: 300 | AH152: 0 | AI152: 300 | AJ152: 3.654840175e-05 | AK152: 300 | AL152: 0 | AM152: 300 | AN152: 3.744319981e-26 | AQ152: 300 | AR152: 1.064540864e-10 | AS152: 300 | AT152: 1.179113028e-14 | AU152: 300 | AV152: 0 | AW152: 300 | AX152: 2.133459409e-12 | AY152: 300 | AZ152: 4.364205387e-17 | BA152: 300 | BB152: 3.822857862e-17
A153: 400 | B153: 0 | C153: 400 | D153: 1.07106855e-26 | E153: 400 | F153: 0 | G153: 400 | H153: 5.663971429e-05 | I153: 400 | J153: 0 | K153: 400 | L153: 1.235618377e-22 | O153: 400 | P153: 1.125887369e-08 | Q153: 400 | R153: 1.568668841e-14 | S153: 400 | T153: 0 | U153: 400 | V153: 3.06682597e-12 | W153: 400 | X153: 1.26397865e-13 | Y153: 400 | Z153: 7.810300329e-17 | AC153: 400 | AD153: 0 | AE153: 400 | AF153: 6.681147488e-27 | AG153: 400 | AH153: 0 | AI153: 400 | AJ153: 3.049190622e-05 | AK153: 400 | AL153: 0 | AM153: 400 | AN153: 7.121015214e-23 | AQ153: 400 | AR153: 3.0534962e-10 | AS153: 400 | AT153: 9.783513303e-15 | AU153: 400 | AV153: 0 | AW153: 400 | AX153: 1.65050881e-12 | AY153: 400 | AZ153: 3.427829566e-17 | BA153: 400 | BB153: 4.501152333e-17
A154: 500 | B154: 0 | C154: 500 | D154: 9.377947672e-30 | E154: 500 | F154: 0 | G154: 500 | H154: 3.693392052e-05 | I154: 500 | J154: 0 | K154: 500 | L154: 1.372600643e-19 | O154: 500 | P154: 1.748167258e-08 | Q154: 500 | R154: 1.329981718e-14 | S154: 500 | T154: 0 | U154: 500 | V154: 2.50483107e-12 | W154: 500 | X154: 1.04006834e-13 | Y154: 500 | Z154: 7.648324661e-17 | AC154: 500 | AD154: 0 | AE154: 500 | AF154: 5.849815055e-30 | AG154: 500 | AH154: 0 | AI154: 500 | AJ154: 1.988332483e-05 | AK154: 500 | AL154: 0 | AM154: 500 | AN154: 7.910488001e-20 | AQ154: 500 | AR154: 4.741170953e-10 | AS154: 500 | AT154: 8.297318518e-15 | AU154: 500 | AV154: 0 | AW154: 500 | AX154: 1.348371631e-12 | AY154: 500 | AZ154: 2.820236435e-17 | BA154: 500 | BB154: 4.407915241e-17
A155: 1000 | B155: 0 | C155: 1000 | D155: 9.684438452e-34 | E155: 1000 | F155: 2.985553598e-39 | G155: 1000 | H155: 1.752588324e-06 | I155: 1000 | J155: 0 | K155: 1000 | L155: 1.030094183e-13 | O155: 1000 | P155: 1.215208583e-08 | Q155: 1000 | R155: 7.394430798e-15 | S155: 1000 | T155: 0 | U155: 1000 | V155: 1.297294077e-12 | W155: 1000 | X155: 5.481915694e-14 | Y155: 1000 | Z155: 5.246105277e-17 | AC155: 1000 | AD155: 0 | AE155: 1000 | AF155: 6.045361139e-34 | AG155: 1000 | AH155: 4.55459073e-40 | AI155: 1000 | AJ155: 9.435036581e-07 | AK155: 1000 | AL155: 0 | AM155: 1000 | AN155: 5.936604161e-14 | AQ155: 1000 | AR155: 3.295745735e-10 | AS155: 1000 | AT155: 4.613351551e-15 | AU155: 1000 | AV155: 0 | AW155: 1000 | AX155: 6.985118837e-13 | AY155: 1000 | AZ155: 1.486898946e-17 | BA155: 1000 | BB155: 3.022972073e-17
A156: 2000 | B156: 0 | C156: 2000 | D156: 3.685200485e-33 | E156: 2000 | F156: 8.49472256e-30 | G156: 2000 | H156: 2.384296507e-09 | I156: 2000 | J156: 0 | K156: 2000 | L156: 3.827039943e-11 | O156: 2000 | P156: 6.787032859e-10 | Q156: 2000 | R156: 3.883839934e-15 | S156: 2000 | T156: 0 | U156: 2000 | V156: 6.606826032e-13 | W156: 2000 | X156: 2.813765677e-14 | Y156: 2000 | Z156: 2.991143481e-17 | AC156: 2000 | AD156: 0 | AE156: 2000 | AF156: 2.299365612e-33 | AG156: 2000 | AH156: 1.295909289e-30 | AI156: 2000 | AJ156: 1.28358295e-09 | AK156: 2000 | AL156: 0 | AM156: 2000 | AN156: 2.205589336e-11 | AQ156: 2000 | AR156: 1.840699369e-11 | AS156: 2000 | AT156: 2.422882936e-15 | AU156: 2000 | AV156: 0 | AW156: 2000 | AX156: 3.557280742e-13 | AY156: 2000 | AZ156: 7.630220337e-18 | BA156: 2000 | BB156: 1.72371839e-17
A159: Pollutant Linkage: New Phases, AGB, Lower Calc Grit, NonHaz Compliance | O159: Pollutant Linkage: New Phases, AGB, Haz Compliance | AC159: Pollutant Linkage: Existing Phases, AGB, Lower Calc Grit, NonHaz Compliance | AQ159: Pollutant Linkage: Existing Phases, AGB, Haz Compliance
A160: Remedial Target Concentrations in mg/L in New Phases | O160: Remedial Target Concentrations in mg/L in New Phases | AC160: Remedial Target Concentrations in mg/L in Existing Phases | AQ160: Remedial Target Concentrations in mg/L in Existing Phases
B162: Species1 | D162: Species2 | F162: Species3 | H162: Species4 | J162: Species5 | L162: Species6 | P162: Species1 | R162: Species2 | T162: Species3 | V162: Species4 | X162: Species5 | Z162: Species6 | AD162: Species1 | AF162: Species2 | AH162: Species3 | AJ162: Species4 | AL162: Species5 | AN162: Species6 | AR162: Species1 | AT162: Species2 | AV162: Species3 | AX162: Species4 | AZ162: Species5 | BB162: Species6
A163: Time(years) | B163: Lead | C163: Time(years) | D163: AmmN | E163: Time(years) | F163: Nickel | G163: Time(years) | H163: Chloride | I163: Time(years) | J163: Toluene | K163: Time(years) | L163: Cadmium | O163: Time(years) | P163: Lead | Q163: Time(years) | R163: AmmN | S163: Time(years) | T163: Nickel | U163: Time(years) | V163: Chloride | W163: Time(years) | X163: Toluene | Y163: Time(years) | Z163: Cadmium | AC163: Time(years) | AD163: Lead | AE163: Time(years) | AF163: AmmN | AG163: Time(years) | AH163: Nickel | AI163: Time(years) | AJ163: Chloride | AK163: Time(years) | AL163: Toluene | AM163: Time(years) | AN163: Cadmium | AQ163: Time(years) | AR163: Lead | AS163: Time(years) | AT163: AmmN | AU163: Time(years) | AV163: Nickel | AW163: Time(years) | AX163: Chloride | AY163: Time(years) | AZ163: Toluene | BA163: Time(years) | BB163: Cadmium
A164: 0.1 | B164: 1e+40 | C164: 0.1 | D164: 1e+40 | E164: 0.1 | F164: 1e+40 | G164: 0.1 | H164: 1e+40 | I164: 0.01 | J164: 1e+40 | K164: 0.1 | L164: 1e+40 | O164: 0.1 | P164: 1e+40 | Q164: 0.1 | R164: 6587.764232 | S164: 0.1 | T164: 2.019202621e+36 | U164: 0.1 | V164: 91444.16111 | W164: 0.01 | X164: 4.747940715 | Y164: 0.1 | Z164: 71766.38799 | AC164: 0.1 | AD164: 1e+40 | AE164: 0.1 | AF164: 1e+40 | AG164: 0.1 | AH164: 1e+40 | AI164: 0.1 | AJ164: 1e+40 | AK164: 0.01 | AL164: 1e+40 | AM164: 0.1 | AN164: 1e+40 | AQ164: 0.1 | AR164: 1e+40 | AS164: 0.1 | AT164: 4891.390367 | AU164: 0.1 | AV164: 1.468001092e+36 | AW164: 0.1 | AX164: 67414.30428 | AY164: 0.01 | AZ164: 3.594435887 | BA164: 0.1 | BB164: 53963.24912
A165: 0.5 | B165: 1e+40 | C165: 0.5 | D165: 1e+40 | E165: 0.5 | F165: 1e+40 | G165: 0.5 | H165: 1e+40 | I165: 0.05 | J165: 1e+40 | K165: 0.5 | L165: 1e+40 | O165: 0.5 | P165: 1e+40 | Q165: 0.5 | R165: 1646.506143 | S165: 0.5 | T165: 8.303896678e+18 | U165: 0.5 | V165: 212058638.6 | W165: 0.05 | X165: 2.827824799 | Y165: 0.5 | Z165: 0.2550176479 | AC165: 0.5 | AD165: 1e+40 | AE165: 0.5 | AF165: 1e+40 | AG165: 0.5 | AH165: 1e+40 | AI165: 0.5 | AJ165: 1e+40 | AK165: 0.05 | AL165: 1e+40 | AM165: 0.5 | AN165: 1e+40 | AQ165: 0.5 | AR165: 1e+40 | AS165: 0.5 | AT165: 1213.256046 | AU165: 0.5 | AV165: 6.873170625e+18 | AW165: 0.5 | AX165: 156004512.2 | AY165: 0.05 | AZ165: 2.081475664 | BA165: 0.5 | BB165: 0.1881028472
A166: 1 | B166: 1e+40 | C166: 1 | D166: 1e+40 | E166: 1 | F166: 1e+40 | G166: 1 | H166: 1e+40 | I166: 0.75 | J166: 1e+40 | K166: 1 | L166: 1e+40 | O166: 1 | P166: 1e+40 | Q166: 1 | R166: 78085.29858 | S166: 1 | T166: 1286432890 | U166: 1 | V166: 7.574310204e+12 | W166: 0.75 | X166: 176.8339951 | Y166: 1 | Z166: 0.4437511756 | AC166: 1 | AD166: 1e+40 | AE166: 1 | AF166: 1e+40 | AG166: 1 | AH166: 1e+40 | AI166: 1 | AJ166: 1e+40 | AK166: 0.75 | AL166: 1e+40 | AM166: 1 | AN166: 1e+40 | AQ166: 1 | AR166: 1e+40 | AS166: 1 | AT166: 57531.89342 | AU166: 1 | AV166: 950749652.4 | AW166: 1 | AX166: 5.572308929e+12 | AY166: 0.75 | AZ166: 130.3608717 | BA166: 1 | BB166: 0.3271472158
A167: 2 | B167: 1e+40 | C167: 2 | D167: 1e+40 | E167: 2 | F167: 1e+40 | G167: 2 | H167: 1e+40 | I167: 0.1 | J167: 1e+40 | K167: 2 | L167: 1e+40 | O167: 2 | P167: 1e+40 | Q167: 2 | R167: 218400315.3 | S167: 2 | T167: 101586.0806 | U167: 2 | V167: 1e+40 | W167: 0.1 | X167: 5.878433691 | Y167: 2 | Z167: 9.805809077 | AC167: 2 | AD167: 1e+40 | AE167: 2 | AF167: 1e+40 | AG167: 2 | AH167: 1e+40 | AI167: 2 | AJ167: 1e+40 | AK167: 0.1 | AL167: 1e+40 | AM167: 2 | AN167: 1e+40 | AQ167: 2 | AR167: 1e+40 | AS167: 2 | AT167: 160915842.6 | AU167: 2 | AV167: 74950.06917 | AW167: 2 | AX167: 1e+40 | AY167: 0.1 | AZ167: 4.328926434 | BA167: 2 | BB167: 7.228530612
A168: 3 | B168: 1e+40 | C168: 3 | D168: 1e+40 | E168: 3 | F168: 1e+40 | G168: 3 | H168: 1e+40 | I168: 0.5 | J168: 1e+40 | K168: 3 | L168: 1e+40 | O168: 3 | P168: 1e+40 | Q168: 3 | R168: 3.00454738e+11 | S168: 3 | T168: 6854.348445 | U168: 3 | V168: 1e+40 | W168: 0.5 | X168: 75.52319081 | Y168: 3 | Z168: 275.6977629 | AC168: 3 | AD168: 1e+40 | AE168: 3 | AF168: 1e+40 | AG168: 3 | AH168: 1e+40 | AI168: 3 | AJ168: 1e+40 | AK168: 0.5 | AL168: 1e+40 | AM168: 3 | AN168: 1e+40 | AQ168: 3 | AR168: 1e+40 | AS168: 3 | AT168: 2.211504115e+11 | AU168: 3 | AV168: 5055.583841 | AW168: 3 | AX168: 1e+40 | AY168: 0.5 | AZ168: 55.66946393 | BA168: 3 | BB168: 203.2349371
A169: 5 | B169: 1e+40 | C169: 5 | D169: 1e+40 | E169: 5 | F169: 1e+40 | G169: 5 | H169: 1e+40 | I169: 1 | J169: 1e+40 | K169: 5 | L169: 1e+40 | O169: 5 | P169: 1e+40 | Q169: 5 | R169: 1e+40 | S169: 5 | T169: 1478.153345 | U169: 5 | V169: 1e+40 | W169: 1 | X169: 351.1635217 | Y169: 5 | Z169: 207837.3477 | AC169: 5 | AD169: 1e+40 | AE169: 5 | AF169: 1e+40 | AG169: 5 | AH169: 1e+40 | AI169: 5 | AJ169: 1e+40 | AK169: 1 | AL169: 1e+40 | AM169: 5 | AN169: 1e+40 | AQ169: 5 | AR169: 1e+40 | AS169: 5 | AT169: 1e+40 | AU169: 5 | AV169: 1090.084338 | AW169: 5 | AX169: 1e+40 | AY169: 1 | AZ169: 258.8891491 | BA169: 5 | BB169: 153211.6085
A170: 10 | B170: 1e+40 | C170: 10 | D170: 1e+40 | E170: 10 | F170: 1e+40 | G170: 10 | H170: 1e+40 | I170: 2 | J170: 3.80740709e+37 | K170: 10 | L170: 1e+40 | O170: 10 | P170: 1e+40 | Q170: 10 | R170: 1e+40 | S170: 10 | T170: 2024.246689 | U170: 10 | V170: 1e+40 | W170: 2 | X170: 2832.427212 | Y170: 10 | Z170: 1e+40 | AC170: 10 | AD170: 1e+40 | AE170: 10 | AF170: 1e+40 | AG170: 10 | AH170: 1e+40 | AI170: 10 | AJ170: 1e+40 | AK170: 2 | AL170: 1e+40 | AM170: 10 | AN170: 1e+40 | AQ170: 10 | AR170: 1e+40 | AS170: 10 | AT170: 1e+40 | AU170: 10 | AV170: 1492.725646 | AW170: 10 | AX170: 1e+40 | AY170: 2 | AZ170: 2088.326234 | BA170: 10 | BB170: 1e+40
A171: 50 | B171: 1e+40 | C171: 50 | D171: 1e+40 | E171: 50 | F171: 1e+40 | G171: 50 | H171: 1.2877117e+14 | I171: 5 | J171: 2.259440488e+26 | K171: 50 | L171: 1e+40 | O171: 50 | P171: 2.388890479e+20 | Q171: 50 | R171: 1e+40 | S171: 50 | T171: 370419737.1 | U171: 50 | V171: 2.212402213e+15 | W171: 5 | X171: 271087.4652 | Y171: 50 | Z171: 1e+40 | AC171: 50 | AD171: 1e+40 | AE171: 50 | AF171: 1e+40 | AG171: 50 | AH171: 1e+40 | AI171: 50 | AJ171: 9.496511215e+13 | AK171: 5 | AL171: 1.666015545e+26 | AM171: 50 | AN171: 1e+40 | AQ171: 50 | AR171: 1.76208996e+20 | AS171: 50 | AT171: 1e+40 | AU171: 50 | AV171: 273153313.8 | AW171: 50 | AX171: 1.634265207e+15 | AY171: 5 | AZ171: 199880.5934 | BA171: 50 | BB171: 1e+40
A172: 75 | B172: 1e+40 | C172: 75 | D172: 1e+40 | E172: 75 | F172: 1e+40 | G172: 75 | H172: 2.813197416e+11 | I172: 10 | J172: 2.787925632e+21 | K172: 75 | L172: 1e+40 | O172: 75 | P172: 1.497122241e+14 | Q172: 75 | R172: 1e+40 | S172: 75 | T172: 5.113273845e+11 | U172: 75 | V172: 2.028508082e+15 | W172: 10 | X172: 163770406.3 | Y172: 75 | Z172: 1e+40 | AC172: 75 | AD172: 1e+40 | AE172: 75 | AF172: 1e+40 | AG172: 75 | AH172: 1e+40 | AI172: 75 | AJ172: 2.074602942e+11 | AK172: 10 | AL172: 2.056482707e+21 | AM172: 75 | AN172: 1e+40 | AQ172: 75 | AR172: 1.10408308e+14 | AS172: 75 | AT172: 1e+40 | AU172: 75 | AV172: 3.770931123e+11 | AW172: 75 | AX172: 1.497394148e+15 | AY172: 10 | AZ172: 120762985.7 | BA172: 75 | BB172: 1e+40
A173: 100 | B173: 1e+40 | C173: 100 | D173: 2.169579982e+27 | E173: 100 | F173: 1e+40 | G173: 100 | H173: 1.618394601e+10 | I173: 50 | J173: 2.506030722e+28 | K173: 100 | L173: 2.95837288e+29 | O173: 100 | P173: 2.034087527e+11 | Q173: 100 | R173: 2.335642201e+13 | S173: 100 | T173: 1e+40 | U173: 100 | V173: 2257768708921366 | W173: 50 | X173: 8.08521115e+10 | Y173: 100 | Z173: 1e+40 | AC173: 100 | AD173: 1e+40 | AE173: 100 | AF173: 1.599942193e+27 | AG173: 100 | AH173: 1e+40 | AI173: 100 | AJ173: 1.193481105e+10 | AK173: 50 | AL173: 1.847340124e+28 | AM173: 100 | AN173: 2.18161179e+29 | AQ173: 100 | AR173: 1.500052077e+11 | AS173: 100 | AT173: 1.724800552e+13 | AU173: 100 | AV173: 1e+40 | AW173: 100 | AX173: 1665623413648190 | AY173: 50 | AZ173: 5.977688842e+10 | BA173: 100 | BB173: 1e+40
A174: 110 | B174: 1e+40 | C174: 110 | D174: 1e+40 | E174: 110 | F174: 1e+40 | G174: 110 | H174: 7770719887 | I174: 100 | J174: 1e+40 | K174: 110 | L174: 1e+40 | O174: 110 | P174: 3.479289995e+10 | Q174: 110 | R174: 1.639425166e+13 | S174: 110 | T174: 1e+40 | U174: 110 | V174: 2370087102441440 | W174: 100 | X174: 6.29696331e+10 | Y174: 110 | Z174: 1e+40 | AC174: 110 | AD174: 1e+40 | AE174: 110 | AF174: 1e+40 | AG174: 110 | AH174: 1e+40 | AI174: 110 | AJ174: 5730487620 | AK174: 100 | AL174: 1e+40 | AM174: 110 | AN174: 1e+40 | AQ174: 110 | AR174: 2.565816544e+10 | AS174: 110 | AT174: 1.210909396e+13 | AU174: 110 | AV174: 1e+40 | AW174: 110 | AX174: 1.748843081e+15 | AY174: 100 | AZ174: 4.645724652e+10 | BA174: 110 | BB174: 1e+40
A175: 120 | B175: 1e+40 | C175: 120 | D175: 3.17423863e+26 | E175: 120 | F175: 1e+40 | G175: 120 | H175: 4308761824 | I175: 120 | J175: 1e+40 | K175: 120 | L175: 1e+40 | O175: 120 | P175: 8118472802 | Q175: 120 | R175: 1.376762789e+13 | S175: 120 | T175: 1e+40 | U175: 120 | V175: 2.499925794e+15 | W175: 120 | X175: 6.742880941e+10 | Y175: 120 | Z175: 1e+40 | AC175: 120 | AD175: 1e+40 | AE175: 120 | AF175: 2.340871882e+26 | AG175: 120 | AH175: 1e+40 | AI175: 120 | AJ175: 3177475477 | AK175: 120 | AL175: 1e+40 | AM175: 120 | AN175: 1e+40 | AQ175: 120 | AR175: 5986982713 | AS175: 120 | AT175: 1.016277284e+13 | AU175: 120 | AV175: 1e+40 | AW175: 120 | AX175: 1.843766875e+15 | AY175: 120 | AZ175: 4.974113906e+10 | BA175: 120 | BB175: 1e+40
A176: 130 | B176: 1e+40 | C176: 130 | D176: 4.675748595e+25 | E176: 130 | F176: 1e+40 | G176: 130 | H176: 2666462180 | I176: 130 | J176: 1e+40 | K176: 130 | L176: 3.637757699e+25 | O176: 130 | P176: 2403352241 | Q176: 130 | R176: 1.244711894e+13 | S176: 130 | T176: 1e+40 | U176: 130 | V176: 2629322981210776 | W176: 130 | X176: 7.008028239e+10 | Y176: 130 | Z176: 1e+40 | AC176: 130 | AD176: 1e+40 | AE176: 130 | AF176: 3.448158562e+25 | AG176: 130 | AH176: 1e+40 | AI176: 130 | AJ176: 1966367467 | AK176: 130 | AL176: 1e+40 | AM176: 130 | AN176: 2.682640478e+25 | AQ176: 130 | AR176: 1772352393 | AS176: 130 | AT176: 9.183102292e+12 | AU176: 130 | AV176: 1e+40 | AW176: 130 | AX176: 1.939419911e+15 | AY176: 130 | AZ176: 5.168264448e+10 | BA176: 130 | BB176: 1e+40
A177: 140 | B177: 1e+40 | C177: 140 | D177: 7.393355476e+24 | E177: 140 | F177: 1e+40 | G177: 140 | H177: 1797550405 | I177: 140 | J177: 1e+40 | K177: 140 | L177: 1e+40 | O177: 140 | P177: 857180262 | Q177: 140 | R177: 1.172346868e+13 | S177: 140 | T177: 1e+40 | U177: 140 | V177: 2.756388115e+15 | W177: 140 | X177: 7.273440699e+10 | Y177: 140 | Z177: 1e+40 | AC177: 140 | AD177: 1e+40 | AE177: 140 | AF177: 5.452270171e+24 | AG177: 140 | AH177: 1e+40 | AI177: 140 | AJ177: 1325592266 | AK177: 140 | AL177: 1e+40 | AM177: 140 | AN177: 1e+40 | AQ177: 140 | AR177: 632126517.4 | AS177: 140 | AT177: 8.653690872e+12 | AU177: 140 | AV177: 1e+40 | AW177: 140 | AX177: 2033365890887707 | AY177: 140 | AZ177: 5.364811652e+10 | BA177: 140 | BB177: 1e+40
A178: 150 | B178: 1e+40 | C178: 150 | D178: 1.587049376e+24 | E178: 150 | F178: 1e+40 | G178: 150 | H178: 1296912542 | I178: 150 | J178: 1.601812004e+28 | K178: 150 | L178: 1e+40 | O178: 150 | P178: 354663830.9 | Q178: 150 | R178: 1.132801814e+13 | S178: 150 | T178: 1e+40 | U178: 150 | V178: 2892907243804976 | W178: 150 | X178: 7.571271591e+10 | Y178: 150 | Z178: 1e+40 | AC178: 150 | AD178: 1e+40 | AE178: 150 | AF178: 1.170372168e+24 | AG178: 150 | AH178: 1e+40 | AI178: 150 | AJ178: 956399368.2 | AK178: 150 | AL178: 1.180890077e+28 | AM178: 150 | AN178: 1e+40 | AQ178: 150 | AR178: 261546012.3 | AS178: 150 | AT178: 8.357941523e+12 | AU178: 150 | AV178: 1e+40 | AW178: 150 | AX178: 2134096027304129 | AY178: 150 | AZ178: 5.583924569e+10 | BA178: 150 | BB178: 1e+40
A179: 160 | B179: 1e+40 | C179: 160 | D179: 4.870593854e+23 | E179: 160 | F179: 1e+40 | G179: 160 | H179: 988318236.9 | I179: 160 | J179: 6.057546935e+27 | K179: 160 | L179: 1.008379187e+25 | O179: 160 | P179: 165487576.8 | Q179: 160 | R179: 1.112104931e+13 | S179: 160 | T179: 1e+40 | U179: 160 | V179: 3.034137885e+15 | W179: 160 | X179: 7.875758152e+10 | Y179: 160 | Z179: 1e+40 | AC179: 160 | AD179: 1e+40 | AE179: 160 | AF179: 3.591816663e+23 | AG179: 160 | AH179: 1e+40 | AI179: 160 | AJ179: 728828187.8 | AK179: 160 | AL179: 4.46632943e+27 | AM179: 160 | AN179: 7.439920267e+24 | AQ179: 160 | AR179: 122038278.6 | AS179: 160 | AT179: 8.202527967e+12 | AU179: 160 | AV179: 1e+40 | AW179: 160 | AX179: 2.238030811e+15 | AY179: 160 | AZ179: 5.80889979e+10 | BA179: 160 | BB179: 1e+40
A180: 170 | B180: 1e+40 | C180: 170 | D180: 1.915959117e+23 | E180: 170 | F180: 1e+40 | G180: 170 | H180: 787559913.5 | I180: 170 | J180: 3.962420329e+27 | K180: 170 | L180: 4.577745703e+22 | O180: 170 | P180: 85220720.81 | Q180: 170 | R180: 1.102794659e+13 | S180: 170 | T180: 1e+40 | U180: 170 | V180: 3.177643956e+15 | W180: 170 | X180: 8.181101664e+10 | Y180: 170 | Z180: 1e+40 | AC180: 170 | AD180: 1e+40 | AE180: 170 | AF180: 1.412919373e+23 | AG180: 170 | AH180: 1e+40 | AI180: 170 | AJ180: 580780141.3 | AK180: 170 | AL180: 2.922709913e+27 | AM180: 170 | AN180: 3.375817743e+22 | AQ180: 170 | AR180: 62845682.27 | AS180: 170 | AT180: 8.135183624e+12 | AU180: 170 | AV180: 1e+40 | AW180: 170 | AX180: 2344573667225124 | AY180: 170 | AZ180: 6.034716479e+10 | BA180: 170 | BB180: 1e+40
A181: 180 | B181: 1e+40 | C181: 180 | D181: 9.304048157e+22 | E181: 180 | F181: 1e+40 | G181: 180 | H181: 651181039.7 | I181: 180 | J181: 3.173018341e+27 | K181: 180 | L181: 4.575427846e+22 | O181: 180 | P181: 47630424.67 | Q181: 180 | R181: 1.102747615e+13 | S181: 180 | T181: 1e+40 | U181: 180 | V181: 3.316137706e+15 | W181: 180 | X181: 8.489579673e+10 | Y181: 180 | Z181: 1e+40 | AC181: 180 | AD181: 1e+40 | AE181: 180 | AF181: 6.861232485e+22 | AG181: 180 | AH181: 1e+40 | AI181: 180 | AJ181: 480208385.2 | AK181: 180 | AL181: 2.339760465e+27 | AM181: 180 | AN181: 3.374019144e+22 | AQ181: 180 | AR181: 35124838.29 | AS181: 180 | AT181: 8.133478276e+12 | AU181: 180 | AV181: 1e+40 | AW181: 180 | AX181: 2445726146285866 | AY181: 180 | AZ181: 6.260640926e+10 | BA181: 180 | BB181: 1e+40
A182: 190 | B182: 1e+40 | C182: 190 | D182: 5.413061992e+22 | E182: 190 | F182: 1e+40 | G182: 190 | H182: 555272055.5 | I182: 190 | J182: 2.833130167e+27 | K182: 190 | L182: 1e+40 | O182: 190 | P182: 28513876.13 | Q182: 190 | R182: 1.107743979e+13 | S182: 190 | T182: 1e+40 | U182: 190 | V182: 3451705550527860 | W182: 190 | X182: 8.801290637e+10 | Y182: 190 | Z182: 1e+40 | AC182: 190 | AD182: 1e+40 | AE182: 190 | AF182: 3.991833196e+22 | AG182: 190 | AH182: 1e+40 | AI182: 190 | AJ182: 409480922.9 | AK182: 190 | AL182: 2.089376553e+27 | AM182: 190 | AN182: 1e+40 | AQ182: 190 | AR182: 21027412.42 | AS182: 190 | AT182: 8.170375759e+12 | AU182: 190 | AV182: 1e+40 | AW182: 190 | AX182: 2.546238414e+15 | AY182: 190 | AZ182: 6.490979762e+10 | BA182: 190 | BB182: 1e+40
A183: 200 | B183: 1e+40 | C183: 200 | D183: 3.667789105e+22 | E183: 200 | F183: 1e+40 | G183: 200 | H183: 485949435.2 | I183: 200 | J183: 2.723942319e+27 | K183: 200 | L183: 1e+40 | O183: 200 | P183: 18092156.99 | Q183: 200 | R183: 1.116311513e+13 | S183: 200 | T183: 1e+40 | U183: 200 | V183: 3595885523867755 | W183: 200 | X183: 9.121302051e+10 | Y183: 200 | Z183: 1e+40 | AC183: 200 | AD183: 1e+40 | AE183: 200 | AF183: 2.704786954e+22 | AG183: 200 | AH183: 1e+40 | AI183: 200 | AJ183: 358359417.1 | AK183: 200 | AL183: 2.008960146e+27 | AM183: 200 | AN183: 1e+40 | AQ183: 200 | AR183: 13341960.84 | AS183: 200 | AT183: 8.232429844e+12 | AU183: 200 | AV183: 1e+40 | AW183: 200 | AX183: 2.652462621e+15 | AY183: 200 | AZ183: 6.729217676e+10 | BA183: 200 | BB183: 1e+40
A184: 300 | B184: 1e+40 | C184: 300 | D184: 1.095084937e+23 | E184: 300 | F184: 1e+40 | G184: 300 | H184: 294594710.5 | I184: 300 | J184: 1e+40 | K184: 300 | L184: 6.156749666e+18 | O184: 300 | P184: 1273824.69 | Q184: 300 | R184: 1.322541016e+13 | S184: 300 | T184: 1e+40 | U184: 300 | V184: 5045247277295395 | W184: 300 | X184: 1.242850365e+11 | Y184: 300 | Z184: 6029398168 | AC184: 300 | AD184: 1e+40 | AE184: 300 | AF184: 8.075567294e+22 | AG184: 300 | AH184: 1e+40 | AI184: 300 | AJ184: 217246161.8 | AK184: 300 | AL184: 1e+40 | AM184: 300 | AN184: 4.540210261e+18 | AQ184: 300 | AR184: 939372.1121 | AS184: 300 | AT184: 9.753093828e+12 | AU184: 300 | AV184: 1e+40 | AW184: 300 | AX184: 3721655057022172 | AY184: 300 | AZ184: 9.165471479e+10 | BA184: 300 | BB184: 4446934888
A185: 400 | B185: 1e+40 | C185: 400 | D185: 2.334117644e+25 | E185: 400 | F185: 1e+40 | G185: 400 | H185: 353109125.8 | I185: 400 | J185: 1e+40 | K185: 400 | L185: 3.237245474e+15 | O185: 400 | P185: 444094.1553 | Q185: 400 | R185: 1.593707949e+13 | S185: 400 | T185: 1e+40 | U185: 400 | V185: 6521400363977320 | W185: 400 | X185: 1.582305207e+11 | Y185: 400 | Z185: 5121441983 | AC185: 400 | AD185: 1e+40 | AE185: 400 | AF185: 1.721261209e+25 | AG185: 400 | AH185: 1e+40 | AI185: 400 | AJ185: 260396970.4 | AK185: 400 | AL185: 1e+40 | AM185: 400 | AN185: 2387300053455417 | AQ185: 400 | AR185: 327493.4483 | AS185: 400 | AT185: 1.175446861e+13 | AU185: 400 | AV185: 1e+40 | AW185: 400 | AX185: 4810637758504456 | AY185: 400 | AZ185: 1.166919161e+11 | BA185: 400 | BB185: 3776810635
A186: 500 | B186: 1e+40 | C186: 500 | D186: 2.665828481e+28 | E186: 500 | F186: 1e+40 | G186: 500 | H186: 541507636.3 | I186: 500 | J186: 1e+40 | K186: 500 | L186: 2.914176109e+12 | O186: 500 | P186: 286013.8226 | Q186: 500 | R186: 1.879725087e+13 | S186: 500 | T186: 1e+40 | U186: 500 | V186: 7984570392735503 | W186: 500 | X186: 1.922950564e+11 | Y186: 500 | Z186: 5229903511 | AC186: 500 | AD186: 1e+40 | AE186: 500 | AF186: 1.965874116e+28 | AG186: 500 | AH186: 1e+40 | AI186: 500 | AJ186: 399329592.4 | AK186: 500 | AL186: 1e+40 | AM186: 500 | AN186: 2.149045672e+12 | AQ186: 500 | AR186: 210918.3596 | AS186: 500 | AT186: 1.385989941e+13 | AU186: 500 | AV186: 1e+40 | AW186: 500 | AX186: 5888584287562187 | AY186: 500 | AZ186: 1.418320801e+11 | BA186: 500 | BB186: 3856698478
A187: 1000 | B187: 1e+40 | C187: 1000 | D187: 2.581460982e+32 | E187: 1000 | F187: 6.698925123e+35 | G187: 1000 | H187: 1.141169305e+10 | I187: 1000 | J187: 1e+40 | K187: 1000 | L187: 3883140.074 | O187: 1000 | P187: 411451.9985 | Q187: 1000 | R187: 3.380922844e+13 | S187: 1000 | T187: 1e+40 | U187: 1000 | V187: 1.541670494e+16 | W187: 1000 | X187: 3.648359646e+11 | Y187: 1000 | Z187: 7624704021 | AC187: 1000 | AD187: 1e+40 | AE187: 1000 | AF187: 1.902285031e+32 | AG187: 1000 | AH187: 4.940070653e+35 | AI187: 1000 | AJ187: 8415441670 | AK187: 1000 | AL187: 1e+40 | AM187: 1000 | AN187: 2863589.948 | AQ187: 1000 | AR187: 303421.4653 | AS187: 1000 | AT187: 2.492764722e+13 | AU187: 1000 | AV187: 1e+40 | AW187: 1000 | AX187: 1.136702207e+16 | AY187: 1000 | AZ187: 2.690162644e+11 | BA187: 1000 | BB187: 5623604714
A188: 2000 | B188: 1e+40 | C188: 2000 | D188: 6.783891434e+31 | E188: 2000 | F188: 2.354402967e+26 | G188: 2000 | H188: 8.388218471e+12 | I188: 2000 | J188: 1e+40 | K188: 2000 | L188: 10451.94213 | O188: 2000 | P188: 7366989.528 | Q188: 2000 | R188: 6.436928511e+13 | S188: 2000 | T188: 1e+40 | U188: 2000 | V188: 3.027172186e+16 | W188: 2000 | X188: 7.10791242e+11 | Y188: 2000 | Z188: 1.337281219e+10 | AC188: 2000 | AD188: 1e+40 | AE188: 2000 | AF188: 5.001379485e+31 | AG188: 2000 | AH188: 1.736232636e+26 | AI188: 2000 | AJ188: 6.185809805e+12 | AK188: 2000 | AL188: 1e+40 | AM188: 2000 | AN188: 7707.690512 | AQ188: 2000 | AR188: 5432717.677 | AS188: 2000 | AT188: 4.746411735e+13 | AU188: 2000 | AV188: 1e+40 | AW188: 2000 | AX188: 2.232041994e+16 | AY188: 2000 | AZ188: 5.242312572e+11 | BA188: 2000 | BB188: 9862399856
A190: Compared with source concentrations in mg/L | O190: Compared with source concentrations in mg/L | AC190: Compared with source concentrations in mg/L | AQ190: Compared with source concentrations in mg/L
B191: 0.05 | D191: 0.5 | F191: 0.04 | H191: 80 | J191: 5 | L191: 0.004 | P191: 0.05 | R191: 0.5 | T191: 0.04 | V191: 80 | X191: 5 | Z191: 0.004 | AD191: 0.001 | AF191: 0.23 | AH191: 0.0045 | AJ191: 31.76 | AL191: 0.001 | AN191: 0.0017 | AR191: 0.001 | AT191: 0.23 | AV191: 0.0045 | AX191: 31.76 | AZ191: 0.001 | BB191: 0.0017
A194: Pollutant Linkage: New Phases, AGB, Lower Calc Grit, NonHaz Compliance | O194: Pollutant Linkage: New Phases, AGB, Haz Compliance | AC194: Pollutant Linkage: Existing Phases, AGB, Lower Calc Grit, NonHaz Compliance | AQ194: Pollutant Linkage: Existing Phases, AGB, Haz Compliance
A195: Dilution Factor | O195: Dilution Factor | AC195: Dilution Factor | AQ195: Dilution Factor
B197: 1.000000581 | C197: for all species and timeslices | P197: 1 | Q197: for all species and timeslices | AD197: 1.000000383 | AE197: for all species and timeslices | AR197: 1 | AS197: for all species and timeslices
A200: Pollutant Linkage: New Phases, AGB, Lower Calc Grit, NonHaz Compliance | O200: Pollutant Linkage: New Phases, AGB, Haz Compliance | AC200: Pollutant Linkage: Existing Phases, AGB, Lower Calc Grit, NonHaz Compliance | AQ200: Pollutant Linkage: Existing Phases, AGB, Haz Compliance
A201: Attenuation Factor | O201: Attenuation Factor | AC201: Attenuation Factor | AQ201: Attenuation Factor
B203: Species1 | D203: Species2 | F203: Species3 | H203: Species4 | J203: Species5 | L203: Species6 | P203: Species1 | R203: Species2 | T203: Species3 | V203: Species4 | X203: Species5 | Z203: Species6 | AD203: Species1 | AF203: Species2 | AH203: Species3 | AJ203: Species4 | AL203: Species5 | AN203: Species6 | AR203: Species1 | AT203: Species2 | AV203: Species3 | AX203: Species4 | AZ203: Species5 | BB203: Species6
A204: Time(years) | B204: Lead | C204: Time(years) | D204: AmmN | E204: Time(years) | F204: Nickel | G204: Time(years) | H204: Chloride | I204: Time(years) | J204: Toluene | K204: Time(years) | L204: Cadmium | O204: Time(years) | P204: Lead | Q204: Time(years) | R204: AmmN | S204: Time(years) | T204: Nickel | U204: Time(years) | V204: Chloride | W204: Time(years) | X204: Toluene | Y204: Time(years) | Z204: Cadmium | AC204: Time(years) | AD204: Lead | AE204: Time(years) | AF204: AmmN | AG204: Time(years) | AH204: Nickel | AI204: Time(years) | AJ204: Chloride | AK204: Time(years) | AL204: Toluene | AM204: Time(years) | AN204: Cadmium | AQ204: Time(years) | AR204: Lead | AS204: Time(years) | AT204: AmmN | AU204: Time(years) | AV204: Nickel | AW204: Time(years) | AX204: Chloride | AY204: Time(years) | AZ204: Toluene | BA204: Time(years) | BB204: Cadmium
A205: 0.1 | B205: 1e+40 | C205: 0.1 | D205: 4.999997097 | E205: 0.1 | F205: 1e+40 | G205: 0.1 | H205: 799.9995356 | I205: 0.01 | J205: 1e+40 | K205: 0.1 | L205: 0.03999997678 | O205: 0.1 | P205: 1e+40 | Q205: 0.1 | R205: 5 | S205: 0.1 | T205: 1054.042277 | U205: 0.1 | V205: 800 | W205: 0.01 | X205: 5.048006552e+39 | Y205: 0.1 | Z205: 0.04 | AC205: 0.1 | AD205: 1e+40 | AE205: 0.1 | AF205: 2.29999912 | AG205: 0.1 | AH205: 1e+40 | AI205: 0.1 | AJ205: 317.5998785 | AK205: 0.01 | AL205: 1e+40 | AM205: 0.1 | AN205: 0.01699999349 | AQ205: 0.1 | AR205: 1e+40 | AS205: 0.1 | AT205: 2.3 | AU205: 0.1 | AV205: 191.4022318 | AW205: 0.1 | AX205: 317.6 | AY205: 0.01 | AZ205: 6.524449298e+36 | BA205: 0.1 | BB205: 0.017
A206: 0.5 | B206: 1e+40 | C206: 0.5 | D206: 0.9999994195 | E206: 0.5 | F206: 1e+40 | G206: 0.5 | H206: 159.9999071 | I206: 0.05 | J206: 1e+40 | K206: 0.5 | L206: 0.007999995356 | O206: 0.5 | P206: 1e+40 | Q206: 0.5 | R206: 1 | S206: 0.5 | T206: 263.4409828 | U206: 0.5 | V206: 160 | W206: 0.05 | X206: 2.075974169e+22 | Y206: 0.5 | Z206: 0.008 | AC206: 0.5 | AD206: 1e+40 | AE206: 0.5 | AF206: 0.459999824 | AG206: 0.5 | AH206: 1e+40 | AI206: 0.5 | AJ206: 63.51997569 | AK206: 0.05 | AL206: 1e+40 | AM206: 0.5 | AN206: 0.003399998699 | AQ206: 0.5 | AR206: 1e+40 | AS206: 0.5 | AT206: 0.46 | AU206: 0.5 | AV206: 47.47523657 | AW206: 0.5 | AX206: 63.52 | AY206: 0.05 | AZ206: 3.0547425e+19 | BA206: 0.5 | BB206: 0.0034
A207: 1 | B207: 1e+40 | C207: 1 | D207: 0.4999997097 | E207: 1 | F207: 1e+40 | G207: 1 | H207: 79.99995356 | I207: 0.75 | J207: 1e+40 | K207: 1 | L207: 0.003999997678 | O207: 1 | P207: 1e+40 | Q207: 1 | R207: 0.5 | S207: 1 | T207: 12493.64777 | U207: 1 | V207: 80 | W207: 0.75 | X207: 3.216082226e+12 | Y207: 1 | Z207: 0.004 | AC207: 1 | AD207: 1e+40 | AE207: 1 | AF207: 0.229999912 | AG207: 1 | AH207: 1e+40 | AI207: 1 | AJ207: 31.75998785 | AK207: 0.75 | AL207: 1e+40 | AM207: 1 | AN207: 0.001699999349 | AQ207: 1 | AR207: 1e+40 | AS207: 1 | AT207: 0.23 | AU207: 1 | AV207: 2251.248003 | AW207: 1 | AX207: 31.76 | AY207: 0.75 | AZ207: 4225554011 | BA207: 1 | BB207: 0.0017
A208: 2 | B208: 1e+40 | C208: 2 | D208: 0.2499998549 | E208: 2 | F208: 1e+40 | G208: 2 | H208: 39.99997678 | I208: 0.1 | J208: 1e+40 | K208: 2 | L208: 0.001999998839 | O208: 2 | P208: 1e+40 | Q208: 2 | R208: 0.25 | S208: 2 | T208: 34944050.45 | U208: 2 | V208: 40 | W208: 0.1 | X208: 253965201.6 | Y208: 2 | Z208: 0.002 | AC208: 2 | AD208: 1e+40 | AE208: 2 | AF208: 0.114999956 | AG208: 2 | AH208: 1e+40 | AI208: 2 | AJ208: 15.87999392 | AK208: 0.1 | AL208: 1e+40 | AM208: 2 | AN208: 0.0008499996747 | AQ208: 2 | AR208: 1e+40 | AS208: 2 | AT208: 0.115 | AU208: 2 | AV208: 6296706.886 | AW208: 2 | AX208: 15.88 | AY208: 0.1 | AZ208: 333111.4185 | BA208: 2 | BB208: 0.00085
A209: 3 | B209: 1e+40 | C209: 3 | D209: 0.1666665699 | E209: 3 | F209: 1e+40 | G209: 3 | H209: 26.66665119 | I209: 0.5 | J209: 1e+40 | K209: 3 | L209: 0.001333332559 | O209: 3 | P209: 1e+40 | Q209: 3 | R209: 0.1666666667 | S209: 3 | T209: 4.807275808e+10 | U209: 3 | V209: 26.66666667 | W209: 0.5 | X209: 17135871.11 | Y209: 3 | Z209: 0.001333333333 | AC209: 3 | AD209: 1e+40 | AE209: 3 | AF209: 0.07666663733 | AG209: 3 | AH209: 1e+40 | AI209: 3 | AJ209: 10.58666262 | AK209: 0.5 | AL209: 1e+40 | AM209: 3 | AN209: 0.0005666664498 | AQ209: 3 | AR209: 1e+40 | AS209: 3 | AT209: 0.07666666667 | AU209: 3 | AV209: 8653711754 | AW209: 3 | AX209: 10.58666667 | AY209: 0.5 | AZ209: 22469.26152 | BA209: 3 | BB209: 0.0005666666667
A210: 5 | B210: 1e+40 | C210: 5 | D210: 0.09999994195 | E210: 5 | F210: 1e+40 | G210: 5 | H210: 15.99999071 | I210: 1 | J210: 1e+40 | K210: 5 | L210: 0.0007999995356 | O210: 5 | P210: 1e+40 | Q210: 5 | R210: 0.1 | S210: 5 | T210: 1e+40 | U210: 5 | V210: 16 | W210: 1 | X210: 3695383.363 | Y210: 5 | Z210: 0.0008 | AC210: 5 | AD210: 1e+40 | AE210: 5 | AF210: 0.0459999824 | AG210: 5 | AH210: 1e+40 | AI210: 5 | AJ210: 6.351997569 | AK210: 1 | AL210: 1e+40 | AM210: 5 | AN210: 0.0003399998699 | AQ210: 5 | AR210: 1e+40 | AS210: 5 | AT210: 0.046 | AU210: 5 | AV210: 1e+40 | AW210: 5 | AX210: 6.352 | AY210: 1 | AZ210: 4844.81928 | BA210: 5 | BB210: 0.00034
A211: 10 | B211: 1e+40 | C211: 10 | D211: 0.04999997097 | E211: 10 | F211: 1e+40 | G211: 10 | H211: 7.999995356 | I211: 2 | J211: 1e+40 | K211: 10 | L211: 0.0003999997678 | O211: 10 | P211: 1e+40 | Q211: 10 | R211: 0.05 | S211: 10 | T211: 1e+40 | U211: 10 | V211: 8 | W211: 2 | X211: 5060616.723 | Y211: 10 | Z211: 0.0004 | AC211: 10 | AD211: 1e+40 | AE211: 10 | AF211: 0.0229999912 | AG211: 10 | AH211: 1e+40 | AI211: 10 | AJ211: 3.175998785 | AK211: 2 | AL211: 1e+40 | AM211: 10 | AN211: 0.0001699999349 | AQ211: 10 | AR211: 1e+40 | AS211: 10 | AT211: 0.023 | AU211: 10 | AV211: 1e+40 | AW211: 10 | AX211: 3.176 | AY211: 2 | AZ211: 6634.336205 | BA211: 10 | BB211: 0.00017
A212: 50 | B212: 1e+40 | C212: 50 | D212: 0.009999994195 | E212: 50 | F212: 1e+40 | G212: 50 | H212: 1.599999071 | I212: 5 | J212: 1e+40 | K212: 50 | L212: 7.999995356e-05 | O212: 50 | P212: 2.388890479e+21 | Q212: 50 | R212: 0.01 | S212: 50 | T212: 1e+40 | U212: 50 | V212: 1.6 | W212: 5 | X212: 9.260493428e+11 | Y212: 50 | Z212: 8e-05 | AC212: 50 | AD212: 1e+40 | AE212: 50 | AF212: 0.00459999824 | AG212: 50 | AH212: 1e+40 | AI212: 50 | AJ212: 0.6351997569 | AK212: 5 | AL212: 1e+40 | AM212: 50 | AN212: 3.399998699e-05 | AQ212: 50 | AR212: 1.76208996e+21 | AS212: 50 | AT212: 0.0046 | AU212: 50 | AV212: 1e+40 | AW212: 50 | AX212: 0.6352 | AY212: 5 | AZ212: 1214014728 | BA212: 50 | BB212: 3.4e-05
A213: 75 | B213: 1e+40 | C213: 75 | D213: 0.006666662797 | E213: 75 | F213: 1e+40 | G213: 75 | H213: 1.066666047 | I213: 10 | J213: 1e+40 | K213: 75 | L213: 5.333330237e-05 | O213: 75 | P213: 1.497122241e+15 | Q213: 75 | R213: 0.006666666667 | S213: 75 | T213: 1e+40 | U213: 75 | V213: 1.066666667 | W213: 10 | X213: 1.278318461e+15 | Y213: 75 | Z213: 5.333333333e-05 | AC213: 75 | AD213: 1e+40 | AE213: 75 | AF213: 0.003066665493 | AG213: 75 | AH213: 1e+40 | AI213: 75 | AJ213: 0.4234665046 | AK213: 10 | AL213: 1e+40 | AM213: 75 | AN213: 2.266665799e-05 | AQ213: 75 | AR213: 1104083080423421 | AS213: 75 | AT213: 0.003066666667 | AU213: 75 | AV213: 1e+40 | AW213: 75 | AX213: 0.4234666667 | AY213: 10 | AZ213: 1.675969388e+12 | BA213: 75 | BB213: 2.266666667e-05
A214: 100 | B214: 1e+40 | C214: 100 | D214: 0.004999997097 | E214: 100 | F214: 3.471325957e+26 | G214: 100 | H214: 0.7999995356 | I214: 50 | J214: 1e+40 | K214: 100 | L214: 3.999997678e-05 | O214: 100 | P214: 2.034087527e+12 | Q214: 100 | R214: 0.005 | S214: 100 | T214: 3.737027522e+12 | U214: 100 | V214: 0.8 | W214: 50 | X214: 1e+40 | Y214: 100 | Z214: 4e-05 | AC214: 100 | AD214: 1e+40 | AE214: 100 | AF214: 0.00229999912 | AG214: 100 | AH214: 6.260640967e+25 | AI214: 100 | AJ214: 0.3175998785 | AK214: 50 | AL214: 1e+40 | AM214: 100 | AN214: 1.699999349e-05 | AQ214: 100 | AR214: 1.500052077e+12 | AS214: 100 | AT214: 0.0023 | AU214: 100 | AV214: 6.74921955e+11 | AW214: 100 | AX214: 0.3176 | AY214: 50 | AZ214: 1e+40 | BA214: 100 | BB214: 1.7e-05
A215: 110 | B215: 1e+40 | C215: 110 | D215: 0.004545451907 | E215: 110 | F215: 1e+40 | G215: 110 | H215: 0.7272723051 | I215: 100 | J215: 1e+40 | K215: 110 | L215: 3.636361525e-05 | O215: 110 | P215: 3.479289995e+11 | Q215: 110 | R215: 0.004545454545 | S215: 110 | T215: 2.623080265e+12 | U215: 110 | V215: 0.7272727273 | W215: 100 | X215: 1e+40 | Y215: 110 | Z215: 3.636363636e-05 | AC215: 110 | AD215: 1e+40 | AE215: 110 | AF215: 0.002090908291 | AG215: 110 | AH215: 1e+40 | AI215: 110 | AJ215: 0.2887271622 | AK215: 100 | AL215: 1e+40 | AM215: 110 | AN215: 1.545453954e-05 | AQ215: 110 | AR215: 2.565816544e+11 | AS215: 110 | AT215: 0.002090909091 | AU215: 110 | AV215: 4.738341114e+11 | AW215: 110 | AX215: 0.2887272727 | AY215: 100 | AZ215: 1e+40 | BA215: 110 | BB215: 1.545454545e-05
A216: 120 | B216: 1e+40 | C216: 120 | D216: 0.004166664248 | E216: 120 | F216: 5.07877886e+25 | G216: 120 | H216: 0.6666662797 | I216: 120 | J216: 1e+40 | K216: 120 | L216: 3.333331398e-05 | O216: 120 | P216: 8.118472802e+10 | Q216: 120 | R216: 0.004166666667 | S216: 120 | T216: 2.202820463e+12 | U216: 120 | V216: 0.6666666667 | W216: 120 | X216: 1e+40 | Y216: 120 | Z216: 3.333333333e-05 | AC216: 120 | AD216: 1e+40 | AE216: 120 | AF216: 0.001916665933 | AG216: 120 | AH216: 9.159929946e+24 | AI216: 120 | AJ216: 0.2646665654 | AK216: 120 | AL216: 1e+40 | AM216: 120 | AN216: 1.416666125e-05 | AQ216: 120 | AR216: 5.986982713e+10 | AS216: 120 | AT216: 0.001916666667 | AU216: 120 | AV216: 3.9767372e+11 | AW216: 120 | AX216: 0.2646666667 | AY216: 120 | AZ216: 1e+40 | BA216: 120 | BB216: 1.416666667e-05
A217: 130 | B217: 1e+40 | C217: 130 | D217: 0.003846151613 | E217: 130 | F217: 7.481193408e+24 | G217: 130 | H217: 0.6153842581 | I217: 130 | J217: 1e+40 | K217: 130 | L217: 3.076921291e-05 | O217: 130 | P217: 2.403352241e+10 | Q217: 130 | R217: 0.003846153846 | S217: 130 | T217: 1.991539031e+12 | U217: 130 | V217: 0.6153846154 | W217: 130 | X217: 1e+40 | Y217: 130 | Z217: 3.076923077e-05 | AC217: 130 | AD217: 1e+40 | AE217: 130 | AF217: 0.001769230092 | AG217: 130 | AH217: 1.349278921e+24 | AI217: 130 | AJ217: 0.2443075988 | AK217: 130 | AL217: 1e+40 | AM217: 130 | AN217: 1.307691807e-05 | AQ217: 130 | AR217: 1.772352393e+10 | AS217: 130 | AT217: 0.001769230769 | AU217: 130 | AV217: 3.593387854e+11 | AW217: 130 | AX217: 0.2443076923 | AY217: 130 | AZ217: 1e+40 | BA217: 130 | BB217: 1.307692308e-05
A218: 140 | B218: 1e+40 | C218: 140 | D218: 0.003571426498 | E218: 140 | F218: 1.182936189e+24 | G218: 140 | H218: 0.5714282397 | I218: 140 | J218: 1e+40 | K218: 140 | L218: 2.857141199e-05 | O218: 140 | P218: 8571802620 | Q218: 140 | R218: 0.003571428571 | S218: 140 | T218: 1.875754989e+12 | U218: 140 | V218: 0.5714285714 | W218: 140 | X218: 1e+40 | Y218: 140 | Z218: 2.857142857e-05 | AC218: 140 | AD218: 1e+40 | AE218: 140 | AF218: 0.001642856514 | AG218: 140 | AH218: 2.133496207e+23 | AI218: 140 | AJ218: 0.226857056 | AK218: 140 | AL218: 1e+40 | AM218: 140 | AN218: 1.21428525e-05 | AQ218: 140 | AR218: 6321265174 | AS218: 140 | AT218: 0.001642857143 | AU218: 140 | AV218: 3.386226863e+11 | AW218: 140 | AX218: 0.2268571429 | AY218: 140 | AZ218: 1e+40 | BA218: 140 | BB218: 1.214285714e-05
A219: 150 | B219: 1e+40 | C219: 150 | D219: 0.003333331398 | E219: 150 | F219: 2.539277528e+23 | G219: 150 | H219: 0.5333330237 | I219: 150 | J219: 1e+40 | K219: 150 | L219: 2.666665119e-05 | O219: 150 | P219: 3546638309 | Q219: 150 | R219: 0.003333333333 | S219: 150 | T219: 1.812482903e+12 | U219: 150 | V219: 0.5333333333 | W219: 150 | X219: 1e+40 | Y219: 150 | Z219: 2.666666667e-05 | AC219: 150 | AD219: 1e+40 | AE219: 150 | AF219: 0.001533332747 | AG219: 150 | AH219: 4.579715425e+22 | AI219: 150 | AJ219: 0.2117332523 | AK219: 150 | AL219: 1e+40 | AM219: 150 | AN219: 1.1333329e-05 | AQ219: 150 | AR219: 2615460123 | AS219: 150 | AT219: 0.001533333333 | AU219: 150 | AV219: 3.270498857e+11 | AW219: 150 | AX219: 0.2117333333 | AY219: 150 | AZ219: 1e+40 | BA219: 150 | BB219: 1.133333333e-05
A220: 160 | B220: 1e+40 | C220: 160 | D220: 0.003124998186 | E220: 160 | F220: 7.792945643e+22 | G220: 160 | H220: 0.4999997097 | I220: 160 | J220: 1e+40 | K220: 160 | L220: 2.499998549e-05 | O220: 160 | P220: 1654875768 | Q220: 160 | R220: 0.003125 | S220: 160 | T220: 1.77936789e+12 | U220: 160 | V220: 0.5 | W220: 160 | X220: 1e+40 | Y220: 160 | Z220: 2.5e-05 | AC220: 160 | AD220: 1e+40 | AE220: 160 | AF220: 0.00143749945 | AG220: 160 | AH220: 1.405492939e+22 | AI220: 160 | AJ220: 0.198499924 | AK220: 160 | AL220: 1e+40 | AM220: 160 | AN220: 1.062499593e-05 | AQ220: 160 | AR220: 1220382786 | AS220: 160 | AT220: 0.0014375 | AU220: 160 | AV220: 3.209684857e+11 | AW220: 160 | AX220: 0.1985 | AY220: 160 | AZ220: 1e+40 | BA220: 160 | BB220: 1.0625e-05
A221: 170 | B221: 1e+40 | C221: 170 | D221: 0.002941174763 | E221: 170 | F221: 3.065532808e+22 | G221: 170 | H221: 0.4705879621 | I221: 170 | J221: 1e+40 | K221: 170 | L221: 2.352939811e-05 | O221: 170 | P221: 852207208.1 | Q221: 170 | R221: 0.002941176471 | S221: 170 | T221: 1.764471454e+12 | U221: 170 | V221: 0.4705882353 | W221: 170 | X221: 1e+40 | Y221: 170 | Z221: 2.352941176e-05 | AC221: 170 | AD221: 1e+40 | AE221: 170 | AF221: 0.001352940659 | AG221: 170 | AH221: 5.528812822e+21 | AI221: 170 | AJ221: 0.1868234579 | AK221: 170 | AL221: 1e+40 | AM221: 170 | AN221: 9.999996173e-06 | AQ221: 170 | AR221: 628456822.7 | AS221: 170 | AT221: 0.001352941176 | AU221: 170 | AV221: 3.183332723e+11 | AW221: 170 | AX221: 0.1868235294 | AY221: 170 | AZ221: 1e+40 | BA221: 170 | BB221: 1e-05
A222: 180 | B222: 1e+40 | C222: 180 | D222: 0.002777776165 | E222: 180 | F222: 1.488646841e+22 | G222: 180 | H222: 0.4444441864 | I222: 180 | J222: 1e+40 | K222: 180 | L222: 2.222220932e-05 | O222: 180 | P222: 476304246.7 | Q222: 180 | R222: 0.002777777778 | S222: 180 | T222: 1.764396184e+12 | U222: 180 | V222: 0.4444444444 | W222: 180 | X222: 1e+40 | Y222: 180 | Z222: 2.222222222e-05 | AC222: 180 | AD222: 1e+40 | AE222: 180 | AF222: 0.001277777289 | AG222: 180 | AH222: 2.684829075e+21 | AI222: 180 | AJ222: 0.1764443769 | AK222: 180 | AL222: 1e+40 | AM222: 180 | AN222: 9.44444083e-06 | AQ222: 180 | AR222: 351248382.9 | AS222: 180 | AT222: 0.001277777778 | AU222: 180 | AV222: 3.182665412e+11 | AW222: 180 | AX222: 0.1764444444 | AY222: 180 | AZ222: 1e+40 | BA222: 180 | BB222: 9.444444444e-06
A223: 190 | B223: 1e+40 | C223: 190 | D223: 0.00263157742 | E223: 190 | F223: 8.660894159e+21 | G223: 190 | H223: 0.4210523872 | I223: 190 | J223: 1e+40 | K223: 190 | L223: 2.105261936e-05 | O223: 190 | P223: 285138761.3 | Q223: 190 | R223: 0.002631578947 | S223: 190 | T223: 1.772390367e+12 | U223: 190 | V223: 0.4210526316 | W223: 190 | X223: 1e+40 | Y223: 190 | Z223: 2.105263158e-05 | AC223: 190 | AD223: 1e+40 | AE223: 190 | AF223: 0.001210525853 | AG223: 190 | AH223: 1.562021088e+21 | AI223: 190 | AJ223: 0.1671578308 | AK223: 190 | AL223: 1e+40 | AM223: 190 | AN223: 8.947364997e-06 | AQ223: 190 | AR223: 210274124.2 | AS223: 190 | AT223: 0.001210526316 | AU223: 190 | AV223: 3.197103558e+11 | AW223: 190 | AX223: 0.1671578947 | AY223: 190 | AZ223: 1e+40 | BA223: 190 | BB223: 8.947368421e-06
A224: 200 | B224: 1e+40 | C224: 200 | D224: 0.002499998549 | E224: 200 | F224: 5.868459162e+21 | G224: 200 | H224: 0.3999997678 | I224: 200 | J224: 1e+40 | K224: 200 | L224: 1.999998839e-05 | O224: 200 | P224: 180921569.9 | Q224: 200 | R224: 0.0025 | S224: 200 | T224: 1.786098421e+12 | U224: 200 | V224: 0.4 | W224: 200 | X224: 1e+40 | Y224: 200 | Z224: 2e-05 | AC224: 200 | AD224: 1e+40 | AE224: 200 | AF224: 0.00114999956 | AG224: 200 | AH224: 1.05839449e+21 | AI224: 200 | AJ224: 0.1587999392 | AK224: 200 | AL224: 1e+40 | AM224: 200 | AN224: 8.499996747e-06 | AQ224: 200 | AR224: 133419608.4 | AS224: 200 | AT224: 0.00115 | AU224: 200 | AV224: 3.221385591e+11 | AW224: 200 | AX224: 0.1588 | AY224: 200 | AZ224: 1e+40 | BA224: 200 | BB224: 8.5e-06
A225: 300 | B225: 1e+40 | C225: 300 | D225: 0.001666665699 | E225: 300 | F225: 1.752134883e+22 | G225: 300 | H225: 0.2666665119 | I225: 300 | J225: 1e+40 | K225: 300 | L225: 1.333332559e-05 | O225: 300 | P225: 12738246.9 | Q225: 300 | R225: 0.001666666667 | S225: 300 | T225: 2.116065625e+12 | U225: 300 | V225: 0.2666666667 | W225: 300 | X225: 1e+40 | Y225: 300 | Z225: 1.333333333e-05 | AC225: 300 | AD225: 1e+40 | AE225: 300 | AF225: 0.0007666663733 | AG225: 300 | AH225: 3.160003384e+21 | AI225: 300 | AJ225: 0.1058666262 | AK225: 300 | AL225: 1e+40 | AM225: 300 | AN225: 5.666664498e-06 | AQ225: 300 | AR225: 9393721.121 | AS225: 300 | AT225: 0.0007666666667 | AU225: 300 | AV225: 3.81642802e+11 | AW225: 300 | AX225: 0.1058666667 | AY225: 300 | AZ225: 1e+40 | BA225: 300 | BB225: 5.666666667e-06
A226: 400 | B226: 1e+40 | C226: 400 | D226: 0.001249999274 | E226: 400 | F226: 3.734586063e+24 | G226: 400 | H226: 0.1999998839 | I226: 400 | J226: 1e+40 | K226: 400 | L226: 9.999994195e-06 | O226: 400 | P226: 4440941.553 | Q226: 400 | R226: 0.00125 | S226: 400 | T226: 2.549932718e+12 | U226: 400 | V226: 0.2 | W226: 400 | X226: 1e+40 | Y226: 400 | Z226: 1e-05 | AC226: 400 | AD226: 1e+40 | AE226: 400 | AF226: 0.00057499978 | AG226: 400 | AH226: 6.735367369e+23 | AI226: 400 | AJ226: 0.07939996962 | AK226: 400 | AL226: 1e+40 | AM226: 400 | AN226: 4.249998374e-06 | AQ226: 400 | AR226: 3274934.483 | AS226: 400 | AT226: 0.000575 | AU226: 400 | AV226: 4.599574673e+11 | AW226: 400 | AX226: 0.0794 | AY226: 400 | AZ226: 1e+40 | BA226: 400 | BB226: 4.25e-06
A227: 500 | B227: 1e+40 | C227: 500 | D227: 0.0009999994195 | E227: 500 | F227: 4.265323094e+27 | G227: 500 | H227: 0.1599999071 | I227: 500 | J227: 1e+40 | K227: 500 | L227: 7.999995356e-06 | O227: 500 | P227: 2860138.226 | Q227: 500 | R227: 0.001 | S227: 500 | T227: 3.007560139e+12 | U227: 500 | V227: 0.16 | W227: 500 | X227: 1e+40 | Y227: 500 | Z227: 8e-06 | AC227: 500 | AD227: 1e+40 | AE227: 500 | AF227: 0.000459999824 | AG227: 500 | AH227: 7.692547946e+26 | AI227: 500 | AJ227: 0.06351997569 | AK227: 500 | AL227: 1e+40 | AM227: 500 | AN227: 3.399998699e-06 | AQ227: 500 | AR227: 2109183.596 | AS227: 500 | AT227: 0.00046 | AU227: 500 | AV227: 5.423438898e+11 | AW227: 500 | AX227: 0.06352 | AY227: 500 | AZ227: 1e+40 | BA227: 500 | BB227: 3.4e-06
A228: 1000 | B228: 1e+40 | C228: 1000 | D228: 0.0004999997097 | E228: 1000 | F228: 4.130335174e+31 | G228: 1000 | H228: 0.07999995356 | I228: 1000 | J228: 1.674730308e+39 | K228: 1000 | L228: 3.999997678e-06 | O228: 1000 | P228: 4114519.985 | Q228: 1000 | R228: 0.0005 | S228: 1000 | T228: 5.40947655e+12 | U228: 1000 | V228: 0.08 | W228: 1000 | X228: 1e+40 | Y228: 1000 | Z228: 4e-06 | AC228: 1000 | AD228: 1e+40 | AE228: 1000 | AF228: 0.000229999912 | AG228: 1000 | AH228: 7.443721185e+30 | AI228: 1000 | AJ228: 0.03175998785 | AK228: 1000 | AL228: 2.195586117e+36 | AM228: 1000 | AN228: 1.699999349e-06 | AQ228: 1000 | AR228: 3034214.653 | AS228: 1000 | AT228: 0.00023 | AU228: 1000 | AV228: 9.75429674e+11 | AW228: 1000 | AX228: 0.03176 | AY228: 1000 | AZ228: 1e+40 | BA228: 1000 | BB228: 1.7e-06
A229: 2000 | B229: 1e+40 | C229: 2000 | D229: 0.0002499998549 | E229: 2000 | F229: 1.085421999e+31 | G229: 2000 | H229: 0.03999997678 | I229: 2000 | J229: 5.886004001e+29 | K229: 2000 | L229: 1.999998839e-06 | O229: 2000 | P229: 73669895.28 | Q229: 2000 | R229: 0.00025 | S229: 2000 | T229: 1.029908562e+13 | U229: 2000 | V229: 0.04 | W229: 2000 | X229: 1e+40 | Y229: 2000 | Z229: 2e-06 | AC229: 2000 | AD229: 1e+40 | AE229: 2000 | AF229: 0.000114999956 | AG229: 2000 | AH229: 1.957060789e+30 | AI229: 2000 | AJ229: 0.01587999392 | AK229: 2000 | AL229: 7.71658654e+26 | AM229: 2000 | AN229: 8.499996747e-07 | AQ229: 2000 | AR229: 54327176.77 | AS229: 2000 | AT229: 0.000115 | AU229: 2000 | AV229: 1.857291548e+12 | AW229: 2000 | AX229: 0.01588 | AY229: 2000 | AZ229: 1e+40 | BA229: 2000 | BB229: 8.5e-07
A232: Saved 19/05/2025: 15:42:37 Level Number: 5
A234: BREAKTHROUGH RESULTS
A236: Advanced
A237: Pollutant Linkage: New Phases, AGB, Lower Calc Grit, NonHaz Compliance | O237: Pollutant Linkage: New Phases, AGB, Haz Compliance | AC237: Pollutant Linkage: Existing Phases, AGB, Lower Calc Grit, NonHaz Compliance | AQ237: Pollutant Linkage: Existing Phases, AGB, Haz Compliance
... 1063 more rows

Sheet NonHaz Complian (hidden)
A1: RECEPTOR: NonHaz Complian
A3: Receptor Options
F5: No further dilution along pathway
F7: No data requirement

Sheet Haz Compliance (hidden)
A1: RECEPTOR: Haz Compliance
A3: Receptor Options
F5: No further dilution along pathway
F7: No data requirement
